Department Family,Entity,Date,Expense Type,Expense Area,Supplier,Transaction Number,Amount,VAT Registration Number
Department of Health,East Sussex Hospitals NHS Trust,02/11/2011,SR ROYAL BROMPTON & HAREFIELD,Urgent Care,ROYAL BROMPTON & HAREFIELD NHS FND TRST,0000131943,7387.74,
Department of Health,East Sussex Hospitals NHS Trust,02/11/2011,SR ROYAL BROMPTON & HAREFIELD,Urgent Care,ROYAL BROMPTON & HAREFIELD NHS FND TRST,0000132078,9975.15,
Department of Health,East Sussex Hospitals NHS Trust,02/11/2011,BLOOD PRODUCTS - NBS ST CONTRA,Integrated Care,NHS BLOOD AND TRANSPLANT (NHSBT),0000132248,112402.27,
Department of Health,East Sussex Hospitals NHS Trust,02/11/2011,BLOOD PRODUCTS - NBS ST CONTRA,Integrated Care,NHS BLOOD AND TRANSPLANT (NHSBT),0000132249,2309.04,
Department of Health,East Sussex Hospitals NHS Trust,02/11/2011,BLOOD PRODUCTS - NBS ST CONTRA,Integrated Care,NHS BLOOD AND TRANSPLANT (NHSBT),0000132250,67856.99,
Department of Health,East Sussex Hospitals NHS Trust,02/11/2011,NHS SUPPLY CHAIN CREDITORS,Cross Site,NHS SUPPLY CHAIN,0000132276,161906.34,
Department of Health,East Sussex Hospitals NHS Trust,02/11/2011,BLOOD PRODUCTS - NBS OTHER,Integrated Care,NHS BLOOD AND TRANSPLANT (NHSBT),0000132291,650.92,
Department of Health,East Sussex Hospitals NHS Trust,02/11/2011,BLOOD PRODUCTS - NBS OTHER,Integrated Care,NHS BLOOD AND TRANSPLANT (NHSBT),0000132292,524.90,
Department of Health,East Sussex Hospitals NHS Trust,02/11/2011,AGENCY NURSE - UNQUALIFIED,Urgent Care,PREMIERCARE NETWORK LTD,0000274288,551.05,
Department of Health,East Sussex Hospitals NHS Trust,02/11/2011,PROVISIONS,Commercial,DAIRY CREST LTD,0000274456,1777.87,
Department of Health,East Sussex Hospitals NHS Trust,02/11/2011,PROVISIONS,Commercial,DAIRY CREST LTD,0000274457,1965.56,
Department of Health,East Sussex Hospitals NHS Trust,02/11/2011,PROVISIONS,Commercial,ANCHOR CATERING LTD,0000274463,861.30,
Department of Health,East Sussex Hospitals NHS Trust,02/11/2011,PROVISIONS,Commercial,ANCHOR CATERING LTD,0000274468,861.30,
Department of Health,East Sussex Hospitals NHS Trust,02/11/2011,AGENCY PHYSIOTHERAPY STAFF,Urgent Care,PIERS MEADOWS RECRUITMENT LIMITED,0000274550,1407.60,
Department of Health,East Sussex Hospitals NHS Trust,02/11/2011,PROVISIONS,Commercial,ANCHOR CATERING LTD,0000274599,861.30,
Department of Health,East Sussex Hospitals NHS Trust,02/11/2011,PROVISIONS,Commercial,N H CASE LTD,0000274621,616.91
Department of Health,East Sussex Hospitals NHS Trust,02/11/2011,PROVISIONS,Commercial,N H CASE LTD,0000274882,886.30
Department of Health,East Sussex Hospitals NHS Trust,02/11/2011,PROVISIONS,Commercial,ANCHOR CATERING LTD,0000274889,799.24
Department of Health,East Sussex Hospitals NHS Trust,02/11/2011,PROVISIONS,Commercial,ANCHOR CATERING LTD,0000274892,861.30
Department of Health,East Sussex Hospitals NHS Trust,02/11/2011,PROVISIONS,Commercial,DAIRY CREST LTD,0000274899,1709.18
Department of Health,East Sussex Hospitals NHS Trust,02/11/2011,PROVISIONS,Commercial,DAIRY CREST LTD,0000274942,852.42
Department of Health,East Sussex Hospitals NHS Trust,02/11/2011,AGENCY SPECIALIST REG,Integrated Care,LOCUMLINX LIMITED,0000275091,2014.56
Department of Health,East Sussex Hospitals NHS Trust,02/11/2011,AGENCY STAFF GRADE,Urgent Care,TLC - THE LOCUM CONSULTANCY,0000275092,2058.00
Department of Health,East Sussex Hospitals NHS Trust,02/11/2011,AGENCY SPECIALIST REG,Urgent Care,MEDACS HEALTHCARE SERVICES LTD,0000275095,3405.83
Department of Health,East Sussex Hospitals NHS Trust,02/11/2011,AGENCY ADMIN & CLERICAL,Corporate Services,MICHAEL PAGE INTERNATIONAL RECRUIT. LTD,0000275097,571.09
Department of Health,East Sussex Hospitals NHS Trust,02/11/2011,AGENCY SPECIALIST REG,Urgent Care,TLC - THE LOCUM CONSULTANCY,0000275101,4116.00
Department of Health,East Sussex Hospitals NHS Trust,02/11/2011,AGENCY SHO - LOCUM,Urgent Care,MEDILINK CONSULTING LIMITED,0000275107,570.00
Department of Health,East Sussex Hospitals NHS Trust,02/11/2011,AGENCY NURSE - QUALIFIED,Integrated Care,CONTINENTAL TRAVELNURSE LTD,0000275116,1908.00
Department of Health,East Sussex Hospitals NHS Trust,02/11/2011,AGENCY ADMIN & CLERICAL,Urgent Care,BLUE ARROW PERSONNEL SERVICES,0000275120,429.75
Department of Health,East Sussex Hospitals NHS Trust,02/11/2011,AGENCY OCC THERAPY STAFF,Integrated Care,RIG MEDICAL RECRUIT LTD,0000275123,1161.60
Department of Health,East Sussex Hospitals NHS Trust,02/11/2011,AGENCY SPEECH THERAPIST,Integrated Care,REAL STAFFING LTD,0000275133,2700.00
Department of Health,East Sussex Hospitals NHS Trust,02/11/2011,AGENCY SPECIALIST REG,Integrated Care,TLC - THE LOCUM CONSULTANCY,0000275137,967.50
Department of Health,East Sussex Hospitals NHS Trust,02/11/2011,AGENCY SPECIALIST REG,Urgent Care,TLC - THE LOCUM CONSULTANCY,0000275138,3192.00
Department of Health,East Sussex Hospitals NHS Trust,02/11/2011,AGENCY NURSE - QUALIFIED,Urgent Care,MAYFAIR,0000275145,693.12
Department of Health,East Sussex Hospitals NHS Trust,02/11/2011,AGENCY NURSE - QUALIFIED,Urgent Care,MAYFAIR,0000275146,950.07
Department of Health,East Sussex Hospitals NHS Trust,02/11/2011,AGENCY NURSE - UNQUALIFIED,Urgent Care,MAYFAIR,0000275149,596.95
Department of Health,East Sussex Hospitals NHS Trust,02/11/2011,AGENCY NURSE - QUALIFIED,Urgent Care,AMBITION,0000275151,763.47
Department of Health,East Sussex Hospitals NHS Trust,02/11/2011,TRAVEL & SUBSISTENCE,Urgent Care,AMBITION,0000275151,13.50
Department of Health,East Sussex Hospitals NHS Trust,02/11/2011,AGENCY NURSE - QUALIFIED,Urgent Care,AMBITION,0000275152,2020.95
Department of Health,East Sussex Hospitals NHS Trust,02/11/2011,TRAVEL & SUBSISTENCE,Urgent Care,AMBITION,0000275152,30.24
Department of Health,East Sussex Hospitals NHS Trust,02/11/2011,AGENCY SPECIALIST REG,Integrated Care,MEDACS HEALTHCARE SERVICES LTD,0000275204,3444.30
Department of Health,East Sussex Hospitals NHS Trust,02/11/2011,AGENCY SPECIALIST REG,Integrated Care,MEDACS HEALTHCARE SERVICES LTD,0000275205,2883.60
Department of Health,East Sussex Hospitals NHS Trust,02/11/2011,AGENCY STAFF GRADE,Integrated Care,MEDACS HEALTHCARE SERVICES LTD,0000275206,897.00
Department of Health,East Sussex Hospitals NHS Trust,02/11/2011,AGENCY SPECIALIST REG,Integrated Care,MEDACS HEALTHCARE SERVICES LTD,0000275207,2943.68
Department of Health,East Sussex Hospitals NHS Trust,02/11/2011,AGENCY SPECIALIST REG,Integrated Care,MEDACS HEALTHCARE SERVICES LTD,0000275208,3864.83
Department of Health,East Sussex Hospitals NHS Trust,02/11/2011,AGENCY SPECIALIST REG,Integrated Care,MEDACS HEALTHCARE SERVICES LTD,0000275210,3867.70
Department of Health,East Sussex Hospitals NHS Trust,02/11/2011,AGENCY MTO,Planned Care,ORION LOCUMS LTD,0000275215,1728.00
Department of Health,East Sussex Hospitals NHS Trust,02/11/2011,AGENCY MTO,Planned Care,ORION LOCUMS LTD,0000275216,1248.00
Department of Health,East Sussex Hospitals NHS Trust,02/11/2011,AGENCY MTO,Planned Care,ORION LOCUMS LTD,0000275217,1849.57
Department of Health,East Sussex Hospitals NHS Trust,02/11/2011,AGENCY NURSE - QUALIFIED,Urgent Care,PREMIERCARE NETWORK LTD,0000275218,558.62
Department of Health,East Sussex Hospitals NHS Trust,02/11/2011,AGENCY NURSE - QUALIFIED,Urgent Care,PREMIERCARE NETWORK LTD,0000275219,928.47
Department of Health,East Sussex Hospitals NHS Trust,02/11/2011,AGENCY NURSE - QUALIFIED,Urgent Care,PREMIERCARE NETWORK LTD,0000275220,2666.43
Department of Health,East Sussex Hospitals NHS Trust,02/11/2011,AGENCY NURSE - UNQUALIFIED,Urgent Care,PREMIERCARE NETWORK LTD,0000275243,1544.15
Department of Health,East Sussex Hospitals NHS Trust,02/11/2011,AGENCY NURSE - UNQUALIFIED,Urgent Care,PREMIERCARE NETWORK LTD,0000275283,1844.00
Department of Health,East Sussex Hospitals NHS Trust,02/11/2011,AGENCY MTO,Planned Care,ORION LOCUMS LTD,0000275310,1689.60
Department of Health,East Sussex Hospitals NHS Trust,02/11/2011,AGENCY ANCILLARY,Commercial,INTERWORK RECRUITMENT CONSULTANTS LTD,0000275315,854.30
Department of Health,East Sussex Hospitals NHS Trust,02/11/2011,AGENCY ANCILLARY,Commercial,INTERWORK RECRUITMENT CONSULTANTS LTD,0000275331,1231.08
Department of Health,East Sussex Hospitals NHS Trust,02/11/2011,AGENCY NURSE - QUALIFIED,Urgent Care,PREMIERCARE NETWORK LTD,0000275336,1063.90
Department of Health,East Sussex Hospitals NHS Trust,02/11/2011,AGENCY ANCILLARY,Commercial,INTERWORK RECRUITMENT CONSULTANTS LTD,0000275343,594.23
Department of Health,East Sussex Hospitals NHS Trust,02/11/2011,AGENCY - GENERAL GRADES,Commercial,INTERWORK RECRUITMENT CONSULTANTS LTD,0000275344,526.61
Department of Health,East Sussex Hospitals NHS Trust,02/11/2011,AGENCY ANCILLARY,Commercial,INTERWORK RECRUITMENT CONSULTANTS LTD,0000275347,684.53
Department of Health,East Sussex Hospitals NHS Trust,02/11/2011,AGENCY ANCILLARY,Commercial,INTERWORK RECRUITMENT CONSULTANTS LTD,0000275350,654.76
Department of Health,East Sussex Hospitals NHS Trust,02/11/2011,AGENCY ANCILLARY,Commercial,INTERWORK RECRUITMENT CONSULTANTS LTD,0000275353,1327.38
Department of Health,East Sussex Hospitals NHS Trust,02/11/2011,AGENCY ANCILLARY,Commercial,INTERWORK RECRUITMENT CONSULTANTS LTD,0000275364,595.80
Department of Health,East Sussex Hospitals NHS Trust,02/11/2011,AGENCY - GENERAL GRADES,Commercial,INTERWORK RECRUITMENT CONSULTANTS LTD,0000275368,567.70
Department of Health,East Sussex Hospitals NHS Trust,02/11/2011,AGENCY - GENERAL GRADES,Commercial,INTERWORK RECRUITMENT CONSULTANTS LTD,0000275369,1241.71
Department of Health,East Sussex Hospitals NHS Trust,02/11/2011,AGENCY NURSE - QUALIFIED,Urgent Care,AMBITION,0000275386,1931.13
Department of Health,East Sussex Hospitals NHS Trust,02/11/2011,TRAVEL & SUBSISTENCE,Urgent Care,AMBITION,0000275386,29.70
Department of Health,East Sussex Hospitals NHS Trust,02/11/2011,AGENCY - GENERAL GRADES,Commercial,INTERWORK RECRUITMENT CONSULTANTS LTD,0000275403,883.00
Department of Health,East Sussex Hospitals NHS Trust,02/11/2011,AGENCY - GENERAL GRADES,Commercial,INTERWORK RECRUITMENT CONSULTANTS LTD,0000275404,900.50
Department of Health,East Sussex Hospitals NHS Trust,02/11/2011,AGENCY NURSE - UNQUALIFIED,Urgent Care,PREMIERCARE NETWORK LTD,0000275448,1146.86
Department of Health,East Sussex Hospitals NHS Trust,02/11/2011,AGENCY NURSE - UNQUALIFIED,Urgent Care,PREMIERCARE NETWORK LTD,0000275462,819.65
Department of Health,East Sussex Hospitals NHS Trust,02/11/2011,PROVISIONS,Commercial,N H CASE LTD,0000275476,616.91
Department of Health,East Sussex Hospitals NHS Trust,02/11/2011,PROVISIONS,Commercial,ANCHOR CATERING LTD,0000275486,861.30
Department of Health,East Sussex Hospitals NHS Trust,02/11/2011,PROVISIONS,Commercial,DAIRY CREST LTD,0000275492,1605.70
Department of Health,East Sussex Hospitals NHS Trust,02/11/2011,PROVISIONS,Commercial,DAIRY CREST LTD,0000275497,1644.79
Department of Health,East Sussex Hospitals NHS Trust,02/11/2011,PROVISIONS,Commercial,ANCHOR CATERING LTD,0000275512,861.30
Department of Health,East Sussex Hospitals NHS Trust,02/11/2011,PROVISIONS,Commercial,DAIRY CREST LTD,0000275520,1853.19
Department of Health,East Sussex Hospitals NHS Trust,02/11/2011,HARDWARE & CROCKERY,Commercial,TRI-STAR PACKAGING SUPPLIES LTD,0000275538,885.89
Department of Health,East Sussex Hospitals NHS Trust,02/11/2011,HARDWARE & CROCKERY,Commercial,TRI-STAR PACKAGING SUPPLIES LTD,0000275540,633.99
Department of Health,East Sussex Hospitals NHS Trust,02/11/2011,PROVISIONS,Commercial,ANCHOR CATERING LTD,0000275552,861.30
Department of Health,East Sussex Hospitals NHS Trust,02/11/2011,PROVISIONS,Commercial,N H CASE LTD,0000275579,1025.40
Department of Health,East Sussex Hospitals NHS Trust,02/11/2011,PROVISIONS,Commercial,DAIRY CREST LTD,0000275583,1235.42
Department of Health,East Sussex Hospitals NHS Trust,02/11/2011,PROVISIONS,Commercial,DAIRY CREST LTD,0000275584,1170.06
Department of Health,East Sussex Hospitals NHS Trust,02/11/2011,PROVISIONS,Commercial,DAIRY CREST LTD,0000275585,1020.08
Department of Health,East Sussex Hospitals NHS Trust,02/11/2011,PROVISIONS,Commercial,FOODARI LIMITED,0000275630,587.11
Department of Health,East Sussex Hospitals NHS Trust,02/11/2011,MEDICAL GAS - VIE USE,Commercial,BOC (MANCHESTER)LTD,0000357157,769.25
Department of Health,East Sussex Hospitals NHS Trust,02/11/2011,MEDICAL GAS - CYLINDER RENTAL,Commercial,BOC (MANCHESTER)LTD,0000357186,3231.80
Department of Health,East Sussex Hospitals NHS Trust,02/11/2011,MEDICAL GAS - CYLINDER RENTAL,Commercial,BOC (MANCHESTER)LTD,0000357187,2085.94
Department of Health,East Sussex Hospitals NHS Trust,02/11/2011,MEDICAL GAS - CYLINDER RENTAL,Commercial,BOC (MANCHESTER)LTD,0000357187,1.51
Department of Health,East Sussex Hospitals NHS Trust,02/11/2011,MEDICAL GAS - VIE USE,Commercial,BOC (MANCHESTER)LTD,0000357190,817.92
Department of Health,East Sussex Hospitals NHS Trust,02/11/2011,MEDICAL GAS - VIE RENTAL,Commercial,BOC (MANCHESTER)LTD,0000357218,3286.80
Department of Health,East Sussex Hospitals NHS Trust,02/11/2011,MEDICAL GAS - VIE RENTAL,Commercial,BOC (MANCHESTER)LTD,0000357221,2661.60
Department of Health,East Sussex Hospitals NHS Trust,02/11/2011,ENGINEERING MATERIALS,Commercial,STATIC SYSTEMS GROUP PLC,0000357248,158.28
Department of Health,East Sussex Hospitals NHS Trust,02/11/2011,SC-CONQUEST UNIT WORKS,Commercial,STATIC SYSTEMS GROUP PLC,0000357248,731.88
Department of Health,East Sussex Hospitals NHS Trust,02/11/2011,MEDICAL GAS - VIE RENTAL,Commercial,BOC (MANCHESTER)LTD,0000357351,43.42
Department of Health,East Sussex Hospitals NHS Trust,02/11/2011,MEDICAL GAS - VIE USE,Commercial,BOC (MANCHESTER)LTD,0000357351,533.04
Department of Health,East Sussex Hospitals NHS Trust,02/11/2011,MEDICAL GAS - VIE RENTAL,Commercial,BOC (MANCHESTER)LTD,0000357371,43.42
Department of Health,East Sussex Hospitals NHS Trust,02/11/2011,MEDICAL GAS - VIE USE,Commercial,BOC (MANCHESTER)LTD,0000357371,657.12
Department of Health,East Sussex Hospitals NHS Trust,02/11/2011,MEDICAL GAS - VIE RENTAL,Commercial,BOC (MANCHESTER)LTD,0000357433,43.42
Department of Health,East Sussex Hospitals NHS Trust,02/11/2011,MEDICAL GAS - VIE USE,Commercial,BOC (MANCHESTER)LTD,0000357433,667.20
Department of Health,East Sussex Hospitals NHS Trust,02/11/2011,MEDICAL GAS - VIE RENTAL,Commercial,BOC (MANCHESTER)LTD,0000357435,43.42
Department of Health,East Sussex Hospitals NHS Trust,02/11/2011,MEDICAL GAS - VIE USE,Commercial,BOC (MANCHESTER)LTD,0000357435,684.24
Department of Health,East Sussex Hospitals NHS Trust,02/11/2011,PHOTOCOPIER HIRE,Planned Care,RICOH UK LTD,0000492927,550.26
Department of Health,East Sussex Hospitals NHS Trust,02/11/2011,PROSTHESES-HIP,Planned Care,STRYKER UK,0000493887,1440.00
Department of Health,East Sussex Hospitals NHS Trust,02/11/2011,NATIONAL JOINT REGISTRY LEVY,Planned Care,STRYKER UK,0000493887,40.00
Department of Health,East Sussex Hospitals NHS Trust,02/11/2011,LOANER KITS - HIRE CHARGE,Planned Care,SYNTHES LTD,0000494141,131.40
Department of Health,East Sussex Hospitals NHS Trust,02/11/2011,PROSTHESES-OTHER,Planned Care,SYNTHES LTD,0000494141,637.26
Department of Health,East Sussex Hospitals NHS Trust,02/11/2011,IMPLANTABLE DEFIBRILLATOR,Urgent Care,ST JUDE MEDICAL UK LIMITED,0000494480,17508.89
Department of Health,East Sussex Hospitals NHS Trust,02/11/2011,IMPLANTABLE DEFIBRILLATOR,Urgent Care,ST JUDE MEDICAL UK LIMITED,0000494481,22308.00
Department of Health,East Sussex Hospitals NHS Trust,02/11/2011,DRUGS-HAEMAPHILIA PRODUCTS,Integrated Care,CSL BEHRING,0000494508,4107.84
Department of Health,East Sussex Hospitals NHS Trust,02/11/2011,M&S GENERAL SUPPLIES-OTHER,Commercial,WESTFIELD MEDICAL LTD,0000494522,1263.43
Department of Health,East Sussex Hospitals NHS Trust,02/11/2011,M&S EQUIPMENT - OTHER,Planned Care,SMITH & NEPHEW ORTHOPAEDICS LTD,0000494538,3075.00
Department of Health,East Sussex Hospitals NHS Trust,02/11/2011,M&S EQUIPMENT - OTHER,Planned Care,SMITH & NEPHEW ORTHOPAEDICS LTD,0000494539,3075.00
Department of Health,East Sussex Hospitals NHS Trust,02/11/2011,PRE-STERILE COMMERCIAL PACKS,Commercial,FRONTIER MULTIGATE LTD,0000494550,572.38
Department of Health,East Sussex Hospitals NHS Trust,02/11/2011,M&S EQUIPMENT - OTHER,Planned Care,MULTITONE ELECTRONICS P L C,0000494571,633.00
Department of Health,East Sussex Hospitals NHS Trust,02/11/2011,EAR MOULD MANUFACTURE,Planned Care,MEDTEX LIMITED,0000494608,4321.60
Department of Health,East Sussex Hospitals NHS Trust,02/11/2011,PROSTHESES-OTHER,Planned Care,BIOMET EUROPE,0000494611,726.74
Department of Health,East Sussex Hospitals NHS Trust,02/11/2011,M&S GENERAL SUPPLIES-OTHER,Planned Care,BUNZL HEALTHCARE,0000494638,233.98
Department of Health,East Sussex Hospitals NHS Trust,02/11/2011,STAFF UNIFORMS,Planned Care,BUNZL HEALTHCARE,0000494638,307.20
Department of Health,East Sussex Hospitals NHS Trust,02/11/2011,M&S GENERAL SUPPLIES-OTHER,Planned Care,3M UNITEK,0000494647,704.16
Department of Health,East Sussex Hospitals NHS Trust,02/11/2011,"BOOKS, JOURNALS & SUBCRIPTIONS",Corporate Services,BMJ PUBLISHING GROUP LIMITED,0000494740,3460.80
Department of Health,East Sussex Hospitals NHS Trust,02/11/2011,ENDOSCOPY CONSUMABLES,Planned Care,BOSTON SCIENTIFIC LTD,0000494806,288.00
Department of Health,East Sussex Hospitals NHS Trust,02/11/2011,SURGICAL INSTRUMENTS,Planned Care,BOSTON SCIENTIFIC LTD,0000494806,436.80
Department of Health,East Sussex Hospitals NHS Trust,02/11/2011,SURGICAL INSTRUMENTS,Planned Care,SYNTHES LTD,0000494822,384.24
Department of Health,East Sussex Hospitals NHS Trust,02/11/2011,PROSTHESES-OTHER,Planned Care,SYNTHES LTD,0000494822,3018.18
Department of Health,East Sussex Hospitals NHS Trust,02/11/2011,M&S GENERAL SUPPLIES-OTHER,Planned Care,FISHER & PAYKEL HEALTHCARE LTD,0000494829,564.00
Department of Health,East Sussex Hospitals NHS Trust,02/11/2011,PROSTHESES-HIP,Planned Care,DEPUY INTERNATIONAL LTD (ORTHOPAEDIC),0000494833,611.28
Department of Health,East Sussex Hospitals NHS Trust,02/11/2011,COMPUTER HARDWARE,Urgent Care,HEWLETT-PACKARD LTD,0000494840,572.28
Department of Health,East Sussex Hospitals NHS Trust,02/11/2011,DCA REAGENTS,Integrated Care,SIEMENS HEALTHCARE DIAGNOSTICS LTD,0000494868,967.44
Department of Health,East Sussex Hospitals NHS Trust,02/11/2011,PROSTHESES-HIP,Planned Care,LIMA ORTHOPAEDICS UK LIMITED,0000494905,6099.60
Department of Health,East Sussex Hospitals NHS Trust,02/11/2011,PROSTHESES-OTHER,Planned Care,LIMA ORTHOPAEDICS UK LIMITED,0000494905,496.80
Department of Health,East Sussex Hospitals NHS Trust,02/11/2011,NATIONAL JOINT REGISTRY LEVY,Planned Care,LIMA ORTHOPAEDICS UK LIMITED,0000494905,60.01
Department of Health,East Sussex Hospitals NHS Trust,02/11/2011,LOANER KITS - HIRE CHARGE,Planned Care,ARTHREX LTD,0000494923,78.00
Department of Health,East Sussex Hospitals NHS Trust,02/11/2011,PROSTHESES-OTHER,Planned Care,ARTHREX LTD,0000494923,479.40
Department of Health,East Sussex Hospitals NHS Trust,02/11/2011,CARDIOLOGY STENTS,Urgent Care,ABBOTT VASCULAR,0000494949,924.00
Department of Health,East Sussex Hospitals NHS Trust,02/11/2011,M&S GENERAL SUPPLIES-OTHER,Integrated Care,FISHER & PAYKEL HEALTHCARE LTD,0000494952,612.00
Department of Health,East Sussex Hospitals NHS Trust,02/11/2011,PROSTHESES-HIP,Planned Care,DEPUY INTERNATIONAL LTD (ORTHOPAEDIC),0000494971,5664.84
Department of Health,East Sussex Hospitals NHS Trust,02/11/2011,NATIONAL JOINT REGISTRY LEVY,Planned Care,DEPUY INTERNATIONAL LTD (ORTHOPAEDIC),0000494971,20.00
Department of Health,East Sussex Hospitals NHS Trust,02/11/2011,M&S GENERAL SUPPLIES-OTHER,Planned Care,JOHNSON & JOHNSON MEDICAL LTD,0000495015,1551.62
Department of Health,East Sussex Hospitals NHS Trust,02/11/2011,GENERAL LAB. CONSUMABLES,Integrated Care,SEBIA UK LTD,0000495021,527.90
Department of Health,East Sussex Hospitals NHS Trust,02/11/2011,LAB.REAGENTS-MISCELLANEOUS,Integrated Care,SEBIA UK LTD,0000495021,954.05
Department of Health,East Sussex Hospitals NHS Trust,02/11/2011,DRESSINGS-OTHER,Planned Care,JOHNSON & JOHNSON MEDICAL LTD,0000495022,959.09
Department of Health,East Sussex Hospitals NHS Trust,02/11/2011,SURGICAL INSTRUMENTS,Planned Care,JOHNSON & JOHNSON MEDICAL LTD,0000495023,2304.00
Department of Health,East Sussex Hospitals NHS Trust,02/11/2011,STAPLING DEVICES,Planned Care,JOHNSON & JOHNSON MEDICAL LTD,0000495050,545.40
Department of Health,East Sussex Hospitals NHS Trust,02/11/2011,M&S GENERAL SUPPLIES-OTHER,Planned Care,JOHNSON & JOHNSON MEDICAL LTD,0000495052,2566.80
Department of Health,East Sussex Hospitals NHS Trust,02/11/2011,PROSTHESES-OTHER,Planned Care,ZIMMER LTD,0000495063,1396.80
Department of Health,East Sussex Hospitals NHS Trust,02/11/2011,PROSTHESIS - SPINAL,Planned Care,ZIMMER LTD,0000495064,1957.20
Department of Health,East Sussex Hospitals NHS Trust,02/11/2011,PROSTHESES-OTHER,Planned Care,ZIMMER LTD,0000495064,698.40
Department of Health,East Sussex Hospitals NHS Trust,02/11/2011,PROSTHESES-OTHER,Planned Care,ZIMMER LTD,0000495081,1525.20
Department of Health,East Sussex Hospitals NHS Trust,02/11/2011,INTERVENTIONAL DISPOSABLES,Urgent Care,ABBOTT VASCULAR,0000495165,540.00
Department of Health,East Sussex Hospitals NHS Trust,02/11/2011,M&S GENERAL SUPPLIES-OTHER,Planned Care,JOHNSON & JOHNSON MEDICAL LTD,0000495179,1643.96
Department of Health,East Sussex Hospitals NHS Trust,02/11/2011,INTERVENTIONAL DISPOSABLES,Planned Care,ORTHO SOLUTIONS LTD,0000495191,1032.96
Department of Health,East Sussex Hospitals NHS Trust,02/11/2011,PROSTHESES-HIP,Planned Care,LIMA ORTHOPAEDICS UK LIMITED,0000495223,1498.80
Department of Health,East Sussex Hospitals NHS Trust,02/11/2011,NATIONAL JOINT REGISTRY LEVY,Planned Care,LIMA ORTHOPAEDICS UK LIMITED,0000495223,20.00
Department of Health,East Sussex Hospitals NHS Trust,02/11/2011,M&S GENERAL SUPPLIES-OTHER,Integrated Care,MEDTRONIC LTD,0000495266,3120.60
Department of Health,East Sussex Hospitals NHS Trust,02/11/2011,SURGICAL INSTRUMENTS,Integrated Care,MEDTRONIC LTD,0000495266,468.00
Department of Health,East Sussex Hospitals NHS Trust,02/11/2011,BILIARY STENTS,Integrated Care,PYRAMED LIMITED,0000495278,984.00
Department of Health,East Sussex Hospitals NHS Trust,02/11/2011,MONOVETTE CONSUMABLES,Integrated Care,GREINER BIO-ONE LTD,0000495284,1756.64
Department of Health,East Sussex Hospitals NHS Trust,02/11/2011,M&S GENERAL SUPPLIES-OTHER,Urgent Care,ST JUDE MEDICAL UK LIMITED,0000495348,1998.72
Department of Health,East Sussex Hospitals NHS Trust,02/11/2011,M&S GENERAL SUPPLIES-OTHER,Planned Care,STRYKER UK,0000495349,66.66
Department of Health,East Sussex Hospitals NHS Trust,02/11/2011,SURGICAL INSTRUMENTS,Planned Care,STRYKER UK,0000495349,65.34
Department of Health,East Sussex Hospitals NHS Trust,02/11/2011,PROSTHESES-OTHER,Planned Care,STRYKER UK,0000495349,1760.88
Department of Health,East Sussex Hospitals NHS Trust,02/11/2011,M&S GENERAL SUPPLIES-OTHER,Planned Care,PURICORE INTERNATIONAL LTD,0000495355,614.69
Department of Health,East Sussex Hospitals NHS Trust,02/11/2011,OESOPHAGEAL (UPPER GI) STENTS,Planned Care,PYRAMED LIMITED,0000495415,804.00
Department of Health,East Sussex Hospitals NHS Trust,02/11/2011,STAPLING DEVICES,Planned Care,JOHNSON & JOHNSON MEDICAL LTD,0000495417,1972.35
Department of Health,East Sussex Hospitals NHS Trust,02/11/2011,STAPLING DEVICES,Planned Care,JOHNSON & JOHNSON MEDICAL LTD,0000495480,1404.79
Department of Health,East Sussex Hospitals NHS Trust,02/11/2011,LAB MATERIALS - IMMULITE,Integrated Care,SIEMENS HEALTHCARE DIAGNOSTICS LTD,0000495484,2895.84
Department of Health,East Sussex Hospitals NHS Trust,02/11/2011,LAB MATERIALS - IMMULITE,Integrated Care,SIEMENS HEALTHCARE DIAGNOSTICS LTD,0000495485,8525.11
Department of Health,East Sussex Hospitals NHS Trust,02/11/2011,LAB MATERIALS - IMMULITE,Integrated Care,SIEMENS HEALTHCARE DIAGNOSTICS LTD,0000495487,2075.78
Department of Health,East Sussex Hospitals NHS Trust,02/11/2011,STAPLING DEVICES,Planned Care,JOHNSON & JOHNSON MEDICAL LTD,0000495509,2978.58
Department of Health,East Sussex Hospitals NHS Trust,02/11/2011,M&S GENERAL SUPPLIES-OTHER,Planned Care,JOHNSON & JOHNSON MEDICAL LTD,0000495509,401.45
Department of Health,East Sussex Hospitals NHS Trust,02/11/2011,M&S GENERAL SUPPLIES-OTHER,Integrated Care,JOHNSON & JOHNSON MEDICAL LTD,0000495510,660.00
Department of Health,East Sussex Hospitals NHS Trust,02/11/2011,GENERAL LAB. CONSUMABLES,Integrated Care,DIAGNOSTIC REAGENTS LTD,0000495585,223.82
Department of Health,East Sussex Hospitals NHS Trust,02/11/2011,LAB MATERIALS - ANTICOAGULATN,Integrated Care,DIAGNOSTIC REAGENTS LTD,0000495585,559.85
Department of Health,East Sussex Hospitals NHS Trust,02/11/2011,CARDIOLOGY STENTS,Urgent Care,MEDTRONIC LTD,0000495598,1416.00
Department of Health,East Sussex Hospitals NHS Trust,02/11/2011,DRESSINGS-OTHER,Planned Care,JOHNSON & JOHNSON MEDICAL LTD,0000495663,959.09
Department of Health,East Sussex Hospitals NHS Trust,02/11/2011,GENERAL LAB. CONSUMABLES,Integrated Care,OXOID LIMITED,0000495685,390.48
Department of Health,East Sussex Hospitals NHS Trust,02/11/2011,OTHER MEDIA,Integrated Care,OXOID LIMITED,0000495685,444.80
Department of Health,East Sussex Hospitals NHS Trust,02/11/2011,LASER/LAPARASCOPIC EQUIPMENT,Planned Care,JOHNSON & JOHNSON MEDICAL LTD,0000495697,2925.25
Department of Health,East Sussex Hospitals NHS Trust,02/11/2011,STAFF UNIFORMS,Planned Care,MOLNLYCKE HEALTHCARE,0000495732,599.47
Department of Health,East Sussex Hospitals NHS Trust,02/11/2011,M&S GENERAL SUPPLIES-OTHER,Commercial,MOLNLYCKE HEALTHCARE,0000495751,705.70
Department of Health,East Sussex Hospitals NHS Trust,02/11/2011,M&S EQUIPMENT - OTHER,Planned Care,JOHNSON & JOHNSON MEDICAL LTD,0000495820,-729.24
Department of Health,East Sussex Hospitals NHS Trust,02/11/2011,M&S GENERAL SUPPLIES-OTHER,Planned Care,MOLNLYCKE HEALTHCARE,0000495887,33.29
Department of Health,East Sussex Hospitals NHS Trust,02/11/2011,DISPOSABLE DRAPES,Planned Care,MOLNLYCKE HEALTHCARE,0000495887,991.08
Department of Health,East Sussex Hospitals NHS Trust,02/11/2011,PROSTHESES-KNEES,Planned Care,BIOMET EUROPE,0000495970,2097.60
Department of Health,East Sussex Hospitals NHS Trust,02/11/2011,NATIONAL JOINT REGISTRY LEVY,Planned Care,BIOMET EUROPE,0000495970,40.01
Department of Health,East Sussex Hospitals NHS Trust,02/11/2011,GENERAL LAB. CONSUMABLES,Integrated Care,HOLOGIC UK LTD,0000495989,1158.00
Department of Health,East Sussex Hospitals NHS Trust,02/11/2011,PATS.APPL.-DENTAL,Planned Care,SOUTH EASTERN ORTHODONTICS,0000496019,2753.80
Department of Health,East Sussex Hospitals NHS Trust,02/11/2011,PROSTHESIS -BREAST IMPLANTS,Planned Care,JOHNSON & JOHNSON MEDICAL LTD,0000592136,691.80
Department of Health,East Sussex Hospitals NHS Trust,02/11/2011,M&S EQUIPMENT - OTHER,Urgent Care,JOHNSON & JOHNSON MEDICAL LTD,0000592395,108.00
Department of Health,East Sussex Hospitals NHS Trust,02/11/2011,M&S GENERAL SUPPLIES-OTHER,Urgent Care,JOHNSON & JOHNSON MEDICAL LTD,0000592395,420.00
Department of Health,East Sussex Hospitals NHS Trust,02/11/2011,CARDIOLOGY CATHETERS,Urgent Care,JOHNSON & JOHNSON MEDICAL LTD,0000592395,1098.00
Department of Health,East Sussex Hospitals NHS Trust,02/11/2011,CARDIOLOGY CATHETERS,Urgent Care,JOHNSON & JOHNSON MEDICAL LTD,0000592396,2520.00
Department of Health,East Sussex Hospitals NHS Trust,02/11/2011,PHOTOCOPIER HIRE,Commercial,PLANAHEAD CREATIVE PRINT & COPY,0000593071,580.00
Department of Health,East Sussex Hospitals NHS Trust,02/11/2011,IMMUNONOLOGY REAGENTS,Integrated Care,LAUNCH DIAGNOSTICS LTD,0000594265,1794.95
Department of Health,East Sussex Hospitals NHS Trust,02/11/2011,IMMUNONOLOGY REAGENTS,Integrated Care,LAUNCH DIAGNOSTICS LTD,0000594366,-984.00
Department of Health,East Sussex Hospitals NHS Trust,02/11/2011,PACEMAKERS,Urgent Care,JOHNSON & JOHNSON MEDICAL LTD,0000594608,358.80
Department of Health,East Sussex Hospitals NHS Trust,02/11/2011,CARDIOLOGY CATHETERS,Urgent Care,JOHNSON & JOHNSON MEDICAL LTD,0000594608,834.00
Department of Health,East Sussex Hospitals NHS Trust,02/11/2011,CARDIOLOGY CATHETERS,Urgent Care,JOHNSON & JOHNSON MEDICAL LTD,0000594609,948.00
Department of Health,East Sussex Hospitals NHS Trust,02/11/2011,PRE-STERILE COMMERCIAL PACKS,Commercial,ROCIALLE INHEALTH,0000594647,1210.24
Department of Health,East Sussex Hospitals NHS Trust,02/11/2011,M&S EQUIPMENT - OTHER,Planned Care,FOCUS MEDICAL SERVICES LTD,0000594730,1230.00
Department of Health,East Sussex Hospitals NHS Trust,02/11/2011,CARDIOLOGY CATHETERS,Urgent Care,PYRAMED LIMITED,0000594911,1104.00
Department of Health,East Sussex Hospitals NHS Trust,02/11/2011,INTERVENTIONAL DISPOSABLES,Integrated Care,PYRAMED LIMITED,0000594914,816.00
Department of Health,East Sussex Hospitals NHS Trust,02/11/2011,PROSTHESES-OTHER,Planned Care,LIMA ORTHOPAEDICS UK LIMITED,0000594930,3296.04
Department of Health,East Sussex Hospitals NHS Trust,02/11/2011,CARDIOLOGY CATHETERS,Urgent Care,ABBOTT VASCULAR,0000594932,240.00
Department of Health,East Sussex Hospitals NHS Trust,02/11/2011,CARDIOLOGY STENTS,Urgent Care,ABBOTT VASCULAR,0000594932,2005.00
Department of Health,East Sussex Hospitals NHS Trust,02/11/2011,M&S GENERAL SUPPLIES-OTHER,Integrated Care,UK MEDICAL LTD,0000594979,675.00
Department of Health,East Sussex Hospitals NHS Trust,02/11/2011,CARDIOLOGY CATHETERS,Urgent Care,MEDTRONIC LTD,0000595017,4800.00
Department of Health,East Sussex Hospitals NHS Trust,02/11/2011,CARDIOLOGY CATHETERS,Urgent Care,MEDTRONIC LTD,0000595021,4800.00
Department of Health,East Sussex Hospitals NHS Trust,02/11/2011,M&S GENERAL SUPPLIES-OTHER,Commercial,CLINIPAK LTD,0000595025,795.72
Department of Health,East Sussex Hospitals NHS Trust,02/11/2011,CAPITAL EXPENDITURE,Other Central,EASTWOOD PARK LTD,0000595030,1854.00
Department of Health,East Sussex Hospitals NHS Trust,02/11/2011,CAPITAL EXPENDITURE,Other Central,EASTWOOD PARK LTD,0000595031,1854.00
Department of Health,East Sussex Hospitals NHS Trust,02/11/2011,PRE-STERILE COMMERCIAL PACKS,Commercial,ROCIALLE INHEALTH,0000595033,1312.24
Department of Health,East Sussex Hospitals NHS Trust,02/11/2011,INTERVENTIONAL DISPOSABLES,Integrated Care,MANA-TECH LTD,0000595044,600.00
Department of Health,East Sussex Hospitals NHS Trust,02/11/2011,M&S EQUIPMENT - OTHER,Planned Care,TENSCARE LTD,0000595047,3395.40
Department of Health,East Sussex Hospitals NHS Trust,02/11/2011,PROSTHESES-OTHER,Planned Care,LIMA ORTHOPAEDICS UK LIMITED,0000595057,2260.80
Department of Health,East Sussex Hospitals NHS Trust,02/11/2011,NATIONAL JOINT REGISTRY LEVY,Planned Care,LIMA ORTHOPAEDICS UK LIMITED,0000595057,20.00
Department of Health,East Sussex Hospitals NHS Trust,02/11/2011,CARDIOLOGY CATHETERS,Urgent Care,ABBOTT VASCULAR,0000595058,60.00
Department of Health,East Sussex Hospitals NHS Trust,02/11/2011,CARDIOLOGY STENTS,Urgent Care,ABBOTT VASCULAR,0000595058,2005.00
Department of Health,East Sussex Hospitals NHS Trust,02/11/2011,PATS.APPL.-DENTAL,Planned Care,SOUTHERN ORTHO SERVICE,0000595151,1706.00
Department of Health,East Sussex Hospitals NHS Trust,02/11/2011,M&S GENERAL SUPPLIES-OTHER,Integrated Care,JOHNSON & JOHNSON MEDICAL LTD,0000595192,1680.00
Department of Health,East Sussex Hospitals NHS Trust,02/11/2011,INTERVENTIONAL DISPOSABLES,Integrated Care,JOHNSON & JOHNSON MEDICAL LTD,0000595192,78.00
Department of Health,East Sussex Hospitals NHS Trust,02/11/2011,INTERVASCULAR STENTS,Integrated Care,JOHNSON & JOHNSON MEDICAL LTD,0000595211,600.00
Department of Health,East Sussex Hospitals NHS Trust,02/11/2011,LOANER KITS - HIRE CHARGE,Planned Care,ARTHREX LTD,0000595229,558.00
Department of Health,East Sussex Hospitals NHS Trust,02/11/2011,PROSTHESES-OTHER,Planned Care,ARTHREX LTD,0000595229,40.80
Department of Health,East Sussex Hospitals NHS Trust,02/11/2011,M&S EQUIPMENT - OTHER,Planned Care,ALBYN MEDICAL LTD,0000595231,1274.40
Department of Health,East Sussex Hospitals NHS Trust,02/11/2011,CARDIOLOGY CATHETERS,Urgent Care,JOHNSON & JOHNSON MEDICAL LTD,0000595240,3582.00
Department of Health,East Sussex Hospitals NHS Trust,02/11/2011,M&S GENERAL SUPPLIES-OTHER,Integrated Care,JOHNSON & JOHNSON MEDICAL LTD,0000595255,840.00
Department of Health,East Sussex Hospitals NHS Trust,02/11/2011,PROSTHESIS -BREAST IMPLANTS,Planned Care,JOHNSON & JOHNSON MEDICAL LTD,0000595257,1260.00
Department of Health,East Sussex Hospitals NHS Trust,02/11/2011,INTERVASCULAR STENTS,Integrated Care,JOHNSON & JOHNSON MEDICAL LTD,0000595259,600.00
Department of Health,East Sussex Hospitals NHS Trust,02/11/2011,TSSU INSTRUMENTATION,Commercial,JOHNSON & JOHNSON MEDICAL LTD,0000595260,879.48
Department of Health,East Sussex Hospitals NHS Trust,02/11/2011,CARDIOLOGY CATHETERS,Urgent Care,ABBOTT VASCULAR,0000595267,390.00
Department of Health,East Sussex Hospitals NHS Trust,02/11/2011,CARDIOLOGY STENTS,Urgent Care,ABBOTT VASCULAR,0000595267,385.00
Department of Health,East Sussex Hospitals NHS Trust,02/11/2011,M&S GENERAL SUPPLIES-OTHER,Urgent Care,BUNZL HEALTHCARE,0000595285,630.59
Department of Health,East Sussex Hospitals NHS Trust,02/11/2011,TSSU INSTRUMENTATION,Commercial,BIOMET EUROPE,0000595331,642.60
Department of Health,East Sussex Hospitals NHS Trust,02/11/2011,SURGICAL INSTRUMENTS,Planned Care,JOHNSON & JOHNSON MEDICAL LTD,0000595432,960.00
Department of Health,East Sussex Hospitals NHS Trust,02/11/2011,TSSU INSTRUMENTATION,Commercial,JOHNSON & JOHNSON MEDICAL LTD,0000595441,509.23
Department of Health,East Sussex Hospitals NHS Trust,02/11/2011,M&S GENERAL SUPPLIES-OTHER,Integrated Care,PYRAMED LIMITED,0000595529,-990.00
Department of Health,East Sussex Hospitals NHS Trust,02/11/2011,M&S GENERAL SUPPLIES-OTHER,Integrated Care,PYRAMED LIMITED,0000595530,-1038.00
Department of Health,East Sussex Hospitals NHS Trust,02/11/2011,M&S GENERAL SUPPLIES-OTHER,Commercial,WESTFIELD MEDICAL LTD,0000595555,845.20
Department of Health,East Sussex Hospitals NHS Trust,02/11/2011,COMPUTER CONSUMABLES,Commercial,PRINTERBASE LTD,0000595568,1062.53
Department of Health,East Sussex Hospitals NHS Trust,02/11/2011,COMPUTER CONSUMABLES,Commercial,PRINTERBASE LTD,0000595568,-53.14
Department of Health,East Sussex Hospitals NHS Trust,02/11/2011,LOANER KITS - HIRE CHARGE,Planned Care,ORTHODYNAMICS,0000595796,420.00
Department of Health,East Sussex Hospitals NHS Trust,02/11/2011,PROSTHESES-OTHER,Planned Care,ORTHODYNAMICS,0000595796,1196.40
Department of Health,East Sussex Hospitals NHS Trust,02/11/2011,PRE-STERILE COMMERCIAL PACKS,Commercial,STERIPHARM UK LTD,0000595884,896.40
Department of Health,East Sussex Hospitals NHS Trust,02/11/2011,DISPOSABLE DRAPES,Commercial,STERIPHARM UK LTD,0000595884,263.95
Department of Health,East Sussex Hospitals NHS Trust,02/11/2011,M&S GENERAL SUPPLIES-OTHER,Commercial,STERIPHARM UK LTD,0000595885,1495.66
Department of Health,East Sussex Hospitals NHS Trust,02/11/2011,PRE-STERILE COMMERCIAL PACKS,Commercial,STERIPHARM UK LTD,0000595885,749.95
Department of Health,East Sussex Hospitals NHS Trust,02/11/2011,M&S GENERAL SUPPLIES-OTHER,Commercial,STERIPHARM UK LTD,0000595886,1703.76
Department of Health,East Sussex Hospitals NHS Trust,02/11/2011,PRE-STERILE COMMERCIAL PACKS,Commercial,STERIPHARM UK LTD,0000595886,333.50
Department of Health,East Sussex Hospitals NHS Trust,02/11/2011,DISPOSABLE DRAPES,Commercial,STERIPHARM UK LTD,0000595886,131.98
Department of Health,East Sussex Hospitals NHS Trust,02/11/2011,FOETAL FIBRONECTIN SYS CONSUMS,Integrated Care,HOLOGIC UK LTD,0000596051,1092.00
Department of Health,East Sussex Hospitals NHS Trust,02/11/2011,FUEL,Commercial,VALERO ENERGY LTD,0000596055,24237.36
Department of Health,East Sussex Hospitals NHS Trust,02/11/2011,LAUNDRY-SALT,Commercial,BRITISH SALT LTD,0000596074,1604.84
Department of Health,East Sussex Hospitals NHS Trust,02/11/2011,COMPUTER HARDWARE,Commercial,PICOSEA LTD,0000596188,5400.00
Department of Health,East Sussex Hospitals NHS Trust,02/11/2011,CAPITAL EXPENDITURE,Other Central,TROJAN ROSE LTD,0000617876,16754.70
Department of Health,East Sussex Hospitals NHS Trust,02/11/2011,DISPOSAL OF WEEE NON-HAZARDOUS,Commercial,GREENSOLVE,0000617931,695.00
Department of Health,East Sussex Hospitals NHS Trust,02/11/2011,DISPOSAL OF SPEC/HAZARD WASTE,Commercial,GREENSOLVE,0000617932,950.00
Department of Health,East Sussex Hospitals NHS Trust,02/11/2011,CONTRACT ENGINEERING MAINT,Commercial,INDUSTRIAL ELECTRICAL CONTRACTORS,0000618070,748.62
Department of Health,East Sussex Hospitals NHS Trust,02/11/2011,MINOR WORKS - BUILDING,Integrated Care,H WILSON (ALFRISTON) LTD,0000618079,1187.33
Department of Health,East Sussex Hospitals NHS Trust,02/11/2011,CAPITAL EXPENDITURE,Other Central,EASTBOURNE ELECTRICAL,0000618102,6904.54
Department of Health,East Sussex Hospitals NHS Trust,02/11/2011,CAPITAL EXPENDITURE,Other Central,H WILSON (ALFRISTON) LTD,0000618116,2745.34
Department of Health,East Sussex Hospitals NHS Trust,02/11/2011,MINOR WORKS - BUILDING,Corporate Services,EASTBOURNE ELECTRICAL,0000618146,691.80
Department of Health,East Sussex Hospitals NHS Trust,02/11/2011,MINOR WORKS - BUILDING,Corporate Services,EASTBOURNE ELECTRICAL,0000618148,933.28
Department of Health,East Sussex Hospitals NHS Trust,02/11/2011,CAPITAL EXPENDITURE,Other Central,H WILSON (ALFRISTON) LTD,0000618161,797.23
Department of Health,East Sussex Hospitals NHS Trust,02/11/2011,ENGINEERING MATERIALS,Commercial,"SUSSEX TUBES, FITTING & VALVES",0000618183,1639.79
Department of Health,East Sussex Hospitals NHS Trust,02/11/2011,EDGH BLDING & ENGINEERING MATS,Commercial,"SUSSEX TUBES, FITTING & VALVES",0000618183,11.70
Department of Health,East Sussex Hospitals NHS Trust,02/11/2011,PROSTHESES-HIP,Planned Care,BIOMET EUROPE,0000883873,2076.77
Department of Health,East Sussex Hospitals NHS Trust,02/11/2011,PROSTHESES-KNEES,Planned Care,BIOMET EUROPE,0000883873,6382.80
Department of Health,East Sussex Hospitals NHS Trust,02/11/2011,PROSTHESIS - SHOULDERS,Planned Care,BIOMET EUROPE,0000883873,2760.00
Department of Health,East Sussex Hospitals NHS Trust,02/11/2011,PROSTHESES-OTHER,Planned Care,BIOMET EUROPE,0000883873,1216.80
Department of Health,East Sussex Hospitals NHS Trust,02/11/2011,NATIONAL JOINT REGISTRY LEVY,Planned Care,BIOMET EUROPE,0000883873,220.04
Department of Health,East Sussex Hospitals NHS Trust,02/11/2011,PROSTHESES-HIP,Planned Care,BIOMET EUROPE,0000883909,3806.00
Department of Health,East Sussex Hospitals NHS Trust,02/11/2011,PROSTHESES-KNEES,Planned Care,BIOMET EUROPE,0000883909,828.00
Department of Health,East Sussex Hospitals NHS Trust,02/11/2011,PROSTHESES-KNEES,Planned Care,BIOMET EUROPE,0000884252,1777.80
Department of Health,East Sussex Hospitals NHS Trust,02/11/2011,NATIONAL JOINT REGISTRY LEVY,Planned Care,BIOMET EUROPE,0000884252,20.00
Department of Health,East Sussex Hospitals NHS Trust,02/11/2011,M&S GENERAL SUPPLIES-OTHER,Planned Care,JOHNSON & JOHNSON MEDICAL LTD,0000884628,759.41
Department of Health,East Sussex Hospitals NHS Trust,02/11/2011,LASER/LAPARASCOPIC EQUIPMENT,Planned Care,JOHNSON & JOHNSON MEDICAL LTD,0000884757,5850.50
Department of Health,East Sussex Hospitals NHS Trust,02/11/2011,M&S GENERAL SUPPLIES-OTHER,Planned Care,JOHNSON & JOHNSON MEDICAL LTD,0000884757,4320.48
Department of Health,East Sussex Hospitals NHS Trust,02/11/2011,ELECTRO CONSUMABLES,Planned Care,JOHNSON & JOHNSON MEDICAL LTD,0000884757,1212.27
Department of Health,East Sussex Hospitals NHS Trust,02/11/2011,PROSTHESES-KNEES,Planned Care,BIOMET EUROPE,0000884769,529.20
Department of Health,East Sussex Hospitals NHS Trust,02/11/2011,M&S GENERAL SUPPLIES-OTHER,Planned Care,JOHNSON & JOHNSON MEDICAL LTD,0000884805,962.59
Department of Health,East Sussex Hospitals NHS Trust,02/11/2011,M&S EQUIPMENT - OTHER,Planned Care,JOHNSON & JOHNSON MEDICAL LTD,0000884806,729.24
Department of Health,East Sussex Hospitals NHS Trust,02/11/2011,STAPLING DEVICES,Planned Care,JOHNSON & JOHNSON MEDICAL LTD,0000884807,2160.00
Department of Health,East Sussex Hospitals NHS Trust,02/11/2011,LASER/LAPARASCOPIC EQUIPMENT,Planned Care,JOHNSON & JOHNSON MEDICAL LTD,0000884808,810.00
Department of Health,East Sussex Hospitals NHS Trust,02/11/2011,PROSTHESES-HIP,Planned Care,BIOMET EUROPE,0000884815,1208.26
Department of Health,East Sussex Hospitals NHS Trust,02/11/2011,PROSTHESES-KNEES,Planned Care,BIOMET EUROPE,0000884815,5346.00
Department of Health,East Sussex Hospitals NHS Trust,02/11/2011,NATIONAL JOINT REGISTRY LEVY,Planned Care,BIOMET EUROPE,0000884815,100.02
Department of Health,East Sussex Hospitals NHS Trust,02/11/2011,LASER/LAPARASCOPIC EQUIPMENT,Planned Care,JOHNSON & JOHNSON MEDICAL LTD,0000884847,796.56
Department of Health,East Sussex Hospitals NHS Trust,02/11/2011,LAPARASCOPIC EQUIP-GYNAECOLOGY,Planned Care,JOHNSON & JOHNSON MEDICAL LTD,0000884847,409.96
Department of Health,East Sussex Hospitals NHS Trust,02/11/2011,M&S GENERAL SUPPLIES-OTHER,Planned Care,JOHNSON & JOHNSON MEDICAL LTD,0000884847,962.59
Department of Health,East Sussex Hospitals NHS Trust,02/11/2011,SURGICAL INSTRUMENTS,Planned Care,JOHNSON & JOHNSON MEDICAL LTD,0000884847,391.56
Department of Health,East Sussex Hospitals NHS Trust,02/11/2011,ELECTRO MEDICAL EQUIPMENT,Planned Care,JOHNSON & JOHNSON MEDICAL LTD,0000884847,246.12
Department of Health,East Sussex Hospitals NHS Trust,02/11/2011,ELECTRO CONSUMABLES,Planned Care,JOHNSON & JOHNSON MEDICAL LTD,0000884847,804.55
Department of Health,East Sussex Hospitals NHS Trust,02/11/2011,STAPLING DEVICES,Planned Care,JOHNSON & JOHNSON MEDICAL LTD,0000884848,83.14
Department of Health,East Sussex Hospitals NHS Trust,02/11/2011,M&S GENERAL SUPPLIES-OTHER,Planned Care,JOHNSON & JOHNSON MEDICAL LTD,0000884848,481.30
Department of Health,East Sussex Hospitals NHS Trust,02/11/2011,PROVISIONS,Commercial,N H CASE LTD,0000913302,616.91
Department of Health,East Sussex Hospitals NHS Trust,02/11/2011,PROVISIONS,Commercial,BRAKE BROS (FROZEN FOODS) LTD,0000913558,637.51
Department of Health,East Sussex Hospitals NHS Trust,02/11/2011,PROVISIONS,Commercial,BRAKE BROS (FROZEN FOODS) LTD,0000913560,655.30
Department of Health,East Sussex Hospitals NHS Trust,02/11/2011,PROVISIONS,Commercial,BRAKE BROS (FROZEN FOODS) LTD,0000913615,1107.93
Department of Health,East Sussex Hospitals NHS Trust,02/11/2011,PROVISIONS,Commercial,BRAKE BROS (FROZEN FOODS) LTD,0000913618,1027.06
Department of Health,East Sussex Hospitals NHS Trust,02/11/2011,PROVISIONS,Commercial,BRAKE BROS (FROZEN FOODS) LTD,0000913619,737.35
Department of Health,East Sussex Hospitals NHS Trust,02/11/2011,PROVISIONS,Commercial,BRAKE BROS (FROZEN FOODS) LTD,0000913622,1079.85
Department of Health,East Sussex Hospitals NHS Trust,02/11/2011,PROVISIONS,Commercial,BRAKE BROS (FROZEN FOODS) LTD,0000913623,632.97
Department of Health,East Sussex Hospitals NHS Trust,02/11/2011,PROVISIONS,Commercial,BRAKE BROS (FROZEN FOODS) LTD,0000913625,946.33
Department of Health,East Sussex Hospitals NHS Trust,02/11/2011,PROVISIONS,Commercial,BRAKE BROS (FROZEN FOODS) LTD,0000913626,1141.07
Department of Health,East Sussex Hospitals NHS Trust,02/11/2011,PROVISIONS,Commercial,BRAKE BROS (FROZEN FOODS) LTD,0000913636,560.39
Department of Health,East Sussex Hospitals NHS Trust,02/11/2011,PROVISIONS,Commercial,BRAKE BROS (FROZEN FOODS) LTD,0000913638,712.71
Department of Health,East Sussex Hospitals NHS Trust,02/11/2011,STOCK-ASCRIBE CONQUEST,Pharmacy Stock,BAXTER HEALTHCARE (BERKSHIRE)LTD,0001182713,840.00
Department of Health,East Sussex Hospitals NHS Trust,02/11/2011,STOCK-ASCRIBE CONQUEST,Pharmacy Stock,BAXTER HEALTHCARE (BERKSHIRE)LTD,0001182714,840.00
Department of Health,East Sussex Hospitals NHS Trust,02/11/2011,STOCK-ASCRIBE CONQUEST,Pharmacy Stock,BAXTER HEALTHCARE (BERKSHIRE)LTD,0001182715,1043.76
Department of Health,East Sussex Hospitals NHS Trust,02/11/2011,STOCK-ASCRIBE CONQUEST,Pharmacy Stock,BAXTER HEALTHCARE (BERKSHIRE)LTD,0001182716,987.00
Department of Health,East Sussex Hospitals NHS Trust,02/11/2011,STOCK-ASCRIBE CONQUEST,Pharmacy Stock,BAXTER HEALTHCARE (BERKSHIRE)LTD,0001182718,1784.48
Department of Health,East Sussex Hospitals NHS Trust,02/11/2011,STOCK-ASCRIBE CONQUEST,Pharmacy Stock,ABBOTT LABORATORIES LTD,0001182721,2535.41
Department of Health,East Sussex Hospitals NHS Trust,02/11/2011,STOCK-ASCRIBE CONQUEST,Pharmacy Stock,ALLIANCE HEALTHCARE (DISTRIBUTION) LTD,0001182742,1534.56
Department of Health,East Sussex Hospitals NHS Trust,02/11/2011,STOCK-ASCRIBE CONQUEST,Pharmacy Stock,ALLIANCE HEALTHCARE (DISTRIBUTION) LTD,0001182745,11364.52
Department of Health,East Sussex Hospitals NHS Trust,02/11/2011,STOCK-ASCRIBE CONQUEST,Pharmacy Stock,ALLIANCE HEALTHCARE (DISTRIBUTION) LTD,0001182748,1605.68
Department of Health,East Sussex Hospitals NHS Trust,02/11/2011,STOCK-ASCRIBE CONQUEST,Pharmacy Stock,ALLIANCE HEALTHCARE (DISTRIBUTION) LTD,0001182751,1008.55
Department of Health,East Sussex Hospitals NHS Trust,02/11/2011,STOCK-ASCRIBE CONQUEST,Pharmacy Stock,ALLIANCE HEALTHCARE (DISTRIBUTION) LTD,0001182763,1433.81
Department of Health,East Sussex Hospitals NHS Trust,02/11/2011,STOCK-ASCRIBE CONQUEST,Pharmacy Stock,ALLIANCE HEALTHCARE (DISTRIBUTION) LTD,0001182766,750.51
Department of Health,East Sussex Hospitals NHS Trust,02/11/2011,STOCK-ASCRIBE CONQUEST,Pharmacy Stock,ALLIANCE HEALTHCARE (DISTRIBUTION) LTD,0001182775,972.36
Department of Health,East Sussex Hospitals NHS Trust,02/11/2011,STOCK-ASCRIBE CONQUEST,Pharmacy Stock,ALLIANCE HEALTHCARE (DISTRIBUTION) LTD,0001182776,608.03
Department of Health,East Sussex Hospitals NHS Trust,02/11/2011,STOCK-ASCRIBE CONQUEST,Pharmacy Stock,ALLIANCE HEALTHCARE (DISTRIBUTION) LTD,0001182782,530.81
Department of Health,East Sussex Hospitals NHS Trust,02/11/2011,STOCK-ASCRIBE CONQUEST,Pharmacy Stock,ALLIANCE HEALTHCARE (DISTRIBUTION) LTD,0001182785,1191.04
Department of Health,East Sussex Hospitals NHS Trust,02/11/2011,STOCK-ASCRIBE CONQUEST,Pharmacy Stock,ALLIANCE HEALTHCARE (DISTRIBUTION) LTD,0001182789,5415.85
Department of Health,East Sussex Hospitals NHS Trust,02/11/2011,STOCK-ASCRIBE CONQUEST,Pharmacy Stock,ALLIANCE HEALTHCARE (DISTRIBUTION) LTD,0001182791,3056.17
Department of Health,East Sussex Hospitals NHS Trust,02/11/2011,STOCK-ASCRIBE CONQUEST,Pharmacy Stock,ALLIANCE HEALTHCARE (DISTRIBUTION) LTD,0001182792,510.21
Department of Health,East Sussex Hospitals NHS Trust,02/11/2011,STOCK-ASCRIBE CONQUEST,Pharmacy Stock,ALLIANCE HEALTHCARE (DISTRIBUTION) LTD,0001182794,736.58
Department of Health,East Sussex Hospitals NHS Trust,02/11/2011,STOCK-ASCRIBE CONQUEST,Pharmacy Stock,ALLIANCE HEALTHCARE (DISTRIBUTION) LTD,0001182800,701.07
Department of Health,East Sussex Hospitals NHS Trust,02/11/2011,STOCK-ASCRIBE CONQUEST,Pharmacy Stock,HEALTHCARE PRODUCT SERVICES LIMITED,0001182884,18144.00
Department of Health,East Sussex Hospitals NHS Trust,02/11/2011,STOCK-ASCRIBE CONQUEST,Pharmacy Stock,HEALTHCARE PRODUCT SERVICES LIMITED,0001183019,20966.40
Department of Health,East Sussex Hospitals NHS Trust,02/11/2011,STOCK-ASCRIBE CONQUEST,Pharmacy Stock,AMGEN LTD,0001183031,823.66
Department of Health,East Sussex Hospitals NHS Trust,02/11/2011,STOCK-ASCRIBE CONQUEST,Pharmacy Stock,AAH PHARMACEUTICALS LTD,0001183050,514.68
Department of Health,East Sussex Hospitals NHS Trust,02/11/2011,STOCK-ASCRIBE CONQUEST,Pharmacy Stock,AAH PHARMACEUTICALS LTD,0001183052,563.64
Department of Health,East Sussex Hospitals NHS Trust,02/11/2011,STOCK-ASCRIBE CONQUEST,Pharmacy Stock,AAH PHARMACEUTICALS LTD,0001183056,1054.87
Department of Health,East Sussex Hospitals NHS Trust,02/11/2011,STOCK-ASCRIBE CONQUEST,Pharmacy Stock,AAH PHARMACEUTICALS LTD,0001183062,840.00
Department of Health,East Sussex Hospitals NHS Trust,02/11/2011,STOCK-ASCRIBE CONQUEST,Pharmacy Stock,AAH PHARMACEUTICALS LTD,0001183077,500.40
Department of Health,East Sussex Hospitals NHS Trust,02/11/2011,STOCK-ASCRIBE CONQUEST,Pharmacy Stock,AAH PHARMACEUTICALS LTD,0001183082,912.00
Department of Health,East Sussex Hospitals NHS Trust,02/11/2011,STOCK-ASCRIBE CONQUEST,Pharmacy Stock,AAH PHARMACEUTICALS LTD,0001183093,1014.30
Department of Health,East Sussex Hospitals NHS Trust,02/11/2011,STOCK-ASCRIBE CONQUEST,Pharmacy Stock,AAH PHARMACEUTICALS LTD,0001183094,1956.24
Department of Health,East Sussex Hospitals NHS Trust,02/11/2011,STOCK-ASCRIBE CONQUEST,Pharmacy Stock,AAH PHARMACEUTICALS LTD,0001183101,810.73
Department of Health,East Sussex Hospitals NHS Trust,02/11/2011,STOCK-ASCRIBE CONQUEST,Pharmacy Stock,AAH PHARMACEUTICALS LTD,0001183103,3087.58
Department of Health,East Sussex Hospitals NHS Trust,02/11/2011,STOCK-ASCRIBE CONQUEST,Pharmacy Stock,AAH PHARMACEUTICALS LTD,0001183104,1582.26
Department of Health,East Sussex Hospitals NHS Trust,02/11/2011,STOCK-ASCRIBE CONQUEST,Pharmacy Stock,AAH PHARMACEUTICALS LTD,0001183112,846.91
Department of Health,East Sussex Hospitals NHS Trust,02/11/2011,STOCK-ASCRIBE CONQUEST,Pharmacy Stock,AAH PHARMACEUTICALS LTD,0001183140,666.55
Department of Health,East Sussex Hospitals NHS Trust,02/11/2011,STOCK-ASCRIBE CONQUEST,Pharmacy Stock,AAH PHARMACEUTICALS LTD,0001183141,810.73
Department of Health,East Sussex Hospitals NHS Trust,02/11/2011,STOCK-ASCRIBE CONQUEST,Pharmacy Stock,AAH PHARMACEUTICALS LTD,0001183144,755.71
Department of Health,East Sussex Hospitals NHS Trust,02/11/2011,STOCK-ASCRIBE CONQUEST,Pharmacy Stock,AAH PHARMACEUTICALS LTD,0001183148,1338.48
Department of Health,East Sussex Hospitals NHS Trust,02/11/2011,STOCK-ASCRIBE CONQUEST,Pharmacy Stock,AAH PHARMACEUTICALS LTD,0001183154,864.00
Department of Health,East Sussex Hospitals NHS Trust,02/11/2011,STOCK-ASCRIBE CONQUEST,Pharmacy Stock,AAH PHARMACEUTICALS LTD,0001183158,8366.99
Department of Health,East Sussex Hospitals NHS Trust,02/11/2011,STOCK-ASCRIBE CONQUEST,Pharmacy Stock,AAH PHARMACEUTICALS LTD,0001183160,982.80
Department of Health,East Sussex Hospitals NHS Trust,02/11/2011,STOCK-ASCRIBE CONQUEST,Pharmacy Stock,AAH PHARMACEUTICALS LTD,0001183161,1054.87
Department of Health,East Sussex Hospitals NHS Trust,02/11/2011,STOCK-ASCRIBE CONQUEST,Pharmacy Stock,AAH PHARMACEUTICALS LTD,0001183167,3300.48
Department of Health,East Sussex Hospitals NHS Trust,02/11/2011,STOCK-ASCRIBE CONQUEST,Pharmacy Stock,AAH PHARMACEUTICALS LTD,0001183171,545.62
Department of Health,East Sussex Hospitals NHS Trust,02/11/2011,STOCK-ASCRIBE CONQUEST,Pharmacy Stock,AAH PHARMACEUTICALS LTD,0001183173,810.73
Department of Health,East Sussex Hospitals NHS Trust,02/11/2011,STOCK-ASCRIBE CONQUEST,Pharmacy Stock,AAH PHARMACEUTICALS LTD,0001183178,1282.68
Department of Health,East Sussex Hospitals NHS Trust,02/11/2011,STOCK-ASCRIBE CONQUEST,Pharmacy Stock,AAH PHARMACEUTICALS LTD,0001183182,667.86
Department of Health,East Sussex Hospitals NHS Trust,02/11/2011,STOCK-ASCRIBE CONQUEST,Pharmacy Stock,ALLIANCE HEALTHCARE (DISTRIBUTION) LTD,0001183261,1314.77
Department of Health,East Sussex Hospitals NHS Trust,02/11/2011,STOCK-ASCRIBE CONQUEST,Pharmacy Stock,ALLIANCE HEALTHCARE (DISTRIBUTION) LTD,0001183264,1389.81
Department of Health,East Sussex Hospitals NHS Trust,02/11/2011,STOCK-ASCRIBE CONQUEST,Pharmacy Stock,ALLIANCE HEALTHCARE (DISTRIBUTION) LTD,0001183272,915.82
Department of Health,East Sussex Hospitals NHS Trust,02/11/2011,STOCK-ASCRIBE CONQUEST,Pharmacy Stock,ALLIANCE HEALTHCARE (DISTRIBUTION) LTD,0001183282,866.55
Department of Health,East Sussex Hospitals NHS Trust,02/11/2011,STOCK-ASCRIBE CONQUEST,Pharmacy Stock,AAH PHARMACEUTICALS LTD,0001183310,28588.03
Department of Health,East Sussex Hospitals NHS Trust,02/11/2011,STOCK-ASCRIBE CONQUEST,Pharmacy Stock,AAH PHARMACEUTICALS LTD,0001183318,1160.40
Department of Health,East Sussex Hospitals NHS Trust,02/11/2011,STOCK-ASCRIBE CONQUEST,Pharmacy Stock,AAH PHARMACEUTICALS LTD,0001183328,787.28
Department of Health,East Sussex Hospitals NHS Trust,02/11/2011,STOCK-ASCRIBE CONQUEST,Pharmacy Stock,AAH PHARMACEUTICALS LTD,0001183329,1956.24
Department of Health,East Sussex Hospitals NHS Trust,02/11/2011,STOCK-ASCRIBE CONQUEST,Pharmacy Stock,AAH PHARMACEUTICALS LTD,0001183332,810.73
Department of Health,East Sussex Hospitals NHS Trust,02/11/2011,STOCK-ASCRIBE CONQUEST,Pharmacy Stock,AAH PHARMACEUTICALS LTD,0001183333,674.57
Department of Health,East Sussex Hospitals NHS Trust,02/11/2011,STOCK-ASCRIBE CONQUEST,Pharmacy Stock,HEALTHCARE PRODUCT SERVICES LIMITED,0001183340,13608.00
Department of Health,East Sussex Hospitals NHS Trust,02/11/2011,STOCK-ASCRIBE CONQUEST,Pharmacy Stock,AAH PHARMACEUTICALS LTD,0001183345,1187.26
Department of Health,East Sussex Hospitals NHS Trust,02/11/2011,STOCK-ASCRIBE CONQUEST,Pharmacy Stock,AAH PHARMACEUTICALS LTD,0001183356,660.00
Department of Health,East Sussex Hospitals NHS Trust,02/11/2011,STOCK-ASCRIBE CONQUEST,Pharmacy Stock,AAH PHARMACEUTICALS LTD,0001183371,972.74
Department of Health,East Sussex Hospitals NHS Trust,02/11/2011,STOCK-ASCRIBE CONQUEST,Pharmacy Stock,AAH PHARMACEUTICALS LTD,0001183372,1594.36
Department of Health,East Sussex Hospitals NHS Trust,02/11/2011,STOCK-ASCRIBE CONQUEST,Pharmacy Stock,AAH PHARMACEUTICALS LTD,0001183377,912.00
Department of Health,East Sussex Hospitals NHS Trust,02/11/2011,STOCK-ASCRIBE CONQUEST,Pharmacy Stock,AAH PHARMACEUTICALS LTD,0001183385,4476.18
Department of Health,East Sussex Hospitals NHS Trust,02/11/2011,STOCK-ASCRIBE CONQUEST,Pharmacy Stock,AAH PHARMACEUTICALS LTD,0001183386,1612.86
Department of Health,East Sussex Hospitals NHS Trust,02/11/2011,STOCK-ASCRIBE CONQUEST,Pharmacy Stock,AAH PHARMACEUTICALS LTD,0001183391,2099.88
Department of Health,East Sussex Hospitals NHS Trust,02/11/2011,STOCK-ASCRIBE CONQUEST,Pharmacy Stock,AAH PHARMACEUTICALS LTD,0001183395,949.48
Department of Health,East Sussex Hospitals NHS Trust,02/11/2011,STOCK-ASCRIBE CONQUEST,Pharmacy Stock,AAH PHARMACEUTICALS LTD,0001183396,906.55
Department of Health,East Sussex Hospitals NHS Trust,02/11/2011,STOCK-ASCRIBE CONQUEST,Pharmacy Stock,AAH PHARMACEUTICALS LTD,0001183400,1848.00
Department of Health,East Sussex Hospitals NHS Trust,02/11/2011,STOCK-ASCRIBE CONQUEST,Pharmacy Stock,AAH PHARMACEUTICALS LTD,0001183405,1054.87
Department of Health,East Sussex Hospitals NHS Trust,02/11/2011,STOCK-ASCRIBE CONQUEST,Pharmacy Stock,AAH PHARMACEUTICALS LTD,0001183411,2507.54
Department of Health,East Sussex Hospitals NHS Trust,02/11/2011,STOCK-ASCRIBE CONQUEST,Pharmacy Stock,AAH PHARMACEUTICALS LTD,0001183416,563.64
Department of Health,East Sussex Hospitals NHS Trust,02/11/2011,STOCK-ASCRIBE CONQUEST,Pharmacy Stock,AAH PHARMACEUTICALS LTD,0001183424,1993.57
Department of Health,East Sussex Hospitals NHS Trust,02/11/2011,STOCK-ASCRIBE CONQUEST,Pharmacy Stock,AAH PHARMACEUTICALS LTD,0001183433,704.41
Department of Health,East Sussex Hospitals NHS Trust,02/11/2011,STOCK-ASCRIBE CONQUEST,Pharmacy Stock,AAH PHARMACEUTICALS LTD,0001183442,629.40
Department of Health,East Sussex Hospitals NHS Trust,02/11/2011,STOCK-ASCRIBE CONQUEST,Pharmacy Stock,AAH PHARMACEUTICALS LTD,0001183448,864.00
Department of Health,East Sussex Hospitals NHS Trust,02/11/2011,STOCK-ASCRIBE CONQUEST,Pharmacy Stock,AAH PHARMACEUTICALS LTD,0001183456,2709.24
Department of Health,East Sussex Hospitals NHS Trust,02/11/2011,STOCK-ASCRIBE CONQUEST,Pharmacy Stock,AAH PHARMACEUTICALS LTD,0001183464,763.17
Department of Health,East Sussex Hospitals NHS Trust,02/11/2011,STOCK-ASCRIBE CONQUEST,Pharmacy Stock,AAH PHARMACEUTICALS LTD,0001183478,1275.96
Department of Health,East Sussex Hospitals NHS Trust,02/11/2011,STOCK-ASCRIBE CONQUEST,Pharmacy Stock,AAH PHARMACEUTICALS LTD,0001183483,871.98
Department of Health,East Sussex Hospitals NHS Trust,02/11/2011,STOCK-ASCRIBE CONQUEST,Pharmacy Stock,AAH PHARMACEUTICALS LTD,0001183486,972.74
Department of Health,East Sussex Hospitals NHS Trust,02/11/2011,STOCK-ASCRIBE CONQUEST,Pharmacy Stock,AAH PHARMACEUTICALS LTD,0001183488,978.71
Department of Health,East Sussex Hospitals NHS Trust,02/11/2011,STOCK-ASCRIBE CONQUEST,Pharmacy Stock,AAH PHARMACEUTICALS LTD,0001183500,516.96
Department of Health,East Sussex Hospitals NHS Trust,02/11/2011,STOCK-ASCRIBE CONQUEST,Pharmacy Stock,AAH PHARMACEUTICALS LTD,0001183501,1459.12
Department of Health,East Sussex Hospitals NHS Trust,02/11/2011,STOCK-ASCRIBE CONQUEST,Pharmacy Stock,AAH PHARMACEUTICALS LTD,0001183502,732.19
Department of Health,East Sussex Hospitals NHS Trust,02/11/2011,STOCK-ASCRIBE CONQUEST,Pharmacy Stock,AAH PHARMACEUTICALS LTD,0001183503,1171.39
Department of Health,East Sussex Hospitals NHS Trust,02/11/2011,STOCK-ASCRIBE CONQUEST,Pharmacy Stock,AAH PHARMACEUTICALS LTD,0001183504,1059.91
Department of Health,East Sussex Hospitals NHS Trust,02/11/2011,STOCK-ASCRIBE CONQUEST,Pharmacy Stock,AAH PHARMACEUTICALS LTD,0001183515,810.73
Department of Health,East Sussex Hospitals NHS Trust,02/11/2011,STOCK-ASCRIBE CONQUEST,Pharmacy Stock,AAH PHARMACEUTICALS LTD,0001183516,2731.56
Department of Health,East Sussex Hospitals NHS Trust,02/11/2011,STOCK-ASCRIBE CONQUEST,Pharmacy Stock,AAH PHARMACEUTICALS LTD,0001183519,1402.80
Department of Health,East Sussex Hospitals NHS Trust,02/11/2011,STOCK-ASCRIBE CONQUEST,Pharmacy Stock,AAH PHARMACEUTICALS LTD,0001183526,616.18
Department of Health,East Sussex Hospitals NHS Trust,02/11/2011,STOCK-ASCRIBE CONQUEST,Pharmacy Stock,AAH PHARMACEUTICALS LTD,0001183532,588.89
Department of Health,East Sussex Hospitals NHS Trust,02/11/2011,STOCK-ASCRIBE CONQUEST,Pharmacy Stock,AAH PHARMACEUTICALS LTD,0001183533,982.80
Department of Health,East Sussex Hospitals NHS Trust,02/11/2011,STOCK-ASCRIBE CONQUEST,Pharmacy Stock,AAH PHARMACEUTICALS LTD,0001183550,2144.26
Department of Health,East Sussex Hospitals NHS Trust,02/11/2011,STOCK-ASCRIBE CONQUEST,Pharmacy Stock,AAH PHARMACEUTICALS LTD,0001183552,2254.63
Department of Health,East Sussex Hospitals NHS Trust,02/11/2011,STOCK-ASCRIBE CONQUEST,Pharmacy Stock,ALLIANCE HEALTHCARE (DISTRIBUTION) LTD,0001183567,1064.05
Department of Health,East Sussex Hospitals NHS Trust,02/11/2011,STOCK-ASCRIBE CONQUEST,Pharmacy Stock,TRISTEL SOLUTIONS LTD,0001183719,1674.90
Department of Health,East Sussex Hospitals NHS Trust,02/11/2011,STOCK-ASCRIBE CONQUEST,Pharmacy Stock,GAMBRO LUNDIA AB,0001183751,2304.00
Department of Health,East Sussex Hospitals NHS Trust,02/11/2011,STOCK-ASCRIBE CONQUEST,Pharmacy Stock,HEALTHCARE AT HOME LTD,0001183762,577.84
Department of Health,East Sussex Hospitals NHS Trust,02/11/2011,STOCK-ASCRIBE CONQUEST,Pharmacy Stock,HEALTHCARE AT HOME LTD,0001183763,577.84
Department of Health,East Sussex Hospitals NHS Trust,02/11/2011,STOCK-ASCRIBE CONQUEST,Pharmacy Stock,HEALTHCARE AT HOME LTD,0001183764,577.84
Department of Health,East Sussex Hospitals NHS Trust,02/11/2011,STOCK-ASCRIBE CONQUEST,Pharmacy Stock,HEALTHCARE AT HOME LTD,0001183765,577.84
Department of Health,East Sussex Hospitals NHS Trust,02/11/2011,STOCK-ASCRIBE CONQUEST,Pharmacy Stock,HEALTHCARE AT HOME LTD,0001183766,567.35
Department of Health,East Sussex Hospitals NHS Trust,02/11/2011,STOCK-ASCRIBE CONQUEST,Pharmacy Stock,HEALTHCARE AT HOME LTD,0001183768,588.32
Department of Health,East Sussex Hospitals NHS Trust,02/11/2011,STOCK-ASCRIBE CONQUEST,Pharmacy Stock,ALLIANCE HEALTHCARE (DISTRIBUTION) LTD,0001183774,521.52
Department of Health,East Sussex Hospitals NHS Trust,02/11/2011,STOCK-ASCRIBE CONQUEST,Pharmacy Stock,AAH PHARMACEUTICALS LTD,0001183776,2456.96
Department of Health,East Sussex Hospitals NHS Trust,02/11/2011,STOCK-ASCRIBE CONQUEST,Pharmacy Stock,AAH PHARMACEUTICALS LTD,0001183777,1543.69
Department of Health,East Sussex Hospitals NHS Trust,02/11/2011,STOCK-ASCRIBE CONQUEST,Pharmacy Stock,AAH PHARMACEUTICALS LTD,0001183778,1895.13
Department of Health,East Sussex Hospitals NHS Trust,02/11/2011,STOCK-ASCRIBE CONQUEST,Pharmacy Stock,AAH PHARMACEUTICALS LTD,0001183779,2330.71
Department of Health,East Sussex Hospitals NHS Trust,02/11/2011,STOCK-ASCRIBE CONQUEST,Pharmacy Stock,AAH PHARMACEUTICALS LTD,0001183780,1945.05
Department of Health,East Sussex Hospitals NHS Trust,02/11/2011,STOCK-ASCRIBE CONQUEST,Pharmacy Stock,AAH PHARMACEUTICALS LTD,0001183781,2595.20
Department of Health,East Sussex Hospitals NHS Trust,02/11/2011,STOCK-ASCRIBE CONQUEST,Pharmacy Stock,AAH PHARMACEUTICALS LTD,0001183782,3311.45
Department of Health,East Sussex Hospitals NHS Trust,02/11/2011,STOCK-ASCRIBE CONQUEST,Pharmacy Stock,AAH PHARMACEUTICALS LTD,0001183783,5162.32
Department of Health,East Sussex Hospitals NHS Trust,02/11/2011,STOCK-ASCRIBE CONQUEST,Pharmacy Stock,AAH PHARMACEUTICALS LTD,0001183784,577.81
Department of Health,East Sussex Hospitals NHS Trust,02/11/2011,STOCK-ASCRIBE CONQUEST,Pharmacy Stock,AAH PHARMACEUTICALS LTD,0001183785,5318.61
Department of Health,East Sussex Hospitals NHS Trust,02/11/2011,STOCK-ASCRIBE CONQUEST,Pharmacy Stock,AAH PHARMACEUTICALS LTD,0001183786,1534.06
Department of Health,East Sussex Hospitals NHS Trust,02/11/2011,STOCK-ASCRIBE CONQUEST,Pharmacy Stock,AAH PHARMACEUTICALS LTD,0001183787,1182.22
Department of Health,East Sussex Hospitals NHS Trust,02/11/2011,STOCK-ASCRIBE CONQUEST,Pharmacy Stock,AAH PHARMACEUTICALS LTD,0001183788,1250.78
Department of Health,East Sussex Hospitals NHS Trust,02/11/2011,STOCK-ASCRIBE CONQUEST,Pharmacy Stock,AAH PHARMACEUTICALS LTD,0001183789,1072.42
Department of Health,East Sussex Hospitals NHS Trust,02/11/2011,STOCK-ASCRIBE CONQUEST,Pharmacy Stock,AAH PHARMACEUTICALS LTD,0001183790,3015.60
Department of Health,East Sussex Hospitals NHS Trust,02/11/2011,STOCK-ASCRIBE CONQUEST,Pharmacy Stock,AAH PHARMACEUTICALS LTD,0001183791,3120.06
Department of Health,East Sussex Hospitals NHS Trust,02/11/2011,STOCK-ASCRIBE CONQUEST,Pharmacy Stock,AAH PHARMACEUTICALS LTD,0001183792,521.02
Department of Health,East Sussex Hospitals NHS Trust,02/11/2011,STOCK-ASCRIBE CONQUEST,Pharmacy Stock,AAH PHARMACEUTICALS LTD,0001183793,2049.58
Department of Health,East Sussex Hospitals NHS Trust,02/11/2011,STOCK-ASCRIBE CONQUEST,Pharmacy Stock,AAH PHARMACEUTICALS LTD,0001183794,2538.75
Department of Health,East Sussex Hospitals NHS Trust,02/11/2011,STOCK-ASCRIBE CONQUEST,Pharmacy Stock,AAH PHARMACEUTICALS LTD,0001183795,2851.48
Department of Health,East Sussex Hospitals NHS Trust,02/11/2011,STOCK-ASCRIBE CONQUEST,Pharmacy Stock,AAH PHARMACEUTICALS LTD,0001183796,1232.08
Department of Health,East Sussex Hospitals NHS Trust,02/11/2011,STOCK-ASCRIBE CONQUEST,Pharmacy Stock,AAH PHARMACEUTICALS LTD,0001183797,1478.91
Department of Health,East Sussex Hospitals NHS Trust,02/11/2011,STOCK-ASCRIBE CONQUEST,Pharmacy Stock,AAH PHARMACEUTICALS LTD,0001183798,1364.21
Department of Health,East Sussex Hospitals NHS Trust,02/11/2011,STOCK-ASCRIBE CONQUEST,Pharmacy Stock,AAH PHARMACEUTICALS LTD,0001183799,2609.91
Department of Health,East Sussex Hospitals NHS Trust,02/11/2011,STOCK-ASCRIBE CONQUEST,Pharmacy Stock,AAH PHARMACEUTICALS LTD,0001183800,1829.82
Department of Health,East Sussex Hospitals NHS Trust,02/11/2011,STOCK-ASCRIBE CONQUEST,Pharmacy Stock,AAH PHARMACEUTICALS LTD,0001183801,2363.15
Department of Health,East Sussex Hospitals NHS Trust,02/11/2011,STOCK-ASCRIBE CONQUEST,Pharmacy Stock,AAH PHARMACEUTICALS LTD,0001183802,1283.86
Department of Health,East Sussex Hospitals NHS Trust,02/11/2011,STOCK-ASCRIBE CONQUEST,Pharmacy Stock,AAH PHARMACEUTICALS LTD,0001183803,2400.86
Department of Health,East Sussex Hospitals NHS Trust,02/11/2011,STOCK-ASCRIBE CONQUEST,Pharmacy Stock,AAH PHARMACEUTICALS LTD,0001183804,1007.70
Department of Health,East Sussex Hospitals NHS Trust,02/11/2011,STOCK-ASCRIBE CONQUEST,Pharmacy Stock,AAH PHARMACEUTICALS LTD,0001183805,1184.36
Department of Health,East Sussex Hospitals NHS Trust,02/11/2011,STOCK-ASCRIBE CONQUEST,Pharmacy Stock,AAH PHARMACEUTICALS LTD,0001183806,1357.15
Department of Health,East Sussex Hospitals NHS Trust,02/11/2011,STOCK-ASCRIBE CONQUEST,Pharmacy Stock,HEALTHCARE AT HOME LTD,0001183820,715.00
Department of Health,East Sussex Hospitals NHS Trust,02/11/2011,STOCK-ASCRIBE CONQUEST,Pharmacy Stock,HEALTHCARE AT HOME LTD,0001183821,704.28
Department of Health,East Sussex Hospitals NHS Trust,02/11/2011,STOCK-ASCRIBE CONQUEST,Pharmacy Stock,HEALTHCARE AT HOME LTD,0001183822,715.00
Department of Health,East Sussex Hospitals NHS Trust,02/11/2011,STOCK-ASCRIBE CONQUEST,Pharmacy Stock,HEALTHCARE AT HOME LTD,0001183823,704.28
Department of Health,East Sussex Hospitals NHS Trust,02/11/2011,STOCK-ASCRIBE CONQUEST,Pharmacy Stock,HEALTHCARE AT HOME LTD,0001183824,715.00
Department of Health,East Sussex Hospitals NHS Trust,02/11/2011,STOCK-ASCRIBE CONQUEST,Pharmacy Stock,HEALTHCARE AT HOME LTD,0001183825,704.28
Department of Health,East Sussex Hospitals NHS Trust,02/11/2011,STOCK-ASCRIBE CONQUEST,Pharmacy Stock,HEALTHCARE AT HOME LTD,0001183826,715.00
Department of Health,East Sussex Hospitals NHS Trust,02/11/2011,STOCK-ASCRIBE CONQUEST,Pharmacy Stock,HEALTHCARE AT HOME LTD,0001183827,715.00
Department of Health,East Sussex Hospitals NHS Trust,02/11/2011,STOCK-ASCRIBE CONQUEST,Pharmacy Stock,HEALTHCARE AT HOME LTD,0001183828,715.00
Department of Health,East Sussex Hospitals NHS Trust,02/11/2011,STOCK-ASCRIBE CONQUEST,Pharmacy Stock,HEALTHCARE AT HOME LTD,0001183829,704.28
Department of Health,East Sussex Hospitals NHS Trust,02/11/2011,STOCK-ASCRIBE CONQUEST,Pharmacy Stock,HEALTHCARE AT HOME LTD,0001183830,715.00
Department of Health,East Sussex Hospitals NHS Trust,02/11/2011,STOCK-ASCRIBE CONQUEST,Pharmacy Stock,HEALTHCARE AT HOME LTD,0001183831,715.00
Department of Health,East Sussex Hospitals NHS Trust,02/11/2011,STOCK-ASCRIBE CONQUEST,Pharmacy Stock,HEALTHCARE AT HOME LTD,0001183832,715.00
Department of Health,East Sussex Hospitals NHS Trust,02/11/2011,STOCK-ASCRIBE CONQUEST,Pharmacy Stock,HEALTHCARE AT HOME LTD,0001183833,715.00
Department of Health,East Sussex Hospitals NHS Trust,02/11/2011,STOCK-ASCRIBE CONQUEST,Pharmacy Stock,HEALTHCARE AT HOME LTD,0001183834,715.00
Department of Health,East Sussex Hospitals NHS Trust,02/11/2011,STOCK-ASCRIBE CONQUEST,Pharmacy Stock,HEALTHCARE AT HOME LTD,0001183836,1408.56
Department of Health,East Sussex Hospitals NHS Trust,02/11/2011,STOCK-ASCRIBE CONQUEST,Pharmacy Stock,HEALTHCARE AT HOME LTD,0001183837,704.28
Department of Health,East Sussex Hospitals NHS Trust,02/11/2011,STOCK-ASCRIBE CONQUEST,Pharmacy Stock,HEALTHCARE AT HOME LTD,0001183838,815.64
Department of Health,East Sussex Hospitals NHS Trust,02/11/2011,STOCK-ASCRIBE CONQUEST,Pharmacy Stock,HEALTHCARE AT HOME LTD,0001183857,704.28
Department of Health,East Sussex Hospitals NHS Trust,02/11/2011,STOCK-ASCRIBE CONQUEST,Pharmacy Stock,HEALTHCARE AT HOME LTD,0001183858,704.28
Department of Health,East Sussex Hospitals NHS Trust,02/11/2011,STOCK-ASCRIBE CONQUEST,Pharmacy Stock,HEALTHCARE AT HOME LTD,0001183859,704.28
Department of Health,East Sussex Hospitals NHS Trust,02/11/2011,STOCK-ASCRIBE CONQUEST,Pharmacy Stock,HEALTHCARE AT HOME LTD,0001183860,715.00
Department of Health,East Sussex Hospitals NHS Trust,02/11/2011,STOCK-ASCRIBE CONQUEST,Pharmacy Stock,HEALTHCARE AT HOME LTD,0001183861,1408.56
Department of Health,East Sussex Hospitals NHS Trust,02/11/2011,STOCK-ASCRIBE CONQUEST,Pharmacy Stock,HEALTHCARE AT HOME LTD,0001183862,715.00
Department of Health,East Sussex Hospitals NHS Trust,02/11/2011,STOCK-ASCRIBE CONQUEST,Pharmacy Stock,HEALTHCARE AT HOME LTD,0001183863,815.64
Department of Health,East Sussex Hospitals NHS Trust,02/11/2011,STOCK-ASCRIBE CONQUEST,Pharmacy Stock,AAH PHARMACEUTICALS LTD,0001183887,2711.27
Department of Health,East Sussex Hospitals NHS Trust,02/11/2011,STOCK-ASCRIBE CONQUEST,Pharmacy Stock,AAH PHARMACEUTICALS LTD,0001183888,1116.01
Department of Health,East Sussex Hospitals NHS Trust,02/11/2011,STOCK-ASCRIBE CONQUEST,Pharmacy Stock,HEALTHCARE AT HOME LTD,0001183889,588.32
Department of Health,East Sussex Hospitals NHS Trust,02/11/2011,STOCK-ASCRIBE CONQUEST,Pharmacy Stock,HEALTHCARE AT HOME LTD,0001183890,588.32
Department of Health,East Sussex Hospitals NHS Trust,02/11/2011,STOCK-ASCRIBE CONQUEST,Pharmacy Stock,HEALTHCARE AT HOME LTD,0001183891,577.84
Department of Health,East Sussex Hospitals NHS Trust,02/11/2011,STOCK-ASCRIBE CONQUEST,Pharmacy Stock,HEALTHCARE AT HOME LTD,0001183892,567.35
Department of Health,East Sussex Hospitals NHS Trust,02/11/2011,STOCK-ASCRIBE CONQUEST,Pharmacy Stock,HEALTHCARE AT HOME LTD,0001183893,588.32
Department of Health,East Sussex Hospitals NHS Trust,02/11/2011,STOCK-ASCRIBE CONQUEST,Pharmacy Stock,HEALTHCARE AT HOME LTD,0001183894,567.35
Department of Health,East Sussex Hospitals NHS Trust,02/11/2011,STOCK-ASCRIBE CONQUEST,Pharmacy Stock,HEALTHCARE AT HOME LTD,0001183895,588.32
Department of Health,East Sussex Hospitals NHS Trust,02/11/2011,STOCK-ASCRIBE CONQUEST,Pharmacy Stock,HEALTHCARE AT HOME LTD,0001183896,567.35
Department of Health,East Sussex Hospitals NHS Trust,02/11/2011,STOCK-ASCRIBE CONQUEST,Pharmacy Stock,HEALTHCARE AT HOME LTD,0001183897,588.32
Department of Health,East Sussex Hospitals NHS Trust,02/11/2011,STOCK-ASCRIBE CONQUEST,Pharmacy Stock,HEALTHCARE AT HOME LTD,0001183898,567.35
Department of Health,East Sussex Hospitals NHS Trust,02/11/2011,STOCK-ASCRIBE CONQUEST,Pharmacy Stock,HEALTHCARE AT HOME LTD,0001183899,577.84
Department of Health,East Sussex Hospitals NHS Trust,02/11/2011,STOCK-ASCRIBE CONQUEST,Pharmacy Stock,HEALTHCARE AT HOME LTD,0001183900,588.32
Department of Health,East Sussex Hospitals NHS Trust,02/11/2011,STOCK-ASCRIBE CONQUEST,Pharmacy Stock,HEALTHCARE AT HOME LTD,0001183902,567.35
Department of Health,East Sussex Hospitals NHS Trust,02/11/2011,STOCK-ASCRIBE CONQUEST,Pharmacy Stock,HEALTHCARE AT HOME LTD,0001183903,577.84
Department of Health,East Sussex Hospitals NHS Trust,02/11/2011,STOCK-ASCRIBE CONQUEST,Pharmacy Stock,AAH PHARMACEUTICALS LTD,0001183920,-953.78
Department of Health,East Sussex Hospitals NHS Trust,02/11/2011,STOCK-ASCRIBE CONQUEST,Pharmacy Stock,HEALTHCARE AT HOME LTD,0001183969,815.64
Department of Health,East Sussex Hospitals NHS Trust,02/11/2011,STOCK-ASCRIBE CONQUEST,Pharmacy Stock,HEALTHCARE AT HOME LTD,0001183970,715.00
Department of Health,East Sussex Hospitals NHS Trust,02/11/2011,STOCK-ASCRIBE CONQUEST,Pharmacy Stock,HEALTHCARE AT HOME LTD,0001183971,704.28
Department of Health,East Sussex Hospitals NHS Trust,02/11/2011,STOCK-ASCRIBE CONQUEST,Pharmacy Stock,HEALTHCARE AT HOME LTD,0001183972,715.00
Department of Health,East Sussex Hospitals NHS Trust,02/11/2011,STOCK-ASCRIBE CONQUEST,Pharmacy Stock,HEALTHCARE AT HOME LTD,0001183973,715.00
Department of Health,East Sussex Hospitals NHS Trust,02/11/2011,STOCK-ASCRIBE CONQUEST,Pharmacy Stock,IDIS LTD,0001184273,517.94
Department of Health,East Sussex Hospitals NHS Trust,02/11/2011,STOCK-ASCRIBE CONQUEST,Pharmacy Stock,KENT PHARMACEUTICALS LTD,0001184279,1599.84
Department of Health,East Sussex Hospitals NHS Trust,02/11/2011,STOCK-ASCRIBE CONQUEST,Pharmacy Stock,MIDCO PRINT AND PACKAGING LTD,0001184300,613.92
Department of Health,East Sussex Hospitals NHS Trust,02/11/2011,STOCK-ASCRIBE CONQUEST,Pharmacy Stock,HEALTHCARE AT HOME LTD,0001184389,567.35
Department of Health,East Sussex Hospitals NHS Trust,02/11/2011,STOCK-ASCRIBE CONQUEST,Pharmacy Stock,HEALTHCARE AT HOME LTD,0001184395,704.28
Department of Health,East Sussex Hospitals NHS Trust,02/11/2011,STOCK-ASCRIBE CONQUEST,Pharmacy Stock,HEALTHCARE AT HOME LTD,0001184396,2817.12
Department of Health,East Sussex Hospitals NHS Trust,02/11/2011,STOCK-ASCRIBE CONQUEST,Pharmacy Stock,HEALTHCARE AT HOME LTD,0001184397,704.28
Department of Health,East Sussex Hospitals NHS Trust,02/11/2011,STOCK-ASCRIBE CONQUEST,Pharmacy Stock,HEALTHCARE AT HOME LTD,0001184398,715.00
Department of Health,East Sussex Hospitals NHS Trust,02/11/2011,STOCK-ASCRIBE CONQUEST,Pharmacy Stock,HEALTHCARE AT HOME LTD,0001184399,704.28
Department of Health,East Sussex Hospitals NHS Trust,02/11/2011,STOCK-ASCRIBE CONQUEST,Pharmacy Stock,HEALTHCARE AT HOME LTD,0001184400,815.64
Department of Health,East Sussex Hospitals NHS Trust,02/11/2011,STOCK-ASCRIBE CONQUEST,Pharmacy Stock,HEALTHCARE AT HOME LTD,0001184401,704.28
Department of Health,East Sussex Hospitals NHS Trust,02/11/2011,STOCK-ASCRIBE CONQUEST,Pharmacy Stock,HEALTHCARE AT HOME LTD,0001184402,715.00
Department of Health,East Sussex Hospitals NHS Trust,02/11/2011,STOCK-ASCRIBE CONQUEST,Pharmacy Stock,HEALTHCARE AT HOME LTD,0001184403,1408.56
Department of Health,East Sussex Hospitals NHS Trust,02/11/2011,STOCK-ASCRIBE CONQUEST,Pharmacy Stock,HEALTHCARE AT HOME LTD,0001184404,715.00
Department of Health,East Sussex Hospitals NHS Trust,02/11/2011,STOCK-ASCRIBE CONQUEST,Pharmacy Stock,HEALTHCARE AT HOME LTD,0001184405,715.00
Department of Health,East Sussex Hospitals NHS Trust,02/11/2011,STOCK-ASCRIBE CONQUEST,Pharmacy Stock,HEALTHCARE AT HOME LTD,0001184406,715.00
Department of Health,East Sussex Hospitals NHS Trust,02/11/2011,STOCK-ASCRIBE CONQUEST,Pharmacy Stock,HEALTHCARE AT HOME LTD,0001184407,704.28
Department of Health,East Sussex Hospitals NHS Trust,02/11/2011,STOCK-ASCRIBE CONQUEST,Pharmacy Stock,HEALTHCARE AT HOME LTD,0001184408,715.00
Department of Health,East Sussex Hospitals NHS Trust,02/11/2011,STOCK-ASCRIBE CONQUEST,Pharmacy Stock,HEALTHCARE AT HOME LTD,0001184409,1408.56
Department of Health,East Sussex Hospitals NHS Trust,02/11/2011,STOCK-ASCRIBE CONQUEST,Pharmacy Stock,HEALTHCARE AT HOME LTD,0001184410,704.28
Department of Health,East Sussex Hospitals NHS Trust,02/11/2011,STOCK-ASCRIBE CONQUEST,Pharmacy Stock,HEALTHCARE AT HOME LTD,0001184411,715.00
Department of Health,East Sussex Hospitals NHS Trust,02/11/2011,STOCK-ASCRIBE CONQUEST,Pharmacy Stock,HEALTHCARE AT HOME LTD,0001184412,1408.56
Department of Health,East Sussex Hospitals NHS Trust,02/11/2011,STOCK-ASCRIBE CONQUEST,Pharmacy Stock,HEALTHCARE AT HOME LTD,0001184414,704.28
Department of Health,East Sussex Hospitals NHS Trust,02/11/2011,STOCK-ASCRIBE CONQUEST,Pharmacy Stock,HEALTHCARE AT HOME LTD,0001184415,704.28
Department of Health,East Sussex Hospitals NHS Trust,02/11/2011,STOCK-ASCRIBE CONQUEST,Pharmacy Stock,HEALTHCARE AT HOME LTD,0001184416,1408.56
Department of Health,East Sussex Hospitals NHS Trust,02/11/2011,STOCK-ASCRIBE CONQUEST,Pharmacy Stock,HEALTHCARE AT HOME LTD,0001184417,715.00
Department of Health,East Sussex Hospitals NHS Trust,02/11/2011,STOCK-ASCRIBE CONQUEST,Pharmacy Stock,HEALTHCARE AT HOME LTD,0001184418,567.35
Department of Health,East Sussex Hospitals NHS Trust,02/11/2011,STOCK-ASCRIBE CONQUEST,Pharmacy Stock,HEALTHCARE AT HOME LTD,0001184419,577.84
Department of Health,East Sussex Hospitals NHS Trust,02/11/2011,STOCK-ASCRIBE CONQUEST,Pharmacy Stock,HEALTHCARE AT HOME LTD,0001184420,567.35
Department of Health,East Sussex Hospitals NHS Trust,02/11/2011,STOCK-ASCRIBE CONQUEST,Pharmacy Stock,HEALTHCARE AT HOME LTD,0001184421,588.32
Department of Health,East Sussex Hospitals NHS Trust,02/11/2011,STOCK-ASCRIBE CONQUEST,Pharmacy Stock,HEALTHCARE AT HOME LTD,0001184422,567.35
Department of Health,East Sussex Hospitals NHS Trust,02/11/2011,STOCK-ASCRIBE CONQUEST,Pharmacy Stock,HEALTHCARE AT HOME LTD,0001184423,577.84
Department of Health,East Sussex Hospitals NHS Trust,02/11/2011,STOCK-ASCRIBE CONQUEST,Pharmacy Stock,HEALTHCARE AT HOME LTD,0001184424,577.84
Department of Health,East Sussex Hospitals NHS Trust,02/11/2011,STOCK-ASCRIBE CONQUEST,Pharmacy Stock,HEALTHCARE AT HOME LTD,0001184453,715.00
Department of Health,East Sussex Hospitals NHS Trust,02/11/2011,STOCK-ASCRIBE CONQUEST,Pharmacy Stock,HEALTHCARE AT HOME LTD,0001184454,715.00
Department of Health,East Sussex Hospitals NHS Trust,02/11/2011,STOCK-ASCRIBE CONQUEST,Pharmacy Stock,HEALTHCARE AT HOME LTD,0001184455,715.00
Department of Health,East Sussex Hospitals NHS Trust,02/11/2011,STOCK-ASCRIBE CONQUEST,Pharmacy Stock,HEALTHCARE AT HOME LTD,0001184456,715.00
Department of Health,East Sussex Hospitals NHS Trust,02/11/2011,STOCK-ASCRIBE CONQUEST,Pharmacy Stock,HEALTHCARE AT HOME LTD,0001184487,715.00
Department of Health,East Sussex Hospitals NHS Trust,02/11/2011,STOCK-ASCRIBE CONQUEST,Pharmacy Stock,ALLIANCE HEALTHCARE (DISTRIBUTION) LTD,0001184500,-3766.56
Department of Health,East Sussex Hospitals NHS Trust,02/11/2011,STOCK-ASCRIBE EDGH,Pharmacy Stock,HEALTHCARE PRODUCT SERVICES,0001387221,2446.80
Department of Health,East Sussex Hospitals NHS Trust,02/11/2011,STOCK-ASCRIBE EDGH,Pharmacy Stock,BAXTER HEALTHCARE (BERKSHIRE)LTD,0001387227,1589.40
Department of Health,East Sussex Hospitals NHS Trust,02/11/2011,STOCK-ASCRIBE EDGH,Pharmacy Stock,ALLIANCE HEALTHCARE (DISTRIBUTION) LTD,0001387231,587.81
Department of Health,East Sussex Hospitals NHS Trust,02/11/2011,STOCK-ASCRIBE EDGH,Pharmacy Stock,ALLIANCE HEALTHCARE (DISTRIBUTION) LTD,0001387232,941.64
Department of Health,East Sussex Hospitals NHS Trust,02/11/2011,STOCK-ASCRIBE EDGH,Pharmacy Stock,ALLIANCE HEALTHCARE (DISTRIBUTION) LTD,0001387239,2194.54
Department of Health,East Sussex Hospitals NHS Trust,02/11/2011,STOCK-ASCRIBE EDGH,Pharmacy Stock,ALLIANCE HEALTHCARE (DISTRIBUTION) LTD,0001387252,630.32
Department of Health,East Sussex Hospitals NHS Trust,02/11/2011,STOCK-ASCRIBE EDGH,Pharmacy Stock,ALLIANCE HEALTHCARE (DISTRIBUTION) LTD,0001387254,941.64
Department of Health,East Sussex Hospitals NHS Trust,02/11/2011,STOCK-ASCRIBE EDGH,Pharmacy Stock,ALLIANCE HEALTHCARE (DISTRIBUTION) LTD,0001387255,1893.48
Department of Health,East Sussex Hospitals NHS Trust,02/11/2011,STOCK-ASCRIBE EDGH,Pharmacy Stock,HEALTHCARE PRODUCT SERVICES LIMITED,0001387268,653.22
Department of Health,East Sussex Hospitals NHS Trust,02/11/2011,STOCK-ASCRIBE EDGH,Pharmacy Stock,ROCHE PRODUCTS LTD,0001387283,41826.00
Department of Health,East Sussex Hospitals NHS Trust,02/11/2011,STOCK-ASCRIBE EDGH,Pharmacy Stock,AAH PHARMACEUTICALS LTD,0001387284,656.35
Department of Health,East Sussex Hospitals NHS Trust,02/11/2011,STOCK-ASCRIBE EDGH,Pharmacy Stock,AAH PHARMACEUTICALS LTD,0001387292,656.35
Department of Health,East Sussex Hospitals NHS Trust,02/11/2011,STOCK-ASCRIBE EDGH,Pharmacy Stock,AAH PHARMACEUTICALS LTD,0001387308,775.63
Department of Health,East Sussex Hospitals NHS Trust,02/11/2011,STOCK-ASCRIBE EDGH,Pharmacy Stock,AMGEN LTD,0001387311,1735.20
Department of Health,East Sussex Hospitals NHS Trust,02/11/2011,STOCK-ASCRIBE EDGH,Pharmacy Stock,HEALTHCARE AT HOME LTD,0001387337,2339.75
Department of Health,East Sussex Hospitals NHS Trust,02/11/2011,STOCK-ASCRIBE EDGH,Pharmacy Stock,ALLIANCE HEALTHCARE (DISTRIBUTION) LTD,0001387345,1380.96
Department of Health,East Sussex Hospitals NHS Trust,02/11/2011,STOCK-ASCRIBE EDGH,Pharmacy Stock,BAXTER HEALTHCARE (BERKSHIRE)LTD,0001387350,1299.03
Department of Health,East Sussex Hospitals NHS Trust,02/11/2011,STOCK-ASCRIBE EDGH,Pharmacy Stock,BAXTER HEALTHCARE (BERKSHIRE)LTD,0001387351,1470.00
Department of Health,East Sussex Hospitals NHS Trust,02/11/2011,STOCK-ASCRIBE EDGH,Pharmacy Stock,BAXTER HEALTHCARE (BERKSHIRE)LTD,0001387352,630.00
Department of Health,East Sussex Hospitals NHS Trust,02/11/2011,STOCK-ASCRIBE EDGH,Pharmacy Stock,BAXTER HEALTHCARE (BERKSHIRE)LTD,0001387353,1525.68
Department of Health,East Sussex Hospitals NHS Trust,02/11/2011,STOCK-ASCRIBE EDGH,Pharmacy Stock,AAH PHARMACEUTICALS LTD,0001387367,2062.80
Department of Health,East Sussex Hospitals NHS Trust,02/11/2011,STOCK-ASCRIBE EDGH,Pharmacy Stock,AAH PHARMACEUTICALS LTD,0001387368,1547.10
Department of Health,East Sussex Hospitals NHS Trust,02/11/2011,STOCK-ASCRIBE EDGH,Pharmacy Stock,AAH PHARMACEUTICALS LTD,0001387386,621.54
Department of Health,East Sussex Hospitals NHS Trust,02/11/2011,STOCK-ASCRIBE EDGH,Pharmacy Stock,AAH PHARMACEUTICALS LTD,0001387388,594.44
Department of Health,East Sussex Hospitals NHS Trust,02/11/2011,STOCK-ASCRIBE EDGH,Pharmacy Stock,AAH PHARMACEUTICALS LTD,0001387390,589.44
Department of Health,East Sussex Hospitals NHS Trust,02/11/2011,STOCK-ASCRIBE EDGH,Pharmacy Stock,AAH PHARMACEUTICALS LTD,0001387392,589.44
Department of Health,East Sussex Hospitals NHS Trust,02/11/2011,STOCK-ASCRIBE EDGH,Pharmacy Stock,AAH PHARMACEUTICALS LTD,0001387398,9827.14
Department of Health,East Sussex Hospitals NHS Trust,02/11/2011,STOCK-ASCRIBE EDGH,Pharmacy Stock,AAH PHARMACEUTICALS LTD,0001387400,675.61
Department of Health,East Sussex Hospitals NHS Trust,02/11/2011,STOCK-ASCRIBE EDGH,Pharmacy Stock,AAH PHARMACEUTICALS LTD,0001387407,504.00
Department of Health,East Sussex Hospitals NHS Trust,02/11/2011,STOCK-ASCRIBE EDGH,Pharmacy Stock,AAH PHARMACEUTICALS LTD,0001387414,2357.76
Department of Health,East Sussex Hospitals NHS Trust,02/11/2011,STOCK-ASCRIBE EDGH,Pharmacy Stock,HEALTHCARE AT HOME LTD,0001387419,704.28
Department of Health,East Sussex Hospitals NHS Trust,02/11/2011,STOCK-ASCRIBE EDGH,Pharmacy Stock,HEALTHCARE AT HOME LTD,0001387420,704.28
Department of Health,East Sussex Hospitals NHS Trust,02/11/2011,STOCK-ASCRIBE EDGH,Pharmacy Stock,HEALTHCARE AT HOME LTD,0001387421,715.00
Department of Health,East Sussex Hospitals NHS Trust,02/11/2011,STOCK-ASCRIBE EDGH,Pharmacy Stock,HEALTHCARE AT HOME LTD,0001387422,715.00
Department of Health,East Sussex Hospitals NHS Trust,02/11/2011,STOCK-ASCRIBE EDGH,Pharmacy Stock,HEALTHCARE AT HOME LTD,0001387423,704.28
Department of Health,East Sussex Hospitals NHS Trust,02/11/2011,STOCK-ASCRIBE EDGH,Pharmacy Stock,HEALTHCARE AT HOME LTD,0001387424,704.28
Department of Health,East Sussex Hospitals NHS Trust,02/11/2011,STOCK-ASCRIBE EDGH,Pharmacy Stock,HEALTHCARE AT HOME LTD,0001387425,715.00
Department of Health,East Sussex Hospitals NHS Trust,02/11/2011,STOCK-ASCRIBE EDGH,Pharmacy Stock,HEALTHCARE AT HOME LTD,0001387426,715.00
Department of Health,East Sussex Hospitals NHS Trust,02/11/2011,STOCK-ASCRIBE EDGH,Pharmacy Stock,HEALTHCARE AT HOME LTD,0001387427,715.00
Department of Health,East Sussex Hospitals NHS Trust,02/11/2011,STOCK-ASCRIBE EDGH,Pharmacy Stock,HEALTHCARE AT HOME LTD,0001387428,704.28
Department of Health,East Sussex Hospitals NHS Trust,02/11/2011,STOCK-ASCRIBE EDGH,Pharmacy Stock,HEALTHCARE AT HOME LTD,0001387429,715.00
Department of Health,East Sussex Hospitals NHS Trust,02/11/2011,STOCK-ASCRIBE EDGH,Pharmacy Stock,HEALTHCARE AT HOME LTD,0001387430,815.64
Department of Health,East Sussex Hospitals NHS Trust,02/11/2011,STOCK-ASCRIBE EDGH,Pharmacy Stock,HEALTHCARE AT HOME LTD,0001387431,715.00
Department of Health,East Sussex Hospitals NHS Trust,02/11/2011,STOCK-ASCRIBE EDGH,Pharmacy Stock,HEALTHCARE AT HOME LTD,0001387432,715.00
Department of Health,East Sussex Hospitals NHS Trust,02/11/2011,STOCK-ASCRIBE EDGH,Pharmacy Stock,HEALTHCARE AT HOME LTD,0001387433,715.00
Department of Health,East Sussex Hospitals NHS Trust,02/11/2011,STOCK-ASCRIBE EDGH,Pharmacy Stock,HEALTHCARE AT HOME LTD,0001387434,715.00
Department of Health,East Sussex Hospitals NHS Trust,02/11/2011,STOCK-ASCRIBE EDGH,Pharmacy Stock,HEALTHCARE AT HOME LTD,0001387435,715.00
Department of Health,East Sussex Hospitals NHS Trust,02/11/2011,STOCK-ASCRIBE EDGH,Pharmacy Stock,HEALTHCARE AT HOME LTD,0001387436,715.00
Department of Health,East Sussex Hospitals NHS Trust,02/11/2011,STOCK-ASCRIBE EDGH,Pharmacy Stock,HEALTHCARE AT HOME LTD,0001387437,715.00
Department of Health,East Sussex Hospitals NHS Trust,02/11/2011,STOCK-ASCRIBE EDGH,Pharmacy Stock,HEALTHCARE AT HOME LTD,0001387438,715.00
Department of Health,East Sussex Hospitals NHS Trust,02/11/2011,STOCK-ASCRIBE EDGH,Pharmacy Stock,HEALTHCARE AT HOME LTD,0001387439,715.00
Department of Health,East Sussex Hospitals NHS Trust,02/11/2011,STOCK-ASCRIBE EDGH,Pharmacy Stock,HEALTHCARE AT HOME LTD,0001387440,1430.00
Department of Health,East Sussex Hospitals NHS Trust,02/11/2011,STOCK-ASCRIBE EDGH,Pharmacy Stock,HEALTHCARE AT HOME LTD,0001387441,715.00
Department of Health,East Sussex Hospitals NHS Trust,02/11/2011,STOCK-ASCRIBE EDGH,Pharmacy Stock,HEALTHCARE AT HOME LTD,0001387442,715.00
Department of Health,East Sussex Hospitals NHS Trust,02/11/2011,STOCK-ASCRIBE EDGH,Pharmacy Stock,HEALTHCARE AT HOME LTD,0001387443,715.00
Department of Health,East Sussex Hospitals NHS Trust,02/11/2011,STOCK-ASCRIBE EDGH,Pharmacy Stock,HEALTHCARE AT HOME LTD,0001387444,715.00
Department of Health,East Sussex Hospitals NHS Trust,02/11/2011,STOCK-ASCRIBE EDGH,Pharmacy Stock,HEALTHCARE AT HOME LTD,0001387445,715.00
Department of Health,East Sussex Hospitals NHS Trust,02/11/2011,STOCK-ASCRIBE EDGH,Pharmacy Stock,HEALTHCARE AT HOME LTD,0001387446,1430.00
Department of Health,East Sussex Hospitals NHS Trust,02/11/2011,STOCK-ASCRIBE EDGH,Pharmacy Stock,HEALTHCARE AT HOME LTD,0001387447,715.00
Department of Health,East Sussex Hospitals NHS Trust,02/11/2011,STOCK-ASCRIBE EDGH,Pharmacy Stock,HEALTHCARE AT HOME LTD,0001387448,715.00
Department of Health,East Sussex Hospitals NHS Trust,02/11/2011,STOCK-ASCRIBE EDGH,Pharmacy Stock,HEALTHCARE AT HOME LTD,0001387449,715.00
Department of Health,East Sussex Hospitals NHS Trust,02/11/2011,STOCK-ASCRIBE EDGH,Pharmacy Stock,HEALTHCARE AT HOME LTD,0001387450,715.00
Department of Health,East Sussex Hospitals NHS Trust,02/11/2011,STOCK-ASCRIBE EDGH,Pharmacy Stock,HEALTHCARE AT HOME LTD,0001387451,715.00
Department of Health,East Sussex Hospitals NHS Trust,02/11/2011,STOCK-ASCRIBE EDGH,Pharmacy Stock,HEALTHCARE AT HOME LTD,0001387452,715.00
Department of Health,East Sussex Hospitals NHS Trust,02/11/2011,STOCK-ASCRIBE EDGH,Pharmacy Stock,HEALTHCARE AT HOME LTD,0001387453,715.00
Department of Health,East Sussex Hospitals NHS Trust,02/11/2011,STOCK-ASCRIBE EDGH,Pharmacy Stock,HEALTHCARE AT HOME LTD,0001387454,704.28
Department of Health,East Sussex Hospitals NHS Trust,02/11/2011,STOCK-ASCRIBE EDGH,Pharmacy Stock,HEALTHCARE AT HOME LTD,0001387455,715.00
Department of Health,East Sussex Hospitals NHS Trust,02/11/2011,STOCK-ASCRIBE EDGH,Pharmacy Stock,HEALTHCARE AT HOME LTD,0001387456,715.00
Department of Health,East Sussex Hospitals NHS Trust,02/11/2011,STOCK-ASCRIBE EDGH,Pharmacy Stock,HEALTHCARE AT HOME LTD,0001387457,2145.00
Department of Health,East Sussex Hospitals NHS Trust,02/11/2011,STOCK-ASCRIBE EDGH,Pharmacy Stock,HEALTHCARE AT HOME LTD,0001387458,1430.00
Department of Health,East Sussex Hospitals NHS Trust,02/11/2011,STOCK-ASCRIBE EDGH,Pharmacy Stock,HEALTHCARE AT HOME LTD,0001387459,715.00
Department of Health,East Sussex Hospitals NHS Trust,02/11/2011,STOCK-ASCRIBE EDGH,Pharmacy Stock,HEALTHCARE AT HOME LTD,0001387460,715.00
Department of Health,East Sussex Hospitals NHS Trust,02/11/2011,STOCK-ASCRIBE EDGH,Pharmacy Stock,HEALTHCARE AT HOME LTD,0001387461,715.00
Department of Health,East Sussex Hospitals NHS Trust,02/11/2011,STOCK-ASCRIBE EDGH,Pharmacy Stock,HEALTHCARE AT HOME LTD,0001387462,704.28
Department of Health,East Sussex Hospitals NHS Trust,02/11/2011,STOCK-ASCRIBE EDGH,Pharmacy Stock,HEALTHCARE AT HOME LTD,0001387463,715.00
Department of Health,East Sussex Hospitals NHS Trust,02/11/2011,STOCK-ASCRIBE EDGH,Pharmacy Stock,HEALTHCARE AT HOME LTD,0001387464,704.28
Department of Health,East Sussex Hospitals NHS Trust,02/11/2011,STOCK-ASCRIBE EDGH,Pharmacy Stock,HEALTHCARE AT HOME LTD,0001387465,715.00
Department of Health,East Sussex Hospitals NHS Trust,02/11/2011,STOCK-ASCRIBE EDGH,Pharmacy Stock,HEALTHCARE AT HOME LTD,0001387466,715.00
Department of Health,East Sussex Hospitals NHS Trust,02/11/2011,STOCK-ASCRIBE EDGH,Pharmacy Stock,HEALTHCARE AT HOME LTD,0001387467,715.00
Department of Health,East Sussex Hospitals NHS Trust,02/11/2011,STOCK-ASCRIBE EDGH,Pharmacy Stock,HEALTHCARE AT HOME LTD,0001387468,704.28
Department of Health,East Sussex Hospitals NHS Trust,02/11/2011,STOCK-ASCRIBE EDGH,Pharmacy Stock,HEALTHCARE AT HOME LTD,0001387469,715.00
Department of Health,East Sussex Hospitals NHS Trust,02/11/2011,STOCK-ASCRIBE EDGH,Pharmacy Stock,HEALTHCARE AT HOME LTD,0001387470,704.28
Department of Health,East Sussex Hospitals NHS Trust,02/11/2011,STOCK-ASCRIBE EDGH,Pharmacy Stock,HEALTHCARE AT HOME LTD,0001387471,715.00
Department of Health,East Sussex Hospitals NHS Trust,02/11/2011,STOCK-ASCRIBE EDGH,Pharmacy Stock,HEALTHCARE AT HOME LTD,0001387472,715.00
Department of Health,East Sussex Hospitals NHS Trust,02/11/2011,STOCK-ASCRIBE EDGH,Pharmacy Stock,HEALTHCARE AT HOME LTD,0001387473,715.00
Department of Health,East Sussex Hospitals NHS Trust,02/11/2011,STOCK-ASCRIBE EDGH,Pharmacy Stock,HEALTHCARE AT HOME LTD,0001387474,704.28
Department of Health,East Sussex Hospitals NHS Trust,02/11/2011,STOCK-ASCRIBE EDGH,Pharmacy Stock,HEALTHCARE AT HOME LTD,0001387475,715.00
Department of Health,East Sussex Hospitals NHS Trust,02/11/2011,STOCK-ASCRIBE EDGH,Pharmacy Stock,HEALTHCARE AT HOME LTD,0001387476,704.28
Department of Health,East Sussex Hospitals NHS Trust,02/11/2011,STOCK-ASCRIBE EDGH,Pharmacy Stock,HEALTHCARE AT HOME LTD,0001387477,704.28
Department of Health,East Sussex Hospitals NHS Trust,02/11/2011,STOCK-ASCRIBE EDGH,Pharmacy Stock,HEALTHCARE AT HOME LTD,0001387478,704.28
Department of Health,East Sussex Hospitals NHS Trust,02/11/2011,STOCK-ASCRIBE EDGH,Pharmacy Stock,HEALTHCARE AT HOME LTD,0001387479,715.00
Department of Health,East Sussex Hospitals NHS Trust,02/11/2011,STOCK-ASCRIBE EDGH,Pharmacy Stock,HEALTHCARE AT HOME LTD,0001387480,715.00
Department of Health,East Sussex Hospitals NHS Trust,02/11/2011,STOCK-ASCRIBE EDGH,Pharmacy Stock,HEALTHCARE AT HOME LTD,0001387481,715.00
Department of Health,East Sussex Hospitals NHS Trust,02/11/2011,STOCK-ASCRIBE EDGH,Pharmacy Stock,HEALTHCARE AT HOME LTD,0001387482,704.28
Department of Health,East Sussex Hospitals NHS Trust,02/11/2011,STOCK-ASCRIBE EDGH,Pharmacy Stock,HEALTHCARE AT HOME LTD,0001387483,715.00
Department of Health,East Sussex Hospitals NHS Trust,02/11/2011,STOCK-ASCRIBE EDGH,Pharmacy Stock,HEALTHCARE AT HOME LTD,0001387484,704.28
Department of Health,East Sussex Hospitals NHS Trust,02/11/2011,STOCK-ASCRIBE EDGH,Pharmacy Stock,HEALTHCARE AT HOME LTD,0001387485,715.00
Department of Health,East Sussex Hospitals NHS Trust,02/11/2011,STOCK-ASCRIBE EDGH,Pharmacy Stock,HEALTHCARE AT HOME LTD,0001387486,704.28
Department of Health,East Sussex Hospitals NHS Trust,02/11/2011,STOCK-ASCRIBE EDGH,Pharmacy Stock,HEALTHCARE AT HOME LTD,0001387487,715.00
Department of Health,East Sussex Hospitals NHS Trust,02/11/2011,STOCK-ASCRIBE EDGH,Pharmacy Stock,HEALTHCARE AT HOME LTD,0001387488,715.00
Department of Health,East Sussex Hospitals NHS Trust,02/11/2011,STOCK-ASCRIBE EDGH,Pharmacy Stock,HEALTHCARE AT HOME LTD,0001387489,715.00
Department of Health,East Sussex Hospitals NHS Trust,02/11/2011,STOCK-ASCRIBE EDGH,Pharmacy Stock,HEALTHCARE AT HOME LTD,0001387490,715.00
Department of Health,East Sussex Hospitals NHS Trust,02/11/2011,STOCK-ASCRIBE EDGH,Pharmacy Stock,HEALTHCARE AT HOME LTD,0001387491,704.28
Department of Health,East Sussex Hospitals NHS Trust,02/11/2011,STOCK-ASCRIBE EDGH,Pharmacy Stock,HEALTHCARE AT HOME LTD,0001387492,715.00
Department of Health,East Sussex Hospitals NHS Trust,02/11/2011,STOCK-ASCRIBE EDGH,Pharmacy Stock,HEALTHCARE AT HOME LTD,0001387493,715.00
Department of Health,East Sussex Hospitals NHS Trust,02/11/2011,STOCK-ASCRIBE EDGH,Pharmacy Stock,HEALTHCARE AT HOME LTD,0001387494,704.28
Department of Health,East Sussex Hospitals NHS Trust,02/11/2011,STOCK-ASCRIBE EDGH,Pharmacy Stock,HEALTHCARE AT HOME LTD,0001387495,715.00
Department of Health,East Sussex Hospitals NHS Trust,02/11/2011,STOCK-ASCRIBE EDGH,Pharmacy Stock,HEALTHCARE AT HOME LTD,0001387496,715.00
Department of Health,East Sussex Hospitals NHS Trust,02/11/2011,STOCK-ASCRIBE EDGH,Pharmacy Stock,HEALTHCARE AT HOME LTD,0001387497,715.00
Department of Health,East Sussex Hospitals NHS Trust,02/11/2011,STOCK-ASCRIBE EDGH,Pharmacy Stock,HEALTHCARE AT HOME LTD,0001387498,704.28
Department of Health,East Sussex Hospitals NHS Trust,02/11/2011,STOCK-ASCRIBE EDGH,Pharmacy Stock,HEALTHCARE AT HOME LTD,0001387499,704.28
Department of Health,East Sussex Hospitals NHS Trust,02/11/2011,STOCK-ASCRIBE EDGH,Pharmacy Stock,HEALTHCARE AT HOME LTD,0001387500,704.28
Department of Health,East Sussex Hospitals NHS Trust,02/11/2011,STOCK-ASCRIBE EDGH,Pharmacy Stock,HEALTHCARE AT HOME LTD,0001387501,715.00
Department of Health,East Sussex Hospitals NHS Trust,02/11/2011,STOCK-ASCRIBE EDGH,Pharmacy Stock,HEALTHCARE AT HOME LTD,0001387502,715.00
Department of Health,East Sussex Hospitals NHS Trust,02/11/2011,STOCK-ASCRIBE EDGH,Pharmacy Stock,HEALTHCARE AT HOME LTD,0001387503,715.00
Department of Health,East Sussex Hospitals NHS Trust,02/11/2011,STOCK-ASCRIBE EDGH,Pharmacy Stock,HEALTHCARE AT HOME LTD,0001387504,715.00
Department of Health,East Sussex Hospitals NHS Trust,02/11/2011,STOCK-ASCRIBE EDGH,Pharmacy Stock,HEALTHCARE AT HOME LTD,0001387505,715.00
Department of Health,East Sussex Hospitals NHS Trust,02/11/2011,STOCK-ASCRIBE EDGH,Pharmacy Stock,HEALTHCARE AT HOME LTD,0001387506,715.00
Department of Health,East Sussex Hospitals NHS Trust,02/11/2011,STOCK-ASCRIBE EDGH,Pharmacy Stock,HEALTHCARE AT HOME LTD,0001387507,715.00
Department of Health,East Sussex Hospitals NHS Trust,02/11/2011,STOCK-ASCRIBE EDGH,Pharmacy Stock,HEALTHCARE AT HOME LTD,0001387508,715.00
Department of Health,East Sussex Hospitals NHS Trust,02/11/2011,STOCK-ASCRIBE EDGH,Pharmacy Stock,HEALTHCARE AT HOME LTD,0001387509,715.00
Department of Health,East Sussex Hospitals NHS Trust,02/11/2011,STOCK-ASCRIBE EDGH,Pharmacy Stock,HEALTHCARE AT HOME LTD,0001387510,715.00
Department of Health,East Sussex Hospitals NHS Trust,02/11/2011,STOCK-ASCRIBE EDGH,Pharmacy Stock,HEALTHCARE AT HOME LTD,0001387511,715.00
Department of Health,East Sussex Hospitals NHS Trust,02/11/2011,STOCK-ASCRIBE EDGH,Pharmacy Stock,HEALTHCARE AT HOME LTD,0001387512,715.00
Department of Health,East Sussex Hospitals NHS Trust,02/11/2011,STOCK-ASCRIBE EDGH,Pharmacy Stock,HEALTHCARE AT HOME LTD,0001387513,715.00
Department of Health,East Sussex Hospitals NHS Trust,02/11/2011,STOCK-ASCRIBE EDGH,Pharmacy Stock,HEALTHCARE AT HOME LTD,0001387514,704.28
Department of Health,East Sussex Hospitals NHS Trust,02/11/2011,STOCK-ASCRIBE EDGH,Pharmacy Stock,HEALTHCARE AT HOME LTD,0001387515,704.28
Department of Health,East Sussex Hospitals NHS Trust,02/11/2011,STOCK-ASCRIBE EDGH,Pharmacy Stock,HEALTHCARE AT HOME LTD,0001387516,704.28
Department of Health,East Sussex Hospitals NHS Trust,02/11/2011,STOCK-ASCRIBE EDGH,Pharmacy Stock,HEALTHCARE AT HOME LTD,0001387517,704.28
Department of Health,East Sussex Hospitals NHS Trust,02/11/2011,STOCK-ASCRIBE EDGH,Pharmacy Stock,HEALTHCARE AT HOME LTD,0001387518,704.28
Department of Health,East Sussex Hospitals NHS Trust,02/11/2011,STOCK-ASCRIBE EDGH,Pharmacy Stock,HEALTHCARE AT HOME LTD,0001387519,704.28
Department of Health,East Sussex Hospitals NHS Trust,02/11/2011,STOCK-ASCRIBE EDGH,Pharmacy Stock,HEALTHCARE AT HOME LTD,0001387520,704.28
Department of Health,East Sussex Hospitals NHS Trust,02/11/2011,STOCK-ASCRIBE EDGH,Pharmacy Stock,HEALTHCARE AT HOME LTD,0001387521,704.28
Department of Health,East Sussex Hospitals NHS Trust,02/11/2011,STOCK-ASCRIBE EDGH,Pharmacy Stock,HEALTHCARE AT HOME LTD,0001387522,704.28
Department of Health,East Sussex Hospitals NHS Trust,02/11/2011,STOCK-ASCRIBE EDGH,Pharmacy Stock,HEALTHCARE AT HOME LTD,0001387523,704.28
Department of Health,East Sussex Hospitals NHS Trust,02/11/2011,STOCK-ASCRIBE EDGH,Pharmacy Stock,HEALTHCARE AT HOME LTD,0001387524,704.28
Department of Health,East Sussex Hospitals NHS Trust,02/11/2011,STOCK-ASCRIBE EDGH,Pharmacy Stock,HEALTHCARE AT HOME LTD,0001387525,704.28
Department of Health,East Sussex Hospitals NHS Trust,02/11/2011,STOCK-ASCRIBE EDGH,Pharmacy Stock,HEALTHCARE AT HOME LTD,0001387526,704.28
Department of Health,East Sussex Hospitals NHS Trust,02/11/2011,STOCK-ASCRIBE EDGH,Pharmacy Stock,HEALTHCARE AT HOME LTD,0001387527,704.28
Department of Health,East Sussex Hospitals NHS Trust,02/11/2011,STOCK-ASCRIBE EDGH,Pharmacy Stock,HEALTHCARE AT HOME LTD,0001387528,704.28
Department of Health,East Sussex Hospitals NHS Trust,02/11/2011,STOCK-ASCRIBE EDGH,Pharmacy Stock,HEALTHCARE AT HOME LTD,0001387529,704.28
Department of Health,East Sussex Hospitals NHS Trust,02/11/2011,STOCK-ASCRIBE EDGH,Pharmacy Stock,HEALTHCARE AT HOME LTD,0001387530,2817.12
Department of Health,East Sussex Hospitals NHS Trust,02/11/2011,STOCK-ASCRIBE EDGH,Pharmacy Stock,HEALTHCARE AT HOME LTD,0001387531,715.00
Department of Health,East Sussex Hospitals NHS Trust,02/11/2011,STOCK-ASCRIBE EDGH,Pharmacy Stock,HEALTHCARE AT HOME LTD,0001387532,2112.84
Department of Health,East Sussex Hospitals NHS Trust,02/11/2011,STOCK-ASCRIBE EDGH,Pharmacy Stock,HEALTHCARE AT HOME LTD,0001387533,704.28
Department of Health,East Sussex Hospitals NHS Trust,02/11/2011,STOCK-ASCRIBE EDGH,Pharmacy Stock,HEALTHCARE AT HOME LTD,0001387534,704.28
Department of Health,East Sussex Hospitals NHS Trust,02/11/2011,STOCK-ASCRIBE EDGH,Pharmacy Stock,HEALTHCARE AT HOME LTD,0001387535,704.28
Department of Health,East Sussex Hospitals NHS Trust,02/11/2011,STOCK-ASCRIBE EDGH,Pharmacy Stock,HEALTHCARE AT HOME LTD,0001387536,704.28
Department of Health,East Sussex Hospitals NHS Trust,02/11/2011,STOCK-ASCRIBE EDGH,Pharmacy Stock,HEALTHCARE AT HOME LTD,0001387537,704.28
Department of Health,East Sussex Hospitals NHS Trust,02/11/2011,STOCK-ASCRIBE EDGH,Pharmacy Stock,HEALTHCARE AT HOME LTD,0001387538,715.00
Department of Health,East Sussex Hospitals NHS Trust,02/11/2011,STOCK-ASCRIBE EDGH,Pharmacy Stock,HEALTHCARE AT HOME LTD,0001387539,715.00
Department of Health,East Sussex Hospitals NHS Trust,02/11/2011,STOCK-ASCRIBE EDGH,Pharmacy Stock,HEALTHCARE AT HOME LTD,0001387540,704.28
Department of Health,East Sussex Hospitals NHS Trust,02/11/2011,STOCK-ASCRIBE EDGH,Pharmacy Stock,HEALTHCARE AT HOME LTD,0001387541,704.28
Department of Health,East Sussex Hospitals NHS Trust,02/11/2011,STOCK-ASCRIBE EDGH,Pharmacy Stock,HEALTHCARE AT HOME LTD,0001387542,715.00
Department of Health,East Sussex Hospitals NHS Trust,02/11/2011,STOCK-ASCRIBE EDGH,Pharmacy Stock,HEALTHCARE AT HOME LTD,0001387543,715.00
Department of Health,East Sussex Hospitals NHS Trust,02/11/2011,STOCK-ASCRIBE EDGH,Pharmacy Stock,HEALTHCARE AT HOME LTD,0001387544,715.00
Department of Health,East Sussex Hospitals NHS Trust,02/11/2011,STOCK-ASCRIBE EDGH,Pharmacy Stock,HEALTHCARE AT HOME LTD,0001387545,715.00
Department of Health,East Sussex Hospitals NHS Trust,02/11/2011,STOCK-ASCRIBE EDGH,Pharmacy Stock,HEALTHCARE AT HOME LTD,0001387546,715.00
Department of Health,East Sussex Hospitals NHS Trust,02/11/2011,STOCK-ASCRIBE EDGH,Pharmacy Stock,HEALTHCARE AT HOME LTD,0001387547,715.00
Department of Health,East Sussex Hospitals NHS Trust,02/11/2011,STOCK-ASCRIBE EDGH,Pharmacy Stock,HEALTHCARE AT HOME LTD,0001387548,715.00
Department of Health,East Sussex Hospitals NHS Trust,02/11/2011,STOCK-ASCRIBE EDGH,Pharmacy Stock,HEALTHCARE AT HOME LTD,0001387549,715.00
Department of Health,East Sussex Hospitals NHS Trust,02/11/2011,STOCK-ASCRIBE EDGH,Pharmacy Stock,HEALTHCARE AT HOME LTD,0001387550,704.28
Department of Health,East Sussex Hospitals NHS Trust,02/11/2011,STOCK-ASCRIBE EDGH,Pharmacy Stock,HEALTHCARE AT HOME LTD,0001387551,704.28
Department of Health,East Sussex Hospitals NHS Trust,02/11/2011,STOCK-ASCRIBE EDGH,Pharmacy Stock,HEALTHCARE AT HOME LTD,0001387552,704.28
Department of Health,East Sussex Hospitals NHS Trust,02/11/2011,STOCK-ASCRIBE EDGH,Pharmacy Stock,HEALTHCARE AT HOME LTD,0001387553,715.00
Department of Health,East Sussex Hospitals NHS Trust,02/11/2011,STOCK-ASCRIBE EDGH,Pharmacy Stock,HEALTHCARE AT HOME LTD,0001387554,704.28
Department of Health,East Sussex Hospitals NHS Trust,02/11/2011,STOCK-ASCRIBE EDGH,Pharmacy Stock,HEALTHCARE AT HOME LTD,0001387555,704.28
Department of Health,East Sussex Hospitals NHS Trust,02/11/2011,STOCK-ASCRIBE EDGH,Pharmacy Stock,HEALTHCARE AT HOME LTD,0001387556,704.28
Department of Health,East Sussex Hospitals NHS Trust,02/11/2011,STOCK-ASCRIBE EDGH,Pharmacy Stock,HEALTHCARE AT HOME LTD,0001387557,715.00
Department of Health,East Sussex Hospitals NHS Trust,02/11/2011,STOCK-ASCRIBE EDGH,Pharmacy Stock,HEALTHCARE AT HOME LTD,0001387558,704.28
Department of Health,East Sussex Hospitals NHS Trust,02/11/2011,STOCK-ASCRIBE EDGH,Pharmacy Stock,HEALTHCARE AT HOME LTD,0001387559,704.28
Department of Health,East Sussex Hospitals NHS Trust,02/11/2011,STOCK-ASCRIBE EDGH,Pharmacy Stock,HEALTHCARE AT HOME LTD,0001387560,704.28
Department of Health,East Sussex Hospitals NHS Trust,02/11/2011,STOCK-ASCRIBE EDGH,Pharmacy Stock,HEALTHCARE AT HOME LTD,0001387561,715.00
Department of Health,East Sussex Hospitals NHS Trust,02/11/2011,STOCK-ASCRIBE EDGH,Pharmacy Stock,HEALTHCARE AT HOME LTD,0001387562,704.28
Department of Health,East Sussex Hospitals NHS Trust,02/11/2011,STOCK-ASCRIBE EDGH,Pharmacy Stock,HEALTHCARE AT HOME LTD,0001387563,715.00
Department of Health,East Sussex Hospitals NHS Trust,02/11/2011,STOCK-ASCRIBE EDGH,Pharmacy Stock,HEALTHCARE AT HOME LTD,0001387564,704.28
Department of Health,East Sussex Hospitals NHS Trust,02/11/2011,STOCK-ASCRIBE EDGH,Pharmacy Stock,HEALTHCARE AT HOME LTD,0001387565,715.00
Department of Health,East Sussex Hospitals NHS Trust,02/11/2011,STOCK-ASCRIBE EDGH,Pharmacy Stock,HEALTHCARE AT HOME LTD,0001387566,704.28
Department of Health,East Sussex Hospitals NHS Trust,02/11/2011,STOCK-ASCRIBE EDGH,Pharmacy Stock,HEALTHCARE AT HOME LTD,0001387567,715.00
Department of Health,East Sussex Hospitals NHS Trust,02/11/2011,STOCK-ASCRIBE EDGH,Pharmacy Stock,HEALTHCARE AT HOME LTD,0001387568,704.28
Department of Health,East Sussex Hospitals NHS Trust,02/11/2011,STOCK-ASCRIBE EDGH,Pharmacy Stock,HEALTHCARE AT HOME LTD,0001387569,704.28
Department of Health,East Sussex Hospitals NHS Trust,02/11/2011,STOCK-ASCRIBE EDGH,Pharmacy Stock,HEALTHCARE AT HOME LTD,0001387570,704.28
Department of Health,East Sussex Hospitals NHS Trust,02/11/2011,STOCK-ASCRIBE EDGH,Pharmacy Stock,HEALTHCARE AT HOME LTD,0001387571,715.00
Department of Health,East Sussex Hospitals NHS Trust,02/11/2011,STOCK-ASCRIBE EDGH,Pharmacy Stock,HEALTHCARE AT HOME LTD,0001387572,1430.00
Department of Health,East Sussex Hospitals NHS Trust,02/11/2011,STOCK-ASCRIBE EDGH,Pharmacy Stock,HEALTHCARE AT HOME LTD,0001387573,715.00
Department of Health,East Sussex Hospitals NHS Trust,02/11/2011,STOCK-ASCRIBE EDGH,Pharmacy Stock,HEALTHCARE AT HOME LTD,0001387574,704.28
Department of Health,East Sussex Hospitals NHS Trust,02/11/2011,STOCK-ASCRIBE EDGH,Pharmacy Stock,HEALTHCARE AT HOME LTD,0001387575,715.00
Department of Health,East Sussex Hospitals NHS Trust,02/11/2011,STOCK-ASCRIBE EDGH,Pharmacy Stock,HEALTHCARE AT HOME LTD,0001387576,715.00
Department of Health,East Sussex Hospitals NHS Trust,02/11/2011,STOCK-ASCRIBE EDGH,Pharmacy Stock,HEALTHCARE AT HOME LTD,0001387577,704.28
Department of Health,East Sussex Hospitals NHS Trust,02/11/2011,STOCK-ASCRIBE EDGH,Pharmacy Stock,HEALTHCARE AT HOME LTD,0001387578,715.00
Department of Health,East Sussex Hospitals NHS Trust,02/11/2011,STOCK-ASCRIBE EDGH,Pharmacy Stock,HEALTHCARE AT HOME LTD,0001387579,715.00
Department of Health,East Sussex Hospitals NHS Trust,02/11/2011,STOCK-ASCRIBE EDGH,Pharmacy Stock,HEALTHCARE AT HOME LTD,0001387580,715.00
Department of Health,East Sussex Hospitals NHS Trust,02/11/2011,STOCK-ASCRIBE EDGH,Pharmacy Stock,HEALTHCARE AT HOME LTD,0001387581,715.00
Department of Health,East Sussex Hospitals NHS Trust,02/11/2011,STOCK-ASCRIBE EDGH,Pharmacy Stock,HEALTHCARE AT HOME LTD,0001387582,715.00
Department of Health,East Sussex Hospitals NHS Trust,02/11/2011,STOCK-ASCRIBE EDGH,Pharmacy Stock,HEALTHCARE AT HOME LTD,0001387583,715.00
Department of Health,East Sussex Hospitals NHS Trust,02/11/2011,STOCK-ASCRIBE EDGH,Pharmacy Stock,HEALTHCARE AT HOME LTD,0001387584,715.00
Department of Health,East Sussex Hospitals NHS Trust,02/11/2011,STOCK-ASCRIBE EDGH,Pharmacy Stock,HEALTHCARE AT HOME LTD,0001387585,715.00
Department of Health,East Sussex Hospitals NHS Trust,02/11/2011,STOCK-ASCRIBE EDGH,Pharmacy Stock,HEALTHCARE AT HOME LTD,0001387586,704.28
Department of Health,East Sussex Hospitals NHS Trust,02/11/2011,STOCK-ASCRIBE EDGH,Pharmacy Stock,HEALTHCARE AT HOME LTD,0001387587,704.28
Department of Health,East Sussex Hospitals NHS Trust,02/11/2011,STOCK-ASCRIBE EDGH,Pharmacy Stock,HEALTHCARE AT HOME LTD,0001387588,704.28
Department of Health,East Sussex Hospitals NHS Trust,02/11/2011,STOCK-ASCRIBE EDGH,Pharmacy Stock,HEALTHCARE AT HOME LTD,0001387589,3169.26
Department of Health,East Sussex Hospitals NHS Trust,02/11/2011,STOCK-ASCRIBE EDGH,Pharmacy Stock,HEALTHCARE AT HOME LTD,0001387590,715.00
Department of Health,East Sussex Hospitals NHS Trust,02/11/2011,STOCK-ASCRIBE EDGH,Pharmacy Stock,HEALTHCARE AT HOME LTD,0001387591,715.00
Department of Health,East Sussex Hospitals NHS Trust,02/11/2011,STOCK-ASCRIBE EDGH,Pharmacy Stock,HEALTHCARE AT HOME LTD,0001387592,715.00
Department of Health,East Sussex Hospitals NHS Trust,02/11/2011,STOCK-ASCRIBE EDGH,Pharmacy Stock,HEALTHCARE AT HOME LTD,0001387593,704.28
Department of Health,East Sussex Hospitals NHS Trust,02/11/2011,STOCK-ASCRIBE EDGH,Pharmacy Stock,HEALTHCARE AT HOME LTD,0001387594,815.64
Department of Health,East Sussex Hospitals NHS Trust,02/11/2011,STOCK-ASCRIBE EDGH,Pharmacy Stock,HEALTHCARE AT HOME LTD,0001387595,704.28
Department of Health,East Sussex Hospitals NHS Trust,02/11/2011,STOCK-ASCRIBE EDGH,Pharmacy Stock,HEALTHCARE AT HOME LTD,0001387596,704.28
Department of Health,East Sussex Hospitals NHS Trust,02/11/2011,STOCK-ASCRIBE EDGH,Pharmacy Stock,HEALTHCARE AT HOME LTD,0001387597,715.00
Department of Health,East Sussex Hospitals NHS Trust,02/11/2011,STOCK-ASCRIBE EDGH,Pharmacy Stock,HEALTHCARE AT HOME LTD,0001387598,704.28
Department of Health,East Sussex Hospitals NHS Trust,02/11/2011,STOCK-ASCRIBE EDGH,Pharmacy Stock,HEALTHCARE AT HOME LTD,0001387599,715.00
Department of Health,East Sussex Hospitals NHS Trust,02/11/2011,STOCK-ASCRIBE EDGH,Pharmacy Stock,HEALTHCARE AT HOME LTD,0001387600,715.00
Department of Health,East Sussex Hospitals NHS Trust,02/11/2011,STOCK-ASCRIBE EDGH,Pharmacy Stock,HEALTHCARE AT HOME LTD,0001387601,715.00
Department of Health,East Sussex Hospitals NHS Trust,02/11/2011,STOCK-ASCRIBE EDGH,Pharmacy Stock,HEALTHCARE AT HOME LTD,0001387602,715.00
Department of Health,East Sussex Hospitals NHS Trust,02/11/2011,STOCK-ASCRIBE EDGH,Pharmacy Stock,HEALTHCARE AT HOME LTD,0001387603,715.00
Department of Health,East Sussex Hospitals NHS Trust,02/11/2011,STOCK-ASCRIBE EDGH,Pharmacy Stock,HEALTHCARE AT HOME LTD,0001387604,704.28
Department of Health,East Sussex Hospitals NHS Trust,02/11/2011,STOCK-ASCRIBE EDGH,Pharmacy Stock,HEALTHCARE AT HOME LTD,0001387605,715.00
Department of Health,East Sussex Hospitals NHS Trust,02/11/2011,STOCK-ASCRIBE EDGH,Pharmacy Stock,HEALTHCARE AT HOME LTD,0001387606,715.00
Department of Health,East Sussex Hospitals NHS Trust,02/11/2011,STOCK-ASCRIBE EDGH,Pharmacy Stock,HEALTHCARE AT HOME LTD,0001387607,704.28
Department of Health,East Sussex Hospitals NHS Trust,02/11/2011,STOCK-ASCRIBE EDGH,Pharmacy Stock,HEALTHCARE AT HOME LTD,0001387608,715.00
Department of Health,East Sussex Hospitals NHS Trust,02/11/2011,STOCK-ASCRIBE EDGH,Pharmacy Stock,HEALTHCARE AT HOME LTD,0001387609,715.00
Department of Health,East Sussex Hospitals NHS Trust,02/11/2011,STOCK-ASCRIBE EDGH,Pharmacy Stock,HEALTHCARE AT HOME LTD,0001387610,704.28
Department of Health,East Sussex Hospitals NHS Trust,02/11/2011,STOCK-ASCRIBE EDGH,Pharmacy Stock,HEALTHCARE AT HOME LTD,0001387611,715.00
Department of Health,East Sussex Hospitals NHS Trust,02/11/2011,STOCK-ASCRIBE EDGH,Pharmacy Stock,HEALTHCARE AT HOME LTD,0001387612,704.28
Department of Health,East Sussex Hospitals NHS Trust,02/11/2011,STOCK-ASCRIBE EDGH,Pharmacy Stock,HEALTHCARE AT HOME LTD,0001387613,715.00
Department of Health,East Sussex Hospitals NHS Trust,02/11/2011,STOCK-ASCRIBE EDGH,Pharmacy Stock,HEALTHCARE AT HOME LTD,0001387614,715.00
Department of Health,East Sussex Hospitals NHS Trust,02/11/2011,STOCK-ASCRIBE EDGH,Pharmacy Stock,HEALTHCARE AT HOME LTD,0001387615,704.28
Department of Health,East Sussex Hospitals NHS Trust,02/11/2011,STOCK-ASCRIBE EDGH,Pharmacy Stock,HEALTHCARE AT HOME LTD,0001387616,715.00
Department of Health,East Sussex Hospitals NHS Trust,02/11/2011,STOCK-ASCRIBE EDGH,Pharmacy Stock,HEALTHCARE AT HOME LTD,0001387617,715.00
Department of Health,East Sussex Hospitals NHS Trust,02/11/2011,STOCK-ASCRIBE EDGH,Pharmacy Stock,HEALTHCARE AT HOME LTD,0001387618,715.00
Department of Health,East Sussex Hospitals NHS Trust,02/11/2011,STOCK-ASCRIBE EDGH,Pharmacy Stock,HEALTHCARE AT HOME LTD,0001387619,704.28
Department of Health,East Sussex Hospitals NHS Trust,02/11/2011,STOCK-ASCRIBE EDGH,Pharmacy Stock,HEALTHCARE AT HOME LTD,0001387620,715.00
Department of Health,East Sussex Hospitals NHS Trust,02/11/2011,STOCK-ASCRIBE EDGH,Pharmacy Stock,HEALTHCARE AT HOME LTD,0001387621,704.28
Department of Health,East Sussex Hospitals NHS Trust,02/11/2011,STOCK-ASCRIBE EDGH,Pharmacy Stock,HEALTHCARE AT HOME LTD,0001387622,715.00
Department of Health,East Sussex Hospitals NHS Trust,02/11/2011,STOCK-ASCRIBE EDGH,Pharmacy Stock,HEALTHCARE AT HOME LTD,0001387623,715.00
Department of Health,East Sussex Hospitals NHS Trust,02/11/2011,STOCK-ASCRIBE EDGH,Pharmacy Stock,HEALTHCARE AT HOME LTD,0001387624,715.00
Department of Health,East Sussex Hospitals NHS Trust,02/11/2011,STOCK-ASCRIBE EDGH,Pharmacy Stock,HEALTHCARE AT HOME LTD,0001387625,715.00
Department of Health,East Sussex Hospitals NHS Trust,02/11/2011,STOCK-ASCRIBE EDGH,Pharmacy Stock,HEALTHCARE AT HOME LTD,0001387626,704.28
Department of Health,East Sussex Hospitals NHS Trust,02/11/2011,STOCK-ASCRIBE EDGH,Pharmacy Stock,HEALTHCARE AT HOME LTD,0001387628,704.28
Department of Health,East Sussex Hospitals NHS Trust,02/11/2011,STOCK-ASCRIBE EDGH,Pharmacy Stock,HEALTHCARE AT HOME LTD,0001387629,704.28
Department of Health,East Sussex Hospitals NHS Trust,02/11/2011,STOCK-ASCRIBE EDGH,Pharmacy Stock,HEALTHCARE AT HOME LTD,0001387630,715.00
Department of Health,East Sussex Hospitals NHS Trust,02/11/2011,STOCK-ASCRIBE EDGH,Pharmacy Stock,HEALTHCARE AT HOME LTD,0001387631,715.00
Department of Health,East Sussex Hospitals NHS Trust,02/11/2011,STOCK-ASCRIBE EDGH,Pharmacy Stock,HEALTHCARE AT HOME LTD,0001387632,704.28
Department of Health,East Sussex Hospitals NHS Trust,02/11/2011,STOCK-ASCRIBE EDGH,Pharmacy Stock,HEALTHCARE AT HOME LTD,0001387633,704.28
Department of Health,East Sussex Hospitals NHS Trust,02/11/2011,STOCK-ASCRIBE EDGH,Pharmacy Stock,HEALTHCARE AT HOME LTD,0001387634,704.28
Department of Health,East Sussex Hospitals NHS Trust,02/11/2011,STOCK-ASCRIBE EDGH,Pharmacy Stock,HEALTHCARE AT HOME LTD,0001387635,715.00
Department of Health,East Sussex Hospitals NHS Trust,02/11/2011,STOCK-ASCRIBE EDGH,Pharmacy Stock,HEALTHCARE AT HOME LTD,0001387636,715.00
Department of Health,East Sussex Hospitals NHS Trust,02/11/2011,STOCK-ASCRIBE EDGH,Pharmacy Stock,HEALTHCARE AT HOME LTD,0001387637,715.00
Department of Health,East Sussex Hospitals NHS Trust,02/11/2011,STOCK-ASCRIBE EDGH,Pharmacy Stock,HEALTHCARE AT HOME LTD,0001387638,715.00
Department of Health,East Sussex Hospitals NHS Trust,02/11/2011,STOCK-ASCRIBE EDGH,Pharmacy Stock,HEALTHCARE AT HOME LTD,0001387639,715.00
Department of Health,East Sussex Hospitals NHS Trust,02/11/2011,STOCK-ASCRIBE EDGH,Pharmacy Stock,HEALTHCARE AT HOME LTD,0001387640,715.00
Department of Health,East Sussex Hospitals NHS Trust,02/11/2011,STOCK-ASCRIBE EDGH,Pharmacy Stock,HEALTHCARE AT HOME LTD,0001387641,715.00
Department of Health,East Sussex Hospitals NHS Trust,02/11/2011,STOCK-ASCRIBE EDGH,Pharmacy Stock,HEALTHCARE AT HOME LTD,0001387642,704.28
Department of Health,East Sussex Hospitals NHS Trust,02/11/2011,STOCK-ASCRIBE EDGH,Pharmacy Stock,HEALTHCARE AT HOME LTD,0001387643,715.00
Department of Health,East Sussex Hospitals NHS Trust,02/11/2011,STOCK-ASCRIBE EDGH,Pharmacy Stock,HEALTHCARE AT HOME LTD,0001387644,715.00
Department of Health,East Sussex Hospitals NHS Trust,02/11/2011,STOCK-ASCRIBE EDGH,Pharmacy Stock,HEALTHCARE AT HOME LTD,0001387645,704.28
Department of Health,East Sussex Hospitals NHS Trust,02/11/2011,STOCK-ASCRIBE EDGH,Pharmacy Stock,HEALTHCARE AT HOME LTD,0001387646,715.00
Department of Health,East Sussex Hospitals NHS Trust,02/11/2011,STOCK-ASCRIBE EDGH,Pharmacy Stock,HEALTHCARE AT HOME LTD,0001387647,704.28
Department of Health,East Sussex Hospitals NHS Trust,02/11/2011,STOCK-ASCRIBE EDGH,Pharmacy Stock,HEALTHCARE AT HOME LTD,0001387648,1408.56
Department of Health,East Sussex Hospitals NHS Trust,02/11/2011,STOCK-ASCRIBE EDGH,Pharmacy Stock,HEALTHCARE AT HOME LTD,0001387649,704.28
Department of Health,East Sussex Hospitals NHS Trust,02/11/2011,STOCK-ASCRIBE EDGH,Pharmacy Stock,HEALTHCARE AT HOME LTD,0001387650,704.28
Department of Health,East Sussex Hospitals NHS Trust,02/11/2011,STOCK-ASCRIBE EDGH,Pharmacy Stock,HEALTHCARE AT HOME LTD,0001387651,704.28
Department of Health,East Sussex Hospitals NHS Trust,02/11/2011,STOCK-ASCRIBE EDGH,Pharmacy Stock,HEALTHCARE AT HOME LTD,0001387652,1408.56
Department of Health,East Sussex Hospitals NHS Trust,02/11/2011,STOCK-ASCRIBE EDGH,Pharmacy Stock,HEALTHCARE AT HOME LTD,0001387653,704.28
Department of Health,East Sussex Hospitals NHS Trust,02/11/2011,STOCK-ASCRIBE EDGH,Pharmacy Stock,HEALTHCARE AT HOME LTD,0001387654,715.00
Department of Health,East Sussex Hospitals NHS Trust,02/11/2011,STOCK-ASCRIBE EDGH,Pharmacy Stock,HEALTHCARE AT HOME LTD,0001387655,715.00
Department of Health,East Sussex Hospitals NHS Trust,02/11/2011,STOCK-ASCRIBE EDGH,Pharmacy Stock,HEALTHCARE AT HOME LTD,0001387656,704.28
Department of Health,East Sussex Hospitals NHS Trust,02/11/2011,STOCK-ASCRIBE EDGH,Pharmacy Stock,HEALTHCARE AT HOME LTD,0001387657,704.28
Department of Health,East Sussex Hospitals NHS Trust,02/11/2011,STOCK-ASCRIBE EDGH,Pharmacy Stock,HEALTHCARE AT HOME LTD,0001387658,704.28
Department of Health,East Sussex Hospitals NHS Trust,02/11/2011,STOCK-ASCRIBE EDGH,Pharmacy Stock,HEALTHCARE AT HOME LTD,0001387659,715.00
Department of Health,East Sussex Hospitals NHS Trust,02/11/2011,STOCK-ASCRIBE EDGH,Pharmacy Stock,HEALTHCARE AT HOME LTD,0001387660,715.00
Department of Health,East Sussex Hospitals NHS Trust,02/11/2011,STOCK-ASCRIBE EDGH,Pharmacy Stock,HEALTHCARE AT HOME LTD,0001387661,715.00
Department of Health,East Sussex Hospitals NHS Trust,02/11/2011,STOCK-ASCRIBE EDGH,Pharmacy Stock,HEALTHCARE AT HOME LTD,0001387662,704.28
Department of Health,East Sussex Hospitals NHS Trust,02/11/2011,STOCK-ASCRIBE EDGH,Pharmacy Stock,HEALTHCARE AT HOME LTD,0001387663,715.00
Department of Health,East Sussex Hospitals NHS Trust,02/11/2011,STOCK-ASCRIBE EDGH,Pharmacy Stock,HEALTHCARE AT HOME LTD,0001387664,715.00
Department of Health,East Sussex Hospitals NHS Trust,02/11/2011,STOCK-ASCRIBE EDGH,Pharmacy Stock,HEALTHCARE AT HOME LTD,0001387665,715.00
Department of Health,East Sussex Hospitals NHS Trust,02/11/2011,STOCK-ASCRIBE EDGH,Pharmacy Stock,HEALTHCARE AT HOME LTD,0001387666,704.28
Department of Health,East Sussex Hospitals NHS Trust,02/11/2011,STOCK-ASCRIBE EDGH,Pharmacy Stock,HEALTHCARE AT HOME LTD,0001387667,1408.56
Department of Health,East Sussex Hospitals NHS Trust,02/11/2011,STOCK-ASCRIBE EDGH,Pharmacy Stock,HEALTHCARE AT HOME LTD,0001387668,715.00
Department of Health,East Sussex Hospitals NHS Trust,02/11/2011,STOCK-ASCRIBE EDGH,Pharmacy Stock,HEALTHCARE AT HOME LTD,0001387669,815.64
Department of Health,East Sussex Hospitals NHS Trust,02/11/2011,STOCK-ASCRIBE EDGH,Pharmacy Stock,HEALTHCARE AT HOME LTD,0001387671,715.00
Department of Health,East Sussex Hospitals NHS Trust,02/11/2011,STOCK-ASCRIBE EDGH,Pharmacy Stock,HEALTHCARE AT HOME LTD,0001387672,704.28
Department of Health,East Sussex Hospitals NHS Trust,02/11/2011,STOCK-ASCRIBE EDGH,Pharmacy Stock,HEALTHCARE AT HOME LTD,0001387673,715.00
Department of Health,East Sussex Hospitals NHS Trust,02/11/2011,STOCK-ASCRIBE EDGH,Pharmacy Stock,HEALTHCARE AT HOME LTD,0001387674,715.00
Department of Health,East Sussex Hospitals NHS Trust,02/11/2011,STOCK-ASCRIBE EDGH,Pharmacy Stock,HEALTHCARE AT HOME LTD,0001387675,715.00
Department of Health,East Sussex Hospitals NHS Trust,02/11/2011,STOCK-ASCRIBE EDGH,Pharmacy Stock,HEALTHCARE AT HOME LTD,0001387676,704.28
Department of Health,East Sussex Hospitals NHS Trust,02/11/2011,STOCK-ASCRIBE EDGH,Pharmacy Stock,HEALTHCARE AT HOME LTD,0001387677,715.00
Department of Health,East Sussex Hospitals NHS Trust,02/11/2011,STOCK-ASCRIBE EDGH,Pharmacy Stock,HEALTHCARE AT HOME LTD,0001387678,1408.56
Department of Health,East Sussex Hospitals NHS Trust,02/11/2011,STOCK-ASCRIBE EDGH,Pharmacy Stock,HEALTHCARE AT HOME LTD,0001387679,715.00
Department of Health,East Sussex Hospitals NHS Trust,02/11/2011,STOCK-ASCRIBE EDGH,Pharmacy Stock,HEALTHCARE AT HOME LTD,0001387680,715.00
Department of Health,East Sussex Hospitals NHS Trust,02/11/2011,STOCK-ASCRIBE EDGH,Pharmacy Stock,HEALTHCARE AT HOME LTD,0001387681,715.00
Department of Health,East Sussex Hospitals NHS Trust,02/11/2011,STOCK-ASCRIBE EDGH,Pharmacy Stock,HEALTHCARE AT HOME LTD,0001387682,704.28
Department of Health,East Sussex Hospitals NHS Trust,02/11/2011,STOCK-ASCRIBE EDGH,Pharmacy Stock,HEALTHCARE AT HOME LTD,0001387683,715.00
Department of Health,East Sussex Hospitals NHS Trust,02/11/2011,STOCK-ASCRIBE EDGH,Pharmacy Stock,HEALTHCARE AT HOME LTD,0001387684,715.00
Department of Health,East Sussex Hospitals NHS Trust,02/11/2011,STOCK-ASCRIBE EDGH,Pharmacy Stock,HEALTHCARE AT HOME LTD,0001387685,715.00
Department of Health,East Sussex Hospitals NHS Trust,02/11/2011,STOCK-ASCRIBE EDGH,Pharmacy Stock,HEALTHCARE AT HOME LTD,0001387686,1430.00
Department of Health,East Sussex Hospitals NHS Trust,02/11/2011,STOCK-ASCRIBE EDGH,Pharmacy Stock,HEALTHCARE AT HOME LTD,0001387687,704.28
Department of Health,East Sussex Hospitals NHS Trust,02/11/2011,STOCK-ASCRIBE EDGH,Pharmacy Stock,BAXTER HEALTHCARE (BERKSHIRE)LTD,0001387724,630.00
Department of Health,East Sussex Hospitals NHS Trust,02/11/2011,STOCK-ASCRIBE CONQUEST,Pharmacy Stock,AAH PHARMACEUTICALS LTD,0001387774,2131.95
Department of Health,East Sussex Hospitals NHS Trust,02/11/2011,STOCK-ASCRIBE CONQUEST,Pharmacy Stock,AAH PHARMACEUTICALS LTD,0001387776,2184.07
Department of Health,East Sussex Hospitals NHS Trust,02/11/2011,STOCK-ASCRIBE CONQUEST,Pharmacy Stock,AAH PHARMACEUTICALS LTD,0001387777,1309.86
Department of Health,East Sussex Hospitals NHS Trust,02/11/2011,STOCK-ASCRIBE CONQUEST,Pharmacy Stock,AAH PHARMACEUTICALS LTD,0001387778,1401.23
Department of Health,East Sussex Hospitals NHS Trust,02/11/2011,STOCK-ASCRIBE CONQUEST,Pharmacy Stock,AAH PHARMACEUTICALS LTD,0001387779,1183.99
Department of Health,East Sussex Hospitals NHS Trust,02/11/2011,STOCK-ASCRIBE CONQUEST,Pharmacy Stock,AAH PHARMACEUTICALS LTD,0001387780,1019.31
Department of Health,East Sussex Hospitals NHS Trust,02/11/2011,STOCK-ASCRIBE CONQUEST,Pharmacy Stock,AAH PHARMACEUTICALS LTD,0001387781,1335.05
Department of Health,East Sussex Hospitals NHS Trust,02/11/2011,STOCK-ASCRIBE CONQUEST,Pharmacy Stock,AAH PHARMACEUTICALS LTD,0001387782,1707.68
Department of Health,East Sussex Hospitals NHS Trust,02/11/2011,STOCK-ASCRIBE CONQUEST,Pharmacy Stock,AAH PHARMACEUTICALS LTD,0001387783,1619.22
Department of Health,East Sussex Hospitals NHS Trust,02/11/2011,STOCK-ASCRIBE CONQUEST,Pharmacy Stock,AAH PHARMACEUTICALS LTD,0001387784,1548.86
Department of Health,East Sussex Hospitals NHS Trust,02/11/2011,STOCK-ASCRIBE CONQUEST,Pharmacy Stock,AAH PHARMACEUTICALS LTD,0001387785,967.80
Department of Health,East Sussex Hospitals NHS Trust,02/11/2011,STOCK-ASCRIBE CONQUEST,Pharmacy Stock,AAH PHARMACEUTICALS LTD,0001387786,3537.78
Department of Health,East Sussex Hospitals NHS Trust,02/11/2011,STOCK-ASCRIBE CONQUEST,Pharmacy Stock,AAH PHARMACEUTICALS LTD,0001387787,4116.21
Department of Health,East Sussex Hospitals NHS Trust,02/11/2011,STOCK-ASCRIBE CONQUEST,Pharmacy Stock,AAH PHARMACEUTICALS LTD,0001387788,1272.52
Department of Health,East Sussex Hospitals NHS Trust,02/11/2011,STOCK-ASCRIBE CONQUEST,Pharmacy Stock,AAH PHARMACEUTICALS LTD,0001387789,885.73
Department of Health,East Sussex Hospitals NHS Trust,02/11/2011,STOCK-ASCRIBE CONQUEST,Pharmacy Stock,AAH PHARMACEUTICALS LTD,0001387790,1688.26
Department of Health,East Sussex Hospitals NHS Trust,02/11/2011,STOCK-ASCRIBE CONQUEST,Pharmacy Stock,AAH PHARMACEUTICALS LTD,0001387791,1373.21
Department of Health,East Sussex Hospitals NHS Trust,02/11/2011,STOCK-ASCRIBE CONQUEST,Pharmacy Stock,AAH PHARMACEUTICALS LTD,0001387792,2174.79
Department of Health,East Sussex Hospitals NHS Trust,02/11/2011,STOCK-ASCRIBE CONQUEST,Pharmacy Stock,AAH PHARMACEUTICALS LTD,0001387793,1193.12
Department of Health,East Sussex Hospitals NHS Trust,02/11/2011,STOCK-ASCRIBE EDGH,Pharmacy Stock,AAH PHARMACEUTICALS LTD,0001387803,589.44
Department of Health,East Sussex Hospitals NHS Trust,02/11/2011,STOCK-ASCRIBE EDGH,Pharmacy Stock,AAH PHARMACEUTICALS LTD,0001387808,1380.96
Department of Health,East Sussex Hospitals NHS Trust,02/11/2011,STOCK-ASCRIBE EDGH,Pharmacy Stock,AAH PHARMACEUTICALS LTD,0001387812,9827.14
Department of Health,East Sussex Hospitals NHS Trust,02/11/2011,STOCK-ASCRIBE EDGH,Pharmacy Stock,AAH PHARMACEUTICALS LTD,0001387829,513.00
Department of Health,East Sussex Hospitals NHS Trust,02/11/2011,STOCK-ASCRIBE EDGH,Pharmacy Stock,AAH PHARMACEUTICALS LTD,0001387833,521.97
Department of Health,East Sussex Hospitals NHS Trust,02/11/2011,STOCK-ASCRIBE EDGH,Pharmacy Stock,AAH PHARMACEUTICALS LTD,0001387836,701.40
Department of Health,East Sussex Hospitals NHS Trust,02/11/2011,STOCK-ASCRIBE EDGH,Pharmacy Stock,AAH PHARMACEUTICALS LTD,0001387837,589.44
Department of Health,East Sussex Hospitals NHS Trust,02/11/2011,STOCK-ASCRIBE EDGH,Pharmacy Stock,AAH PHARMACEUTICALS LTD,0001387854,656.35
Department of Health,East Sussex Hospitals NHS Trust,02/11/2011,STOCK-ASCRIBE EDGH,Pharmacy Stock,AAH PHARMACEUTICALS LTD,0001387858,566.43
Department of Health,East Sussex Hospitals NHS Trust,02/11/2011,STOCK-ASCRIBE EDGH,Pharmacy Stock,AAH PHARMACEUTICALS LTD,0001387862,690.48
Department of Health,East Sussex Hospitals NHS Trust,02/11/2011,STOCK-ASCRIBE EDGH,Pharmacy Stock,AAH PHARMACEUTICALS LTD,0001387872,926.75
Department of Health,East Sussex Hospitals NHS Trust,02/11/2011,STOCK-ASCRIBE EDGH,Pharmacy Stock,AAH PHARMACEUTICALS LTD,0001387877,708.73
Department of Health,East Sussex Hospitals NHS Trust,02/11/2011,STOCK-ASCRIBE EDGH,Pharmacy Stock,AAH PHARMACEUTICALS LTD,0001387904,580.10
Department of Health,East Sussex Hospitals NHS Trust,02/11/2011,STOCK-ASCRIBE EDGH,Pharmacy Stock,AAH PHARMACEUTICALS LTD,0001387905,700.50
Department of Health,East Sussex Hospitals NHS Trust,02/11/2011,STOCK-ASCRIBE EDGH,Pharmacy Stock,AAH PHARMACEUTICALS LTD,0001387909,737.61
Department of Health,East Sussex Hospitals NHS Trust,02/11/2011,STOCK-ASCRIBE EDGH,Pharmacy Stock,JOHNSON & JOHNSON MEDICAL LTD,0001387936,1906.60
Department of Health,East Sussex Hospitals NHS Trust,02/11/2011,STOCK-ASCRIBE EDGH,Pharmacy Stock,AAH PHARMACEUTICALS LTD,0001387952,1875.96
Department of Health,East Sussex Hospitals NHS Trust,02/11/2011,STOCK-ASCRIBE EDGH,Pharmacy Stock,AAH PHARMACEUTICALS LTD,0001387955,1765.59
Department of Health,East Sussex Hospitals NHS Trust,02/11/2011,STOCK-ASCRIBE EDGH,Pharmacy Stock,HEALTHCARE AT HOME LTD,0001388002,1741.25
Department of Health,East Sussex Hospitals NHS Trust,02/11/2011,STOCK-ASCRIBE EDGH,Pharmacy Stock,HEALTHCARE AT HOME LTD,0001388003,1382.15
Department of Health,East Sussex Hospitals NHS Trust,02/11/2011,STOCK-ASCRIBE EDGH,Pharmacy Stock,HEALTHCARE AT HOME LTD,0001388004,1501.85
Department of Health,East Sussex Hospitals NHS Trust,02/11/2011,STOCK-ASCRIBE EDGH,Pharmacy Stock,HEALTHCARE AT HOME LTD,0001388005,1741.25
Department of Health,East Sussex Hospitals NHS Trust,02/11/2011,STOCK-ASCRIBE EDGH,Pharmacy Stock,HEALTHCARE AT HOME LTD,0001388006,2339.75
Department of Health,East Sussex Hospitals NHS Trust,02/11/2011,STOCK-ASCRIBE EDGH,Pharmacy Stock,HEALTHCARE AT HOME LTD,0001388007,1741.25
Department of Health,East Sussex Hospitals NHS Trust,02/11/2011,STOCK-ASCRIBE EDGH,Pharmacy Stock,HEALTHCARE AT HOME LTD,0001388008,1382.15
Department of Health,East Sussex Hospitals NHS Trust,02/11/2011,STOCK-ASCRIBE EDGH,Pharmacy Stock,HEALTHCARE AT HOME LTD,0001388009,1501.85
Department of Health,East Sussex Hospitals NHS Trust,02/11/2011,STOCK-ASCRIBE EDGH,Pharmacy Stock,HEALTHCARE AT HOME LTD,0001388010,567.35
Department of Health,East Sussex Hospitals NHS Trust,02/11/2011,STOCK-ASCRIBE EDGH,Pharmacy Stock,HEALTHCARE AT HOME LTD,0001388011,588.32
Department of Health,East Sussex Hospitals NHS Trust,02/11/2011,STOCK-ASCRIBE EDGH,Pharmacy Stock,AMGEN LTD,0001388017,867.60
Department of Health,East Sussex Hospitals NHS Trust,02/11/2011,STOCK-ASCRIBE EDGH,Pharmacy Stock,HEALTHCARE AT HOME LTD,0001388027,715.00
Department of Health,East Sussex Hospitals NHS Trust,02/11/2011,STOCK-ASCRIBE EDGH,Pharmacy Stock,HEALTHCARE AT HOME LTD,0001388028,704.28
Department of Health,East Sussex Hospitals NHS Trust,02/11/2011,STOCK-ASCRIBE EDGH,Pharmacy Stock,HEALTHCARE AT HOME LTD,0001388029,715.00
Department of Health,East Sussex Hospitals NHS Trust,02/11/2011,STOCK-ASCRIBE EDGH,Pharmacy Stock,HEALTHCARE AT HOME LTD,0001388030,715.00
Department of Health,East Sussex Hospitals NHS Trust,02/11/2011,STOCK-ASCRIBE EDGH,Pharmacy Stock,HEALTHCARE AT HOME LTD,0001388031,715.00
Department of Health,East Sussex Hospitals NHS Trust,02/11/2011,STOCK-ASCRIBE EDGH,Pharmacy Stock,HEALTHCARE AT HOME LTD,0001388032,704.28
Department of Health,East Sussex Hospitals NHS Trust,02/11/2011,STOCK-ASCRIBE EDGH,Pharmacy Stock,HEALTHCARE AT HOME LTD,0001388033,715.00
Department of Health,East Sussex Hospitals NHS Trust,02/11/2011,STOCK-ASCRIBE EDGH,Pharmacy Stock,HEALTHCARE AT HOME LTD,0001388034,715.00
Department of Health,East Sussex Hospitals NHS Trust,02/11/2011,STOCK-ASCRIBE EDGH,Pharmacy Stock,HEALTHCARE AT HOME LTD,0001388035,715.00
Department of Health,East Sussex Hospitals NHS Trust,02/11/2011,STOCK-ASCRIBE EDGH,Pharmacy Stock,HEALTHCARE AT HOME LTD,0001388036,815.64
Department of Health,East Sussex Hospitals NHS Trust,02/11/2011,STOCK-ASCRIBE EDGH,Pharmacy Stock,HEALTHCARE AT HOME LTD,0001388037,715.00
Department of Health,East Sussex Hospitals NHS Trust,02/11/2011,STOCK-ASCRIBE EDGH,Pharmacy Stock,HEALTHCARE AT HOME LTD,0001388038,715.00
Department of Health,East Sussex Hospitals NHS Trust,02/11/2011,STOCK-ASCRIBE EDGH,Pharmacy Stock,HEALTHCARE AT HOME LTD,0001388039,715.00
Department of Health,East Sussex Hospitals NHS Trust,02/11/2011,STOCK-ASCRIBE EDGH,Pharmacy Stock,HEALTHCARE AT HOME LTD,0001388040,704.28
Department of Health,East Sussex Hospitals NHS Trust,02/11/2011,STOCK-ASCRIBE EDGH,Pharmacy Stock,HEALTHCARE AT HOME LTD,0001388041,715.00
Department of Health,East Sussex Hospitals NHS Trust,02/11/2011,STOCK-ASCRIBE EDGH,Pharmacy Stock,HEALTHCARE AT HOME LTD,0001388042,715.00
Department of Health,East Sussex Hospitals NHS Trust,02/11/2011,STOCK-ASCRIBE EDGH,Pharmacy Stock,HEALTHCARE AT HOME LTD,0001388043,715.00
Department of Health,East Sussex Hospitals NHS Trust,02/11/2011,STOCK-ASCRIBE EDGH,Pharmacy Stock,HEALTHCARE AT HOME LTD,0001388044,715.00
Department of Health,East Sussex Hospitals NHS Trust,02/11/2011,STOCK-ASCRIBE EDGH,Pharmacy Stock,HEALTHCARE AT HOME LTD,0001388045,704.28
Department of Health,East Sussex Hospitals NHS Trust,02/11/2011,STOCK-ASCRIBE EDGH,Pharmacy Stock,HEALTHCARE AT HOME LTD,0001388046,715.00
Department of Health,East Sussex Hospitals NHS Trust,02/11/2011,STOCK-ASCRIBE EDGH,Pharmacy Stock,HEALTHCARE AT HOME LTD,0001388047,704.28
Department of Health,East Sussex Hospitals NHS Trust,02/11/2011,STOCK-ASCRIBE EDGH,Pharmacy Stock,HEALTHCARE AT HOME LTD,0001388048,715.00
Department of Health,East Sussex Hospitals NHS Trust,02/11/2011,STOCK-ASCRIBE EDGH,Pharmacy Stock,HEALTHCARE AT HOME LTD,0001388049,715.00
Department of Health,East Sussex Hospitals NHS Trust,02/11/2011,STOCK-ASCRIBE EDGH,Pharmacy Stock,HEALTHCARE AT HOME LTD,0001388050,704.28
Department of Health,East Sussex Hospitals NHS Trust,02/11/2011,STOCK-ASCRIBE EDGH,Pharmacy Stock,HEALTHCARE AT HOME LTD,0001388051,715.00
Department of Health,East Sussex Hospitals NHS Trust,02/11/2011,STOCK-ASCRIBE EDGH,Pharmacy Stock,HEALTHCARE AT HOME LTD,0001388052,704.28
Department of Health,East Sussex Hospitals NHS Trust,02/11/2011,STOCK-ASCRIBE EDGH,Pharmacy Stock,HEALTHCARE AT HOME LTD,0001388053,715.00
Department of Health,East Sussex Hospitals NHS Trust,02/11/2011,STOCK-ASCRIBE EDGH,Pharmacy Stock,HEALTHCARE AT HOME LTD,0001388054,704.28
Department of Health,East Sussex Hospitals NHS Trust,02/11/2011,STOCK-ASCRIBE EDGH,Pharmacy Stock,HEALTHCARE AT HOME LTD,0001388055,704.28
Department of Health,East Sussex Hospitals NHS Trust,02/11/2011,STOCK-ASCRIBE EDGH,Pharmacy Stock,HEALTHCARE AT HOME LTD,0001388056,715.00
Department of Health,East Sussex Hospitals NHS Trust,02/11/2011,STOCK-ASCRIBE EDGH,Pharmacy Stock,HEALTHCARE AT HOME LTD,0001388057,715.00
Department of Health,East Sussex Hospitals NHS Trust,02/11/2011,STOCK-ASCRIBE EDGH,Pharmacy Stock,HEALTHCARE AT HOME LTD,0001388058,704.28
Department of Health,East Sussex Hospitals NHS Trust,02/11/2011,STOCK-ASCRIBE EDGH,Pharmacy Stock,HEALTHCARE AT HOME LTD,0001388059,715.00
Department of Health,East Sussex Hospitals NHS Trust,02/11/2011,STOCK-ASCRIBE EDGH,Pharmacy Stock,HEALTHCARE AT HOME LTD,0001388060,704.28
Department of Health,East Sussex Hospitals NHS Trust,02/11/2011,STOCK-ASCRIBE EDGH,Pharmacy Stock,HEALTHCARE AT HOME LTD,0001388061,704.28
Department of Health,East Sussex Hospitals NHS Trust,02/11/2011,STOCK-ASCRIBE EDGH,Pharmacy Stock,HEALTHCARE AT HOME LTD,0001388062,715.00
Department of Health,East Sussex Hospitals NHS Trust,02/11/2011,STOCK-ASCRIBE EDGH,Pharmacy Stock,HEALTHCARE AT HOME LTD,0001388063,704.28
Department of Health,East Sussex Hospitals NHS Trust,02/11/2011,STOCK-ASCRIBE EDGH,Pharmacy Stock,HEALTHCARE AT HOME LTD,0001388064,704.28
Department of Health,East Sussex Hospitals NHS Trust,02/11/2011,STOCK-ASCRIBE EDGH,Pharmacy Stock,HEALTHCARE AT HOME LTD,0001388065,704.28
Department of Health,East Sussex Hospitals NHS Trust,02/11/2011,STOCK-ASCRIBE EDGH,Pharmacy Stock,HEALTHCARE AT HOME LTD,0001388066,715.00
Department of Health,East Sussex Hospitals NHS Trust,02/11/2011,STOCK-ASCRIBE EDGH,Pharmacy Stock,HEALTHCARE AT HOME LTD,0001388067,715.00
Department of Health,East Sussex Hospitals NHS Trust,02/11/2011,STOCK-ASCRIBE EDGH,Pharmacy Stock,HEALTHCARE AT HOME LTD,0001388068,715.00
Department of Health,East Sussex Hospitals NHS Trust,02/11/2011,STOCK-ASCRIBE EDGH,Pharmacy Stock,HEALTHCARE AT HOME LTD,0001388069,715.00
Department of Health,East Sussex Hospitals NHS Trust,02/11/2011,STOCK-ASCRIBE EDGH,Pharmacy Stock,HEALTHCARE AT HOME LTD,0001388070,704.28
Department of Health,East Sussex Hospitals NHS Trust,02/11/2011,STOCK-ASCRIBE EDGH,Pharmacy Stock,HEALTHCARE AT HOME LTD,0001388071,704.28
Department of Health,East Sussex Hospitals NHS Trust,02/11/2011,STOCK-ASCRIBE EDGH,Pharmacy Stock,HEALTHCARE AT HOME LTD,0001388072,715.00
Department of Health,East Sussex Hospitals NHS Trust,02/11/2011,STOCK-ASCRIBE EDGH,Pharmacy Stock,HEALTHCARE AT HOME LTD,0001388073,715.00
Department of Health,East Sussex Hospitals NHS Trust,02/11/2011,STOCK-ASCRIBE EDGH,Pharmacy Stock,HEALTHCARE AT HOME LTD,0001388074,715.00
Department of Health,East Sussex Hospitals NHS Trust,02/11/2011,STOCK-ASCRIBE EDGH,Pharmacy Stock,HEALTHCARE AT HOME LTD,0001388075,815.64
Department of Health,East Sussex Hospitals NHS Trust,02/11/2011,STOCK-ASCRIBE EDGH,Pharmacy Stock,HEALTHCARE AT HOME LTD,0001388076,704.28
Department of Health,East Sussex Hospitals NHS Trust,02/11/2011,STOCK-ASCRIBE EDGH,Pharmacy Stock,HEALTHCARE AT HOME LTD,0001388077,715.00
Department of Health,East Sussex Hospitals NHS Trust,02/11/2011,STOCK-ASCRIBE EDGH,Pharmacy Stock,HEALTHCARE AT HOME LTD,0001388183,704.28
Department of Health,East Sussex Hospitals NHS Trust,02/11/2011,STOCK-ASCRIBE EDGH,Pharmacy Stock,HEALTHCARE AT HOME LTD,0001388184,715.00
Department of Health,East Sussex Hospitals NHS Trust,02/11/2011,STOCK-ASCRIBE EDGH,Pharmacy Stock,HEALTHCARE AT HOME LTD,0001388185,704.28
Department of Health,East Sussex Hospitals NHS Trust,02/11/2011,STOCK-ASCRIBE EDGH,Pharmacy Stock,HEALTHCARE AT HOME LTD,0001388186,4225.68
Department of Health,East Sussex Hospitals NHS Trust,02/11/2011,STOCK-ASCRIBE EDGH,Pharmacy Stock,HEALTHCARE AT HOME LTD,0001388187,715.00
Department of Health,East Sussex Hospitals NHS Trust,02/11/2011,STOCK-ASCRIBE EDGH,Pharmacy Stock,HEALTHCARE AT HOME LTD,0001388188,715.00
Department of Health,East Sussex Hospitals NHS Trust,02/11/2011,STOCK-ASCRIBE EDGH,Pharmacy Stock,HEALTHCARE AT HOME LTD,0001388189,704.28
Department of Health,East Sussex Hospitals NHS Trust,02/11/2011,STOCK-ASCRIBE EDGH,Pharmacy Stock,HEALTHCARE AT HOME LTD,0001388190,704.28
Department of Health,East Sussex Hospitals NHS Trust,02/11/2011,STOCK-ASCRIBE EDGH,Pharmacy Stock,HEALTHCARE AT HOME LTD,0001388191,704.28
Department of Health,East Sussex Hospitals NHS Trust,02/11/2011,STOCK-ASCRIBE EDGH,Pharmacy Stock,HEALTHCARE AT HOME LTD,0001388192,704.28
Department of Health,East Sussex Hospitals NHS Trust,02/11/2011,STOCK-ASCRIBE EDGH,Pharmacy Stock,HEALTHCARE AT HOME LTD,0001388193,715.00
Department of Health,East Sussex Hospitals NHS Trust,02/11/2011,STOCK-ASCRIBE EDGH,Pharmacy Stock,HEALTHCARE AT HOME LTD,0001388194,715.00
Department of Health,East Sussex Hospitals NHS Trust,02/11/2011,STOCK-ASCRIBE EDGH,Pharmacy Stock,HEALTHCARE AT HOME LTD,0001388195,715.00
Department of Health,East Sussex Hospitals NHS Trust,02/11/2011,STOCK-ASCRIBE EDGH,Pharmacy Stock,HEALTHCARE AT HOME LTD,0001388196,704.28
Department of Health,East Sussex Hospitals NHS Trust,02/11/2011,STOCK-ASCRIBE EDGH,Pharmacy Stock,HEALTHCARE AT HOME LTD,0001388197,704.28
Department of Health,East Sussex Hospitals NHS Trust,02/11/2011,STOCK-ASCRIBE EDGH,Pharmacy Stock,HEALTHCARE AT HOME LTD,0001388198,1430.00
Department of Health,East Sussex Hospitals NHS Trust,02/11/2011,STOCK-ASCRIBE EDGH,Pharmacy Stock,HEALTHCARE AT HOME LTD,0001388199,704.28
Department of Health,East Sussex Hospitals NHS Trust,02/11/2011,STOCK-ASCRIBE EDGH,Pharmacy Stock,HEALTHCARE AT HOME LTD,0001388200,715.00
Department of Health,East Sussex Hospitals NHS Trust,02/11/2011,STOCK-ASCRIBE EDGH,Pharmacy Stock,HEALTHCARE AT HOME LTD,0001388201,715.00
Department of Health,East Sussex Hospitals NHS Trust,02/11/2011,STOCK-ASCRIBE EDGH,Pharmacy Stock,HEALTHCARE AT HOME LTD,0001388202,715.00
Department of Health,East Sussex Hospitals NHS Trust,02/11/2011,STOCK-ASCRIBE EDGH,Pharmacy Stock,HEALTHCARE AT HOME LTD,0001388203,715.00
Department of Health,East Sussex Hospitals NHS Trust,02/11/2011,STOCK-ASCRIBE EDGH,Pharmacy Stock,HEALTHCARE AT HOME LTD,0001388204,715.00
Department of Health,East Sussex Hospitals NHS Trust,02/11/2011,STOCK-ASCRIBE EDGH,Pharmacy Stock,HEALTHCARE AT HOME LTD,0001388205,715.00
Department of Health,East Sussex Hospitals NHS Trust,02/11/2011,STOCK-ASCRIBE EDGH,Pharmacy Stock,HEALTHCARE AT HOME LTD,0001388206,704.28
Department of Health,East Sussex Hospitals NHS Trust,02/11/2011,STOCK-ASCRIBE EDGH,Pharmacy Stock,HEALTHCARE AT HOME LTD,0001388207,715.00
Department of Health,East Sussex Hospitals NHS Trust,02/11/2011,STOCK-ASCRIBE EDGH,Pharmacy Stock,HEALTHCARE AT HOME LTD,0001388208,704.28
Department of Health,East Sussex Hospitals NHS Trust,02/11/2011,STOCK-ASCRIBE EDGH,Pharmacy Stock,HEALTHCARE AT HOME LTD,0001388209,704.28
Department of Health,East Sussex Hospitals NHS Trust,02/11/2011,STOCK-ASCRIBE EDGH,Pharmacy Stock,HEALTHCARE AT HOME LTD,0001388210,715.00
Department of Health,East Sussex Hospitals NHS Trust,02/11/2011,STOCK-ASCRIBE EDGH,Pharmacy Stock,HEALTHCARE AT HOME LTD,0001388211,715.00
Department of Health,East Sussex Hospitals NHS Trust,02/11/2011,STOCK-ASCRIBE EDGH,Pharmacy Stock,HEALTHCARE AT HOME LTD,0001388212,704.28
Department of Health,East Sussex Hospitals NHS Trust,02/11/2011,STOCK-ASCRIBE EDGH,Pharmacy Stock,HEALTHCARE AT HOME LTD,0001388213,704.28
Department of Health,East Sussex Hospitals NHS Trust,02/11/2011,STOCK-ASCRIBE EDGH,Pharmacy Stock,HEALTHCARE AT HOME LTD,0001388214,704.28
Department of Health,East Sussex Hospitals NHS Trust,02/11/2011,STOCK-ASCRIBE EDGH,Pharmacy Stock,HEALTHCARE AT HOME LTD,0001388215,704.28
Department of Health,East Sussex Hospitals NHS Trust,02/11/2011,STOCK-ASCRIBE EDGH,Pharmacy Stock,HEALTHCARE AT HOME LTD,0001388216,715.00
Department of Health,East Sussex Hospitals NHS Trust,02/11/2011,STOCK-ASCRIBE EDGH,Pharmacy Stock,HEALTHCARE AT HOME LTD,0001388217,704.28
Department of Health,East Sussex Hospitals NHS Trust,02/11/2011,STOCK-ASCRIBE EDGH,Pharmacy Stock,HEALTHCARE AT HOME LTD,0001388218,704.28
Department of Health,East Sussex Hospitals NHS Trust,02/11/2011,STOCK-ASCRIBE EDGH,Pharmacy Stock,HEALTHCARE AT HOME LTD,0001388219,704.28
Department of Health,East Sussex Hospitals NHS Trust,02/11/2011,STOCK-ASCRIBE EDGH,Pharmacy Stock,HEALTHCARE AT HOME LTD,0001388220,704.28
Department of Health,East Sussex Hospitals NHS Trust,02/11/2011,STOCK-ASCRIBE EDGH,Pharmacy Stock,HEALTHCARE AT HOME LTD,0001388221,2817.12
Department of Health,East Sussex Hospitals NHS Trust,02/11/2011,STOCK-ASCRIBE EDGH,Pharmacy Stock,HEALTHCARE AT HOME LTD,0001388222,715.00
Department of Health,East Sussex Hospitals NHS Trust,02/11/2011,STOCK-ASCRIBE EDGH,Pharmacy Stock,HEALTHCARE AT HOME LTD,0001388223,715.00
Department of Health,East Sussex Hospitals NHS Trust,02/11/2011,STOCK-ASCRIBE EDGH,Pharmacy Stock,HEALTHCARE AT HOME LTD,0001388224,704.28
Department of Health,East Sussex Hospitals NHS Trust,02/11/2011,STOCK-ASCRIBE EDGH,Pharmacy Stock,HEALTHCARE AT HOME LTD,0001388225,715.00
Department of Health,East Sussex Hospitals NHS Trust,02/11/2011,STOCK-ASCRIBE EDGH,Pharmacy Stock,HEALTHCARE AT HOME LTD,0001388226,704.28
Department of Health,East Sussex Hospitals NHS Trust,02/11/2011,STOCK-ASCRIBE EDGH,Pharmacy Stock,HEALTHCARE AT HOME LTD,0001388227,704.28
Department of Health,East Sussex Hospitals NHS Trust,02/11/2011,STOCK-ASCRIBE EDGH,Pharmacy Stock,HEALTHCARE AT HOME LTD,0001388228,704.28
Department of Health,East Sussex Hospitals NHS Trust,02/11/2011,STOCK-ASCRIBE EDGH,Pharmacy Stock,HEALTHCARE AT HOME LTD,0001388229,704.28
Department of Health,East Sussex Hospitals NHS Trust,02/11/2011,STOCK-ASCRIBE EDGH,Pharmacy Stock,HEALTHCARE AT HOME LTD,0001388230,1501.85
Department of Health,East Sussex Hospitals NHS Trust,02/11/2011,STOCK-ASCRIBE EDGH,Pharmacy Stock,HEALTHCARE AT HOME LTD,0001388231,715.00
Department of Health,East Sussex Hospitals NHS Trust,02/11/2011,STOCK-ASCRIBE EDGH,Pharmacy Stock,HEALTHCARE AT HOME LTD,0001388232,715.00
Department of Health,East Sussex Hospitals NHS Trust,02/11/2011,STOCK-ASCRIBE EDGH,Pharmacy Stock,HEALTHCARE AT HOME LTD,0001388234,704.28
Department of Health,East Sussex Hospitals NHS Trust,02/11/2011,STOCK-ASCRIBE EDGH,Pharmacy Stock,HEALTHCARE AT HOME LTD,0001388235,715.00
Department of Health,East Sussex Hospitals NHS Trust,02/11/2011,STOCK-ASCRIBE EDGH,Pharmacy Stock,HEALTHCARE AT HOME LTD,0001388236,715.00
Department of Health,East Sussex Hospitals NHS Trust,02/11/2011,STOCK-ASCRIBE EDGH,Pharmacy Stock,HEALTHCARE AT HOME LTD,0001388237,704.28
Department of Health,East Sussex Hospitals NHS Trust,02/11/2011,STOCK-ASCRIBE EDGH,Pharmacy Stock,HEALTHCARE AT HOME LTD,0001388238,1408.56
Department of Health,East Sussex Hospitals NHS Trust,02/11/2011,STOCK-ASCRIBE EDGH,Pharmacy Stock,HEALTHCARE AT HOME LTD,0001388239,715.00
Department of Health,East Sussex Hospitals NHS Trust,02/11/2011,STOCK-ASCRIBE EDGH,Pharmacy Stock,HEALTHCARE AT HOME LTD,0001388240,704.28
Department of Health,East Sussex Hospitals NHS Trust,02/11/2011,STOCK-ASCRIBE EDGH,Pharmacy Stock,HEALTHCARE AT HOME LTD,0001388241,715.00
Department of Health,East Sussex Hospitals NHS Trust,02/11/2011,STOCK-ASCRIBE EDGH,Pharmacy Stock,HEALTHCARE AT HOME LTD,0001388242,715.00
Department of Health,East Sussex Hospitals NHS Trust,02/11/2011,STOCK-ASCRIBE EDGH,Pharmacy Stock,HEALTHCARE AT HOME LTD,0001388243,715.00
Department of Health,East Sussex Hospitals NHS Trust,02/11/2011,STOCK-ASCRIBE EDGH,Pharmacy Stock,HEALTHCARE AT HOME LTD,0001388245,1408.56
Department of Health,East Sussex Hospitals NHS Trust,02/11/2011,STOCK-ASCRIBE EDGH,Pharmacy Stock,HEALTHCARE AT HOME LTD,0001388246,704.28
Department of Health,East Sussex Hospitals NHS Trust,02/11/2011,STOCK-ASCRIBE EDGH,Pharmacy Stock,HEALTHCARE AT HOME LTD,0001388247,704.28
Department of Health,East Sussex Hospitals NHS Trust,02/11/2011,STOCK-ASCRIBE EDGH,Pharmacy Stock,HEALTHCARE AT HOME LTD,0001388248,704.28
Department of Health,East Sussex Hospitals NHS Trust,02/11/2011,STOCK-ASCRIBE EDGH,Pharmacy Stock,HEALTHCARE AT HOME LTD,0001388249,704.28
Department of Health,East Sussex Hospitals NHS Trust,02/11/2011,STOCK-ASCRIBE EDGH,Pharmacy Stock,HEALTHCARE AT HOME LTD,0001388250,704.28
Department of Health,East Sussex Hospitals NHS Trust,02/11/2011,STOCK-ASCRIBE EDGH,Pharmacy Stock,HEALTHCARE AT HOME LTD,0001388251,715.00
Department of Health,East Sussex Hospitals NHS Trust,02/11/2011,STOCK-ASCRIBE EDGH,Pharmacy Stock,HEALTHCARE AT HOME LTD,0001388252,704.28
Department of Health,East Sussex Hospitals NHS Trust,02/11/2011,STOCK-ASCRIBE EDGH,Pharmacy Stock,HEALTHCARE AT HOME LTD,0001388253,704.28
Department of Health,East Sussex Hospitals NHS Trust,02/11/2011,STOCK-ASCRIBE EDGH,Pharmacy Stock,HEALTHCARE AT HOME LTD,0001388254,1408.56
Department of Health,East Sussex Hospitals NHS Trust,02/11/2011,STOCK-ASCRIBE EDGH,Pharmacy Stock,HEALTHCARE AT HOME LTD,0001388255,715.00
Department of Health,East Sussex Hospitals NHS Trust,02/11/2011,STOCK-ASCRIBE EDGH,Pharmacy Stock,HEALTHCARE AT HOME LTD,0001388256,715.00
Department of Health,East Sussex Hospitals NHS Trust,02/11/2011,STOCK-ASCRIBE EDGH,Pharmacy Stock,HEALTHCARE AT HOME LTD,0001388257,715.00
Department of Health,East Sussex Hospitals NHS Trust,02/11/2011,STOCK-ASCRIBE EDGH,Pharmacy Stock,HEALTHCARE AT HOME LTD,0001388258,704.28
Department of Health,East Sussex Hospitals NHS Trust,02/11/2011,STOCK-ASCRIBE EDGH,Pharmacy Stock,HEALTHCARE AT HOME LTD,0001388259,704.28
Department of Health,East Sussex Hospitals NHS Trust,02/11/2011,STOCK-ASCRIBE EDGH,Pharmacy Stock,HEALTHCARE AT HOME LTD,0001388260,715.00
Department of Health,East Sussex Hospitals NHS Trust,02/11/2011,STOCK-ASCRIBE EDGH,Pharmacy Stock,HEALTHCARE AT HOME LTD,0001388261,715.00
Department of Health,East Sussex Hospitals NHS Trust,02/11/2011,STOCK-ASCRIBE EDGH,Pharmacy Stock,HEALTHCARE AT HOME LTD,0001388262,715.00
Department of Health,East Sussex Hospitals NHS Trust,02/11/2011,STOCK-ASCRIBE EDGH,Pharmacy Stock,HEALTHCARE AT HOME LTD,0001388263,715.00
Department of Health,East Sussex Hospitals NHS Trust,02/11/2011,STOCK-ASCRIBE EDGH,Pharmacy Stock,HEALTHCARE AT HOME LTD,0001388264,715.00
Department of Health,East Sussex Hospitals NHS Trust,02/11/2011,STOCK-ASCRIBE EDGH,Pharmacy Stock,HEALTHCARE AT HOME LTD,0001388265,715.00
Department of Health,East Sussex Hospitals NHS Trust,02/11/2011,STOCK-ASCRIBE EDGH,Pharmacy Stock,HEALTHCARE AT HOME LTD,0001388266,704.28
Department of Health,East Sussex Hospitals NHS Trust,02/11/2011,STOCK-ASCRIBE EDGH,Pharmacy Stock,HEALTHCARE AT HOME LTD,0001388267,704.28
Department of Health,East Sussex Hospitals NHS Trust,02/11/2011,STOCK-ASCRIBE EDGH,Pharmacy Stock,HEALTHCARE AT HOME LTD,0001388268,715.00
Department of Health,East Sussex Hospitals NHS Trust,02/11/2011,STOCK-ASCRIBE EDGH,Pharmacy Stock,HEALTHCARE AT HOME LTD,0001388269,1408.56
Department of Health,East Sussex Hospitals NHS Trust,02/11/2011,STOCK-ASCRIBE EDGH,Pharmacy Stock,HEALTHCARE AT HOME LTD,0001388270,715.00
Department of Health,East Sussex Hospitals NHS Trust,02/11/2011,STOCK-ASCRIBE EDGH,Pharmacy Stock,HEALTHCARE AT HOME LTD,0001388271,715.00
Department of Health,East Sussex Hospitals NHS Trust,02/11/2011,STOCK-ASCRIBE EDGH,Pharmacy Stock,HEALTHCARE AT HOME LTD,0001388272,815.64
Department of Health,East Sussex Hospitals NHS Trust,02/11/2011,STOCK-ASCRIBE EDGH,Pharmacy Stock,HEALTHCARE AT HOME LTD,0001388274,704.28
Department of Health,East Sussex Hospitals NHS Trust,02/11/2011,STOCK-ASCRIBE EDGH,Pharmacy Stock,HEALTHCARE AT HOME LTD,0001388275,715.00
Department of Health,East Sussex Hospitals NHS Trust,02/11/2011,STOCK-ASCRIBE EDGH,Pharmacy Stock,HEALTHCARE AT HOME LTD,0001388276,715.00
Department of Health,East Sussex Hospitals NHS Trust,02/11/2011,STOCK-ASCRIBE EDGH,Pharmacy Stock,HEALTHCARE AT HOME LTD,0001388277,1430.00
Department of Health,East Sussex Hospitals NHS Trust,02/11/2011,STOCK-ASCRIBE EDGH,Pharmacy Stock,HEALTHCARE AT HOME LTD,0001388278,704.28
Department of Health,East Sussex Hospitals NHS Trust,02/11/2011,STOCK-ASCRIBE EDGH,Pharmacy Stock,HEALTHCARE AT HOME LTD,0001388279,715.00
Department of Health,East Sussex Hospitals NHS Trust,02/11/2011,STOCK-ASCRIBE EDGH,Pharmacy Stock,HEALTHCARE AT HOME LTD,0001388280,704.28
Department of Health,East Sussex Hospitals NHS Trust,02/11/2011,STOCK-ASCRIBE EDGH,Pharmacy Stock,HEALTHCARE AT HOME LTD,0001388281,1408.56
Department of Health,East Sussex Hospitals NHS Trust,02/11/2011,STOCK-ASCRIBE EDGH,Pharmacy Stock,HEALTHCARE AT HOME LTD,0001388282,715.00
Department of Health,East Sussex Hospitals NHS Trust,02/11/2011,STOCK-ASCRIBE EDGH,Pharmacy Stock,HEALTHCARE AT HOME LTD,0001388283,715.00
Department of Health,East Sussex Hospitals NHS Trust,02/11/2011,STOCK-ASCRIBE EDGH,Pharmacy Stock,HEALTHCARE AT HOME LTD,0001388284,2817.12
Department of Health,East Sussex Hospitals NHS Trust,02/11/2011,STOCK-ASCRIBE EDGH,Pharmacy Stock,HEALTHCARE AT HOME LTD,0001388285,2817.12
Department of Health,East Sussex Hospitals NHS Trust,02/11/2011,STOCK-ASCRIBE EDGH,Pharmacy Stock,HEALTHCARE AT HOME LTD,0001388286,715.00
Department of Health,East Sussex Hospitals NHS Trust,02/11/2011,STOCK-ASCRIBE EDGH,Pharmacy Stock,HEALTHCARE AT HOME LTD,0001388287,715.00
Department of Health,East Sussex Hospitals NHS Trust,02/11/2011,STOCK-ASCRIBE EDGH,Pharmacy Stock,HEALTHCARE AT HOME LTD,0001388288,704.28
Department of Health,East Sussex Hospitals NHS Trust,02/11/2011,STOCK-ASCRIBE EDGH,Pharmacy Stock,HEALTHCARE AT HOME LTD,0001388289,704.28
Department of Health,East Sussex Hospitals NHS Trust,02/11/2011,STOCK-ASCRIBE EDGH,Pharmacy Stock,HEALTHCARE AT HOME LTD,0001388290,715.00
Department of Health,East Sussex Hospitals NHS Trust,02/11/2011,STOCK-ASCRIBE EDGH,Pharmacy Stock,HEALTHCARE AT HOME LTD,0001388291,715.00
Department of Health,East Sussex Hospitals NHS Trust,02/11/2011,STOCK-ASCRIBE EDGH,Pharmacy Stock,HEALTHCARE AT HOME LTD,0001388292,715.00
Department of Health,East Sussex Hospitals NHS Trust,02/11/2011,STOCK-ASCRIBE EDGH,Pharmacy Stock,HEALTHCARE AT HOME LTD,0001388293,704.28
Department of Health,East Sussex Hospitals NHS Trust,02/11/2011,STOCK-ASCRIBE EDGH,Pharmacy Stock,HEALTHCARE AT HOME LTD,0001388294,715.00
Department of Health,East Sussex Hospitals NHS Trust,02/11/2011,STOCK-ASCRIBE EDGH,Pharmacy Stock,HEALTHCARE AT HOME LTD,0001388295,704.28
Department of Health,East Sussex Hospitals NHS Trust,02/11/2011,STOCK-ASCRIBE EDGH,Pharmacy Stock,HEALTHCARE AT HOME LTD,0001388296,704.28
Department of Health,East Sussex Hospitals NHS Trust,02/11/2011,STOCK-ASCRIBE EDGH,Pharmacy Stock,HEALTHCARE AT HOME LTD,0001388297,715.00
Department of Health,East Sussex Hospitals NHS Trust,02/11/2011,STOCK-ASCRIBE EDGH,Pharmacy Stock,HEALTHCARE AT HOME LTD,0001388298,715.00
Department of Health,East Sussex Hospitals NHS Trust,02/11/2011,STOCK-ASCRIBE EDGH,Pharmacy Stock,HEALTHCARE AT HOME LTD,0001388299,715.00
Department of Health,East Sussex Hospitals NHS Trust,02/11/2011,STOCK-ASCRIBE EDGH,Pharmacy Stock,HEALTHCARE AT HOME LTD,0001388300,704.28
Department of Health,East Sussex Hospitals NHS Trust,02/11/2011,STOCK-ASCRIBE EDGH,Pharmacy Stock,HEALTHCARE AT HOME LTD,0001388301,704.28
Department of Health,East Sussex Hospitals NHS Trust,02/11/2011,STOCK-ASCRIBE EDGH,Pharmacy Stock,HEALTHCARE AT HOME LTD,0001388302,715.00
Department of Health,East Sussex Hospitals NHS Trust,02/11/2011,STOCK-ASCRIBE EDGH,Pharmacy Stock,HEALTHCARE AT HOME LTD,0001388303,715.00
Department of Health,East Sussex Hospitals NHS Trust,02/11/2011,STOCK-ASCRIBE EDGH,Pharmacy Stock,HEALTHCARE AT HOME LTD,0001388304,715.00
Department of Health,East Sussex Hospitals NHS Trust,02/11/2011,STOCK-ASCRIBE EDGH,Pharmacy Stock,HEALTHCARE AT HOME LTD,0001388305,704.28
Department of Health,East Sussex Hospitals NHS Trust,02/11/2011,STOCK-ASCRIBE EDGH,Pharmacy Stock,HEALTHCARE AT HOME LTD,0001388306,715.00
Department of Health,East Sussex Hospitals NHS Trust,02/11/2011,STOCK-ASCRIBE EDGH,Pharmacy Stock,HEALTHCARE AT HOME LTD,0001388307,715.00
Department of Health,East Sussex Hospitals NHS Trust,02/11/2011,STOCK-ASCRIBE EDGH,Pharmacy Stock,HEALTHCARE AT HOME LTD,0001388308,715.00
Department of Health,East Sussex Hospitals NHS Trust,02/11/2011,STOCK-ASCRIBE EDGH,Pharmacy Stock,HEALTHCARE AT HOME LTD,0001388309,715.00
Department of Health,East Sussex Hospitals NHS Trust,02/11/2011,STOCK-ASCRIBE EDGH,Pharmacy Stock,HEALTHCARE AT HOME LTD,0001388310,704.28
Department of Health,East Sussex Hospitals NHS Trust,02/11/2011,STOCK-ASCRIBE EDGH,Pharmacy Stock,HEALTHCARE AT HOME LTD,0001388311,715.00
Department of Health,East Sussex Hospitals NHS Trust,02/11/2011,STOCK-ASCRIBE EDGH,Pharmacy Stock,HEALTHCARE AT HOME LTD,0001388312,1408.56
Department of Health,East Sussex Hospitals NHS Trust,02/11/2011,STOCK-ASCRIBE EDGH,Pharmacy Stock,HEALTHCARE AT HOME LTD,0001388313,715.00
Department of Health,East Sussex Hospitals NHS Trust,02/11/2011,STOCK-ASCRIBE EDGH,Pharmacy Stock,HEALTHCARE AT HOME LTD,0001388426,588.32
Department of Health,East Sussex Hospitals NHS Trust,02/11/2011,STOCK-ASCRIBE EDGH,Pharmacy Stock,HEALTHCARE AT HOME LTD,0001388427,567.35
Department of Health,East Sussex Hospitals NHS Trust,02/11/2011,STOCK-ASCRIBE EDGH,Pharmacy Stock,SMALL SCALE PHARMACEUTICALS (BRIGHT) LTD,0001388442,511.20
Department of Health,East Sussex Hospitals NHS Trust,02/11/2011,BIOSENSE-EDGH CATH LAB,Urgent Care,JOHNSON & JOHNSON MEDICAL LTD,0001412840,2400.00
Department of Health,East Sussex Hospitals NHS Trust,02/11/2011,STYKER,Planned Care,STRYKER UK,0001412861,7787.70
Department of Health,East Sussex Hospitals NHS Trust,02/11/2011,KEYMED (OUTPATIENTS),Integrated Care,HAAG-STREIT UK LTD,0001412889,897.31
Department of Health,East Sussex Hospitals NHS Trust,02/11/2011,KEYMED (OUTPATIENTS),Integrated Care,HAAG-STREIT UK LTD,0001412890,545.85
Department of Health,East Sussex Hospitals NHS Trust,02/11/2011,VEHICLE EA55 VXR,Cross Site,LEX AUTOLEASE LTD,0001412892,648.54
Department of Health,East Sussex Hospitals NHS Trust,02/11/2011,CONT.MAIN-MED & SURG EQUIP,Integrated Care,PROSPECT DIAGNOSTICS LTD,0001413139,1413.00
Department of Health,East Sussex Hospitals NHS Trust,02/11/2011,FUNERAL EXPENSES,Corporate Services,DIGNITY FUNERALS LTD,0001413142,1190.00
Department of Health,East Sussex Hospitals NHS Trust,02/11/2011,FUNERAL EXPENSES,Corporate Services,DIGNITY FUNERALS LTD,0001413143,1190.00
Department of Health,East Sussex Hospitals NHS Trust,02/11/2011,TELEPHONES-RENTAL&CALLS,Commercial,BRITISH TELECOM,0001413175,1710.52
Department of Health,East Sussex Hospitals NHS Trust,02/11/2011,TELEPHONES-RENTAL&CALLS,Commercial,BRITISH TELECOM,0001413176,1363.98
Department of Health,East Sussex Hospitals NHS Trust,02/11/2011,AGENCY TECHNICIAN,Urgent Care,YOUR WORLD RECRUITMENT LTD,0001413483,1615.61
Department of Health,East Sussex Hospitals NHS Trust,02/11/2011,AGENCY TECHNICIAN,Urgent Care,YOUR WORLD RECRUITMENT LTD,0001413484,2267.52
Department of Health,East Sussex Hospitals NHS Trust,02/11/2011,AGENCY TECHNICIAN,Urgent Care,YOUR WORLD RECRUITMENT LTD,0001413485,1483.80
Department of Health,East Sussex Hospitals NHS Trust,02/11/2011,AGENCY TECHNICIAN,Urgent Care,YOUR WORLD RECRUITMENT LTD,0001413486,2267.52
Department of Health,East Sussex Hospitals NHS Trust,02/11/2011,PROFESSIONAL FEES,Planned Care,SYNERTEC LTD,0001413615,3780.90
Department of Health,East Sussex Hospitals NHS Trust,02/11/2011,PROFESSIONAL FEES,Planned Care,SYNERTEC LTD,0001413616,3539.09
Department of Health,East Sussex Hospitals NHS Trust,02/11/2011,"BOOKS, JOURNALS & SUBCRIPTIONS",Commercial,PERFORMING RIGHTS SOCIETY LTD,0001413669,2752.13
Department of Health,East Sussex Hospitals NHS Trust,02/11/2011,LAUNDRY EQUIPMENT,Urgent Care,JLA TOTAL CARE LTD,0001413670,494.40
Department of Health,East Sussex Hospitals NHS Trust,02/11/2011,LAUNDRY MACHINES,Commercial,JLA TOTAL CARE LTD,0001413670,607.20
Department of Health,East Sussex Hospitals NHS Trust,02/11/2011,CAPITAL EXPENDITURE,Other Central,PHILIPS MEDICAL SYSTEMS UK LTD,0001413704,33339.60
Department of Health,East Sussex Hospitals NHS Trust,02/11/2011,CAPITAL EXPENDITURE,Other Central,PHILIPS MEDICAL SYSTEMS UK LTD,0001413705,24280.56
Department of Health,East Sussex Hospitals NHS Trust,02/11/2011,TRAINING COURSE FEES-OTHER,Planned Care,INTENSIVE CARE NATIONAL AUDIT & RES CTRE,0001413766,3599.00
Department of Health,East Sussex Hospitals NHS Trust,02/11/2011,HOSPITALITY,Integrated Care,THE HASTINGS CENTRE,0001413770,638.75
Department of Health,East Sussex Hospitals NHS Trust,02/11/2011,HIRE OF ACCOMMODATION,Integrated Care,THE HASTINGS CENTRE,0001413770,175.00
Department of Health,East Sussex Hospitals NHS Trust,02/11/2011,TRAINING COURSE FEES-OTHER,Corporate Services,KING'S COLLEGE LONDON,0001413780,1800.00
Department of Health,East Sussex Hospitals NHS Trust,02/11/2011,AGENCY TECHNICIAN,Urgent Care,VELLA COLLECTIVE LTD,0001413786,960.00
Department of Health,East Sussex Hospitals NHS Trust,02/11/2011,CAPITAL EXPENDITURE,Other Central,H WILSON (ALFRISTON) LTD,0001413808,2425.49
Department of Health,East Sussex Hospitals NHS Trust,02/11/2011,CONTRACTED-OUT H.CARE SERVICES,Integrated Care,BMI HEALTHCARE COLLECTIONS,0001413809,27251.00
Department of Health,East Sussex Hospitals NHS Trust,02/11/2011,CONTRACTED-OUT H.CARE SERVICES,Planned Care,BMI HEALTHCARE COLLECTIONS,0001413810,38889.86
Department of Health,East Sussex Hospitals NHS Trust,02/11/2011,TELEPHONES-RENTAL&CALLS,Commercial,BRITISH TELECOM,0001413819,523.21
Department of Health,East Sussex Hospitals NHS Trust,02/11/2011,SURGICAL INSTRUMENTS,Planned Care,DEPUY INTERNATIONAL LTD (ORTHOPAEDIC),0001413827,-42.42
Department of Health,East Sussex Hospitals NHS Trust,02/11/2011,PROSTHESES-HIP,Planned Care,DEPUY INTERNATIONAL LTD (ORTHOPAEDIC),0001413827,5653.08
Department of Health,East Sussex Hospitals NHS Trust,02/11/2011,NATIONAL JOINT REGISTRY LEVY,Planned Care,DEPUY INTERNATIONAL LTD (ORTHOPAEDIC),0001413827,40.01
Department of Health,East Sussex Hospitals NHS Trust,02/11/2011,PROSTHESES-HIP,Planned Care,DEPUY INTERNATIONAL LTD (ORTHOPAEDIC),0001413828,611.28
Department of Health,East Sussex Hospitals NHS Trust,02/11/2011,CONTRACTED-OUT H.CARE SERVICES,Integrated Care,UP2U HEALTH PROMOTIONS,0001413833,6125.00
Department of Health,East Sussex Hospitals NHS Trust,02/11/2011,PROFESSIONAL FEES,Corporate Services,INFORMATION COMMISSIONER'S OFFICE,0001413835,500.00
Department of Health,East Sussex Hospitals NHS Trust,02/11/2011,CONSULTANCY FEES,Corporate Services,MJ GRANT,0001413841,10593.00
Department of Health,East Sussex Hospitals NHS Trust,02/11/2011,GENERAL LAB. CONSUMABLES,Integrated Care,HOLOGIC UK LTD,0001413846,6600.00
Department of Health,East Sussex Hospitals NHS Trust,02/11/2011,CONTRACT ENGINEERING MAINT,Commercial,ARJO MED AB LTD,0001413850,985.00
Department of Health,East Sussex Hospitals NHS Trust,02/11/2011,CONTRACT-SCANNING SERVICE,Integrated Care,INHEALTH LIMITED,0001517417,54295.10
Department of Health,East Sussex Hospitals NHS Trust,02/11/2011,CONTRACT-SCANNING SERVICE,Integrated Care,INHEALTH LIMITED,0001517653,54208.65
Department of Health,East Sussex Hospitals NHS Trust,02/11/2011,ENGINEER CONTRACT - REPAIR,Commercial,R J URMSON COMISSIONING,0001517730,1350.00
Department of Health,East Sussex Hospitals NHS Trust,02/11/2011,TESTS SENT TO NON NHS LABS,Integrated Care,UNIVERSITY OF BIRMINGHAM,0001517827,833.82
Department of Health,East Sussex Hospitals NHS Trust,02/11/2011,CONTRACTED-OUT H.CARE SERVICES,Integrated Care,ALLIANCE MEDICAL LTD,0001517921,2600.00
Department of Health,East Sussex Hospitals NHS Trust,02/11/2011,PRIVATE AMBULANCE TRANSPORT,Commercial,WEALDEN MEDICAL SERVICES,0001517924,3360.00
Department of Health,East Sussex Hospitals NHS Trust,02/11/2011,LEGAL FEES(PERSONNEL ISSUES),Corporate Services,BEVAN BRITTAN,0001517991,3128.24
Department of Health,East Sussex Hospitals NHS Trust,02/11/2011,COURIER SERVICES,Commercial,INTERLINK EXPRESS PARCELS LIMITED,0001517995,821.21
Department of Health,East Sussex Hospitals NHS Trust,02/11/2011,AGENCY CONSULTANT,Corporate Services,HEALTH MANAGEMENT LTD,0001518002,1662.00
Department of Health,East Sussex Hospitals NHS Trust,02/11/2011,AGENCY CONSULTANT,Corporate Services,HEALTH MANAGEMENT LTD,0001518003,3632.00
Department of Health,East Sussex Hospitals NHS Trust,02/11/2011,AGENCY CONSULTANT,Corporate Services,HEALTH MANAGEMENT LTD,0001518004,454.00
Department of Health,East Sussex Hospitals NHS Trust,02/11/2011,AGENCY CONSULTANT,Corporate Services,HEALTH MANAGEMENT LTD,0001518005,908.00
Department of Health,East Sussex Hospitals NHS Trust,02/11/2011,TRAINING COURSE FEES-OTHER,Commercial,THE CODING SOLUTION COMPANY LTD,0001518019,1294.46
Department of Health,East Sussex Hospitals NHS Trust,02/11/2011,DRUGS-OTHER,Commercial,BATH ASU,0001608905,871.20
Department of Health,East Sussex Hospitals NHS Trust,02/11/2011,DRUGS-OTHER,Commercial,BATH ASU,0001609687,775.32
Department of Health,East Sussex Hospitals NHS Trust,02/11/2011,DRUGS-OTHER,Commercial,BATH ASU,0001609883,1050.00
Department of Health,East Sussex Hospitals NHS Trust,02/11/2011,DRUGS-OTHER,Commercial,AAH PHARMACEUTICALS LTD,0001610316,792.00
Department of Health,East Sussex Hospitals NHS Trust,02/11/2011,DRUGS-OTHER,Commercial,AAH PHARMACEUTICALS LTD,0001610328,553.20
Department of Health,East Sussex Hospitals NHS Trust,02/11/2011,DRUGS-OTHER,Commercial,AAH PHARMACEUTICALS LTD,0001610379,1602.60
Department of Health,East Sussex Hospitals NHS Trust,02/11/2011,DRUGS-OTHER,Commercial,AAH PHARMACEUTICALS LTD,0001610380,593.04
Department of Health,East Sussex Hospitals NHS Trust,02/11/2011,DRUGS-OTHER,Commercial,AAH PHARMACEUTICALS LTD,0001610384,844.56
Department of Health,East Sussex Hospitals NHS Trust,02/11/2011,DRUGS-OTHER,Commercial,AAH PHARMACEUTICALS LTD,0001610385,1207.44
Department of Health,East Sussex Hospitals NHS Trust,02/11/2011,DRUGS-OTHER,Commercial,AAH PHARMACEUTICALS LTD,0001610391,752.40
Department of Health,East Sussex Hospitals NHS Trust,02/11/2011,DRUGS-OTHER,Commercial,AAH PHARMACEUTICALS LTD,0001610394,2013.12
Department of Health,East Sussex Hospitals NHS Trust,02/11/2011,DRUGS-OTHER,Commercial,AAH PHARMACEUTICALS LTD,0001610396,826.08
Department of Health,East Sussex Hospitals NHS Trust,02/11/2011,DRUGS-OTHER,Commercial,AAH PHARMACEUTICALS LTD,0001610398,1759.20
Department of Health,East Sussex Hospitals NHS Trust,02/11/2011,DRUGS-OTHER,Commercial,AAH PHARMACEUTICALS LTD,0001610399,1552.98
Department of Health,East Sussex Hospitals NHS Trust,02/11/2011,DRUGS-OTHER,Commercial,AAH PHARMACEUTICALS LTD,0001610438,550.08
Department of Health,East Sussex Hospitals NHS Trust,02/11/2011,DRUGS-OTHER,Commercial,AAH PHARMACEUTICALS LTD,0001610439,567.48
Department of Health,East Sussex Hospitals NHS Trust,02/11/2011,DRUGS-OTHER,Commercial,AAH PHARMACEUTICALS LTD,0001610451,992.64
Department of Health,East Sussex Hospitals NHS Trust,02/11/2011,DRUGS-OTHER,Commercial,AAH PHARMACEUTICALS LTD,0001610455,1123.20
Department of Health,East Sussex Hospitals NHS Trust,02/11/2011,PATS APPL - FOOTWARE,Integrated Care,FLORENCE J,0001801077,609.22
Department of Health,East Sussex Hospitals NHS Trust,02/11/2011,PHOTOCOPIER HIRE,Commercial,RICOH UK LTD,0001803025,501.78
Department of Health,East Sussex Hospitals NHS Trust,02/11/2011,PATS APPL - LEG SUPPORTS,Integrated Care,FLORENCE J,0001803326,1455.48
Department of Health,East Sussex Hospitals NHS Trust,02/11/2011,PATS APPL - FOOTWARE,Integrated Care,FLORENCE J,0001803334,584.02
Department of Health,East Sussex Hospitals NHS Trust,02/11/2011,WHEELCHAIR,Integrated Care,GERALD SIMONDS HEALTHCARE LTD,0001803670,507.60
Department of Health,East Sussex Hospitals NHS Trust,02/11/2011,PATS APPL - LEG SUPPORTS,Integrated Care,FLORENCE J,0001803729,617.28
Department of Health,East Sussex Hospitals NHS Trust,02/11/2011,CLINICAL WASTE DISPOSAL,Commercial,SRCL LTD,0001803748,5865.41
Department of Health,East Sussex Hospitals NHS Trust,02/11/2011,OTHER STATIONERY,Integrated Care,PEARSON ASSESSMENT,0001803795,114.00
Department of Health,East Sussex Hospitals NHS Trust,02/11/2011,"BOOKS, JOURNALS & SUBCRIPTIONS",Integrated Care,PEARSON ASSESSMENT,0001803795,64.80
Department of Health,East Sussex Hospitals NHS Trust,02/11/2011,EDUCATIONAL EQUIPMENT,Integrated Care,PEARSON ASSESSMENT,0001803795,322.70
Department of Health,East Sussex Hospitals NHS Trust,02/11/2011,M&S EQUIPMENT - OTHER,Planned Care,ARTHROCARE UK LIMITED,0001803880,843.00
Department of Health,East Sussex Hospitals NHS Trust,02/11/2011,HIRE OF SPECIAL BEDS,Urgent Care,PARK HOUSE HEALTHCARE LTD,0001803892,777.60
Department of Health,East Sussex Hospitals NHS Trust,02/11/2011,HIRE OF SPECIAL BEDS,Urgent Care,PARK HOUSE HEALTHCARE LTD,0001803893,604.80
Department of Health,East Sussex Hospitals NHS Trust,02/11/2011,HIRE OF SPECIAL BEDS,Urgent Care,PARK HOUSE HEALTHCARE LTD,0001803895,680.40
Department of Health,East Sussex Hospitals NHS Trust,02/11/2011,POSTAGE - FRANKING MACHINE,Commercial,PITNEY BOWES FINANCE PLC,0001803942,918.40
Department of Health,East Sussex Hospitals NHS Trust,02/11/2011,PATIENTS APPLIANCES - OTHER,Integrated Care,FLORENCE J,0001804042,709.91
Department of Health,East Sussex Hospitals NHS Trust,02/11/2011,PATIENTS APPLIANCES - OTHER,Integrated Care,FLORENCE J,0001804043,547.80
Department of Health,East Sussex Hospitals NHS Trust,02/11/2011,CAPITAL EXPENDITURE,Other Central,QUALITY WATER SPECIALISTS LLP,0001804192,1014.60
Department of Health,East Sussex Hospitals NHS Trust,02/11/2011,WHEELCHAIR,Integrated Care,QBITUS PRODUCTS,0001804194,742.62
Department of Health,East Sussex Hospitals NHS Trust,02/11/2011,OTHER STATIONERY,Integrated Care,ICOM,0001804197,579.84
Department of Health,East Sussex Hospitals NHS Trust,02/11/2011,POSTAGE,Integrated Care,ICOM,0001804197,30.00
Department of Health,East Sussex Hospitals NHS Trust,02/11/2011,TRAINING COURSE FEES-OTHER,Integrated Care,UNIVERSITY COLLEGE LONDON,0001804287,780.00
Department of Health,East Sussex Hospitals NHS Trust,02/11/2011,THERAPY EQUIPMENT,Integrated Care,ODSTOCK MEDICAL LTD,0001804297,2447.36
Department of Health,East Sussex Hospitals NHS Trust,02/11/2011,PHOTOCOPIER HIRE,Commercial,GE CAPITAL EQUIPMENT FINANCE LTD,0001804324,419.20
Department of Health,East Sussex Hospitals NHS Trust,02/11/2011,SPECIAL SEATING,Integrated Care,CONTOUR886 LTD,0001804427,3610.80
Department of Health,East Sussex Hospitals NHS Trust,02/11/2011,SPECIAL SEATING,Integrated Care,CONTOUR886 LTD,0001804428,1724.40
Department of Health,East Sussex Hospitals NHS Trust,02/11/2011,SPECIAL SEATING,Integrated Care,CONTOUR886 LTD,0001804429,4998.00
Department of Health,East Sussex Hospitals NHS Trust,02/11/2011,WHEELCHAIR,Integrated Care,CLINICAL ENGINEERING CONSULTANTS LTD,0001804461,4242.00
Department of Health,East Sussex Hospitals NHS Trust,02/11/2011,CONTRACTED-OUT H.CARE SERVICES,Integrated Care,LINDA MURRAY,0001804473,1980.00
Department of Health,East Sussex Hospitals NHS Trust,02/11/2011,WHEELCHAIR,Integrated Care,SOUTHERN MOBILITY CENTRE,0001804569,584.40
Department of Health,East Sussex Hospitals NHS Trust,02/11/2011,PROFESSIONAL FEES,Integrated Care,SOUTHERN MOBILITY CENTRE,0001804571,470.00
Department of Health,East Sussex Hospitals NHS Trust,02/11/2011,WHEELCHAIR,Integrated Care,SOUTHERN MOBILITY CENTRE,0001804574,535.20
Department of Health,East Sussex Hospitals NHS Trust,02/11/2011,TELEPHONES-MAINTENANCE,Commercial,CALIBRE TELECOMS LTD,0001804625,725.00
Department of Health,East Sussex Hospitals NHS Trust,02/11/2011,CLEANING CONTRACT,Commercial,CLEAN FOR SUSSEX,0001804657,580.49
Department of Health,East Sussex Hospitals NHS Trust,09/11/2011,SUSSEX COMMUNITY NHS TRUST,Integrated Care,SUSSEX COMMUNITY NHS TRUST,0000131450,638.40
Department of Health,East Sussex Hospitals NHS Trust,09/11/2011,SUSSEX COMMUNITY NHS TRUST,Integrated Care,SUSSEX COMMUNITY NHS TRUST,0000131451,517.50
Department of Health,East Sussex Hospitals NHS Trust,09/11/2011,LAB MATERIALS - NEQAS,Integrated Care,CARDIFF & VALE ULHB,0000132228,3010.00
Department of Health,East Sussex Hospitals NHS Trust,09/11/2011,LAB MATERIALS - NEQAS,Integrated Care,CARDIFF & VALE ULHB,0000132255,1980.00
Department of Health,East Sussex Hospitals NHS Trust,09/11/2011,NHS SUPPLY CHAIN CREDITORS,Cross Site,NHS SUPPLY CHAIN,0000132281,161674.79
Department of Health,East Sussex Hospitals NHS Trust,09/11/2011,INTERNAL AUDIT,Corporate Services,SUSSEX COMMUNITY NHS TRUST,0000132362,11417.08
Department of Health,East Sussex Hospitals NHS Trust,09/11/2011,MAINT-GE MED SY NHS LOGISTICS,Integrated Care,NHS SUPPLY CHAIN,0000132389,10071.46
Department of Health,East Sussex Hospitals NHS Trust,09/11/2011,SUSSEX COMMUNITY NHS TRUST,Integrated Care,SUSSEX COMMUNITY NHS TRUST,0000132530,-638.40
Department of Health,East Sussex Hospitals NHS Trust,09/11/2011,SUSSEX COMMUNITY NHS TRUST,Integrated Care,SUSSEX COMMUNITY NHS TRUST,0000132532,-517.50
Department of Health,East Sussex Hospitals NHS Trust,09/11/2011,AGENCY SHO - LOCUM,Urgent Care,HAYS,0000269109,1417.92
Department of Health,East Sussex Hospitals NHS Trust,09/11/2011,AGENCY SHO - LOCUM,Urgent Care,HAYS,0000269371,1388.38
Department of Health,East Sussex Hospitals NHS Trust,09/11/2011,AGENCY SHO - LOCUM,Urgent Care,HAYS,0000269736,1453.37
Department of Health,East Sussex Hospitals NHS Trust,09/11/2011,AGENCY SHO - LOCUM,Urgent Care,HAYS,0000270201,1471.09
Department of Health,East Sussex Hospitals NHS Trust,09/11/2011,AGENCY RADIOGRAPHY STAFF,Integrated Care,RIG MEDICAL RECRUIT LTD,0000272708,1178.94
Department of Health,East Sussex Hospitals NHS Trust,09/11/2011,AGENCY SPEECH THERAPIST,Integrated Care,YOUR WORLD RECRUITMENT LTD,0000274098,1579.06
Department of Health,East Sussex Hospitals NHS Trust,09/11/2011,AGENCY NURSE - QUALIFIED,Urgent Care,MAYDAY HEALTHCARE PLC,0000274238,952.36
Department of Health,East Sussex Hospitals NHS Trust,09/11/2011,AGENCY NURSE - QUALIFIED,Urgent Care,MAYDAY HEALTHCARE PLC,0000274250,609.58
Department of Health,East Sussex Hospitals NHS Trust,09/11/2011,AGENCY NURSE - QUALIFIED,Urgent Care,MAYDAY HEALTHCARE PLC,0000274318,1656.48
Department of Health,East Sussex Hospitals NHS Trust,09/11/2011,AGENCY NURSE - QUALIFIED,Urgent Care,MAYDAY HEALTHCARE PLC,0000274319,952.36
Department of Health,East Sussex Hospitals NHS Trust,09/11/2011,AGENCY NURSE - QUALIFIED,Urgent Care,MAYDAY HEALTHCARE PLC,0000274320,1668.66
Department of Health,East Sussex Hospitals NHS Trust,09/11/2011,AGENCY NURSE - QUALIFIED,Urgent Care,MAYDAY HEALTHCARE PLC,0000274323,562.60
Department of Health,East Sussex Hospitals NHS Trust,09/11/2011,AGENCY NURSE - QUALIFIED,Urgent Care,MAYDAY HEALTHCARE PLC,0000274335,1316.89
Department of Health,East Sussex Hospitals NHS Trust,09/11/2011,ADVERT-NURSING,Corporate Services,KATE COWHIG INTERNATIONAL,0000274531,2600.00
Department of Health,East Sussex Hospitals NHS Trust,09/11/2011,ADVERT-NURSING,Corporate Services,KATE COWHIG INTERNATIONAL,0000274533,2600.00
Department of Health,East Sussex Hospitals NHS Trust,09/11/2011,AGENCY SHO - LOCUM,Planned Care,PURE MEDICAL HEALTHCARE SOLUTIONS LTD,0000274708,6006.00
Department of Health,East Sussex Hospitals NHS Trust,09/11/2011,PROVISIONS,Commercial,YEARSLEY GROUP,0000274896,575.84
Department of Health,East Sussex Hospitals NHS Trust,09/11/2011,PROVISIONS,Commercial,THE BESPOKE COFFEE CO LTD,0000274951,802.73
Department of Health,East Sussex Hospitals NHS Trust,09/11/2011,AGENCY SHO - LOCUM,Urgent Care,MEDACS HEALTHCARE SERVICES LTD,0000275096,2489.86
Department of Health,East Sussex Hospitals NHS Trust,09/11/2011,AGENCY SPECIALIST REG,Integrated Care,MEDECHO LTD,0000275099,3276.00
Department of Health,East Sussex Hospitals NHS Trust,09/11/2011,AGENCY SPECIALIST REG,Urgent Care,MEDACS HEALTHCARE SERVICES LTD,0000275209,5231.83
Department of Health,East Sussex Hospitals NHS Trust,09/11/2011,AGENCY SHO - LOCUM,Urgent Care,MEDACS HEALTHCARE SERVICES LTD,0000275211,1493.92
Department of Health,East Sussex Hospitals NHS Trust,09/11/2011,AGENCY MLSO,Integrated Care,LABMED,0000275231,996.52
Department of Health,East Sussex Hospitals NHS Trust,09/11/2011,AGENCY MLSO,Integrated Care,MAXXIMA LTD 2,0000275264,1335.60
Department of Health,East Sussex Hospitals NHS Trust,09/11/2011,AGENCY MLSO,Integrated Care,MAXXIMA LTD 2,0000275265,1440.00
Department of Health,East Sussex Hospitals NHS Trust,09/11/2011,AGENCY NURSE - QUALIFIED,Planned Care,ORION LOCUMS LTD,0000275276,1232.00
Department of Health,East Sussex Hospitals NHS Trust,09/11/2011,AGENCY ADMIN & CLERICAL,Corporate Services,MICHAEL PAGE INTERNATIONAL RECRUIT. LTD,0000275304,621.69
Department of Health,East Sussex Hospitals NHS Trust,09/11/2011,AGENCY MTO,Planned Care,ORION LOCUMS LTD,0000275307,1747.20
Department of Health,East Sussex Hospitals NHS Trust,09/11/2011,AGENCY MTO,Planned Care,ORION LOCUMS LTD,0000275308,1785.60
Department of Health,East Sussex Hospitals NHS Trust,09/11/2011,AGENCY MTO,Planned Care,ORION LOCUMS LTD,0000275309,1759.39
Department of Health,East Sussex Hospitals NHS Trust,09/11/2011,AGENCY NURSE - QUALIFIED,Planned Care,ORION LOCUMS LTD,0000275319,1200.00
Department of Health,East Sussex Hospitals NHS Trust,09/11/2011,AGENCY MTO,Planned Care,ORION LOCUMS LTD,0000275320,1746.10
Department of Health,East Sussex Hospitals NHS Trust,09/11/2011,AGENCY MTO,Planned Care,ORION LOCUMS LTD,0000275321,1248.00
Department of Health,East Sussex Hospitals NHS Trust,09/11/2011,AGENCY NURSE - QUALIFIED,Urgent Care,QUINTILES,0000275323,3986.80
Department of Health,East Sussex Hospitals NHS Trust,09/11/2011,AGENCY ANCILLARY,Commercial,INTERWORK RECRUITMENT CONSULTANTS LTD,0000275367,578.08
Department of Health,East Sussex Hospitals NHS Trust,09/11/2011,AGENCY MLSO,Integrated Care,MAXXIMA LTD 2,0000275383,1268.40
Department of Health,East Sussex Hospitals NHS Trust,09/11/2011,AGENCY MLSO,Integrated Care,MAXXIMA LTD 2,0000275384,1440.00
Department of Health,East Sussex Hospitals NHS Trust,09/11/2011,AGENCY MLSO,Integrated Care,MAXXIMA LTD 2,0000275394,1237.50
Department of Health,East Sussex Hospitals NHS Trust,09/11/2011,AGENCY ANCILLARY,Commercial,INTERWORK RECRUITMENT CONSULTANTS LTD,0000275401,549.02
Department of Health,East Sussex Hospitals NHS Trust,09/11/2011,AGENCY MTO,Planned Care,ORION LOCUMS LTD,0000275415,1152.00
Department of Health,East Sussex Hospitals NHS Trust,09/11/2011,AGENCY NURSE - QUALIFIED,Planned Care,ORION LOCUMS LTD,0000275451,1251.54
Department of Health,East Sussex Hospitals NHS Trust,09/11/2011,AGENCY SHO - LOCUM,Planned Care,PURE MEDICAL HEALTHCARE SOLUTIONS LTD,0000275455,765.20
Department of Health,East Sussex Hospitals NHS Trust,09/11/2011,PROVISIONS,Commercial,AUTOBAR UK LIMITED,0000275509,602.05
Department of Health,East Sussex Hospitals NHS Trust,09/11/2011,PROVISIONS,Commercial,DAIRY CREST LTD,0000275525,1759.07
Department of Health,East Sussex Hospitals NHS Trust,09/11/2011,PROVISIONS,Commercial,AUTOBAR UK LIMITED,0000275602,1575.55
Department of Health,East Sussex Hospitals NHS Trust,09/11/2011,PROVISIONS,Commercial,DAIRY CREST LTD,0000275615,1142.59
Department of Health,East Sussex Hospitals NHS Trust,09/11/2011,PROVISIONS,Commercial,DAIRY CREST LTD,0000275616,1166.43
Department of Health,East Sussex Hospitals NHS Trust,09/11/2011,AGENCY MTO,Planned Care,ORION LOCUMS LTD,0000275725,1132.80
Department of Health,East Sussex Hospitals NHS Trust,09/11/2011,AGENCY MTO,Planned Care,ORION LOCUMS LTD,0000275726,1651.20
Department of Health,East Sussex Hospitals NHS Trust,09/11/2011,AGENCY MTO,Planned Care,ORION LOCUMS LTD,0000275727,1945.49
Department of Health,East Sussex Hospitals NHS Trust,09/11/2011,AGENCY MTO,Planned Care,ORION LOCUMS LTD,0000275728,1867.58
Department of Health,East Sussex Hospitals NHS Trust,09/11/2011,AGENCY MTO,Planned Care,ORION LOCUMS LTD,0000275810,-1152.00
Department of Health,East Sussex Hospitals NHS Trust,09/11/2011,M&S EQUIPMENT - OTHER,Planned Care,RICHARD WOLF UK LTD,0000357167,548.47
Department of Health,East Sussex Hospitals NHS Trust,09/11/2011,CONTRACT ENGINEERING MAINT,Commercial,SAUTER AUTOMATION LIMITED,0000357183,466.94
Department of Health,East Sussex Hospitals NHS Trust,09/11/2011,ENGINEER CONTRACT - REPAIR,Commercial,PURICORE INTERNATIONAL LTD,0000357328,594.64
Department of Health,East Sussex Hospitals NHS Trust,09/11/2011,ENGINEER CONTRACT - REPAIR,Commercial,BOOKER & BEST LIMITED,0000357337,886.80
Department of Health,East Sussex Hospitals NHS Trust,09/11/2011,RBB REFRACTORY ENGINEERS,Commercial,STEAMTEC LTD,0000357356,600.00
Department of Health,East Sussex Hospitals NHS Trust,09/11/2011,CONTRACT ENGINEERING MAINT,Commercial,RUPERT BELLAMY LTD,0000357380,750.00
Department of Health,East Sussex Hospitals NHS Trust,09/11/2011,ENGINEER CONTRACT - REPAIR,Commercial,ROY FARLEY FLOORING,0000357397,1162.00
Department of Health,East Sussex Hospitals NHS Trust,09/11/2011,CAPITAL EXPENDITURE,Other Central,AVINNY CONSULTING ENGINEERS,0000357478,1500.00
Department of Health,East Sussex Hospitals NHS Trust,09/11/2011,CAPITAL EXPENDITURE,Other Central,AVINNY CONSULTING ENGINEERS,0000357479,3764.06
Department of Health,East Sussex Hospitals NHS Trust,09/11/2011,LOANER KITS - HIRE CHARGE,Planned Care,OPAL ORTHOPAEDICS LTD,0000491184,720.00
Department of Health,East Sussex Hospitals NHS Trust,09/11/2011,LOANER KITS - HIRE CHARGE,Planned Care,BIOMET EUROPE,0000492133,1524.00
Department of Health,East Sussex Hospitals NHS Trust,09/11/2011,PROSTHESES-OTHER,Planned Care,BIOMET EUROPE,0000492133,10929.01
Department of Health,East Sussex Hospitals NHS Trust,09/11/2011,NATIONAL JOINT REGISTRY LEVY,Planned Care,BIOMET EUROPE,0000492133,40.00
Department of Health,East Sussex Hospitals NHS Trust,09/11/2011,STORAGE - EXTERNAL FACILITIES,Commercial,FORMSAFE LTD,0000493339,8188.52
Department of Health,East Sussex Hospitals NHS Trust,09/11/2011,STORAGE - EXTERNAL FACILITIES,Commercial,FORMSAFE LTD,0000493385,895.10
Department of Health,East Sussex Hospitals NHS Trust,09/11/2011,M&S GENERAL SUPPLIES-OTHER,Planned Care,JOHNSON & JOHNSON MEDICAL LTD,0000493630,1964.28
Department of Health,East Sussex Hospitals NHS Trust,09/11/2011,SENSITIVITY DISKS,Integrated Care,OXOID LIMITED,0000493969,327.24
Department of Health,East Sussex Hospitals NHS Trust,09/11/2011,GENERAL LAB. CONSUMABLES,Integrated Care,OXOID LIMITED,0000493969,291.80
Department of Health,East Sussex Hospitals NHS Trust,09/11/2011,GENERAL CHEMICALS,Integrated Care,OXOID LIMITED,0000493969,90.90
Department of Health,East Sussex Hospitals NHS Trust,09/11/2011,STORAGE - EXTERNAL FACILITIES,Commercial,RESTORE LTD,0000494089,927.47
Department of Health,East Sussex Hospitals NHS Trust,09/11/2011,CARDIOLOGY CATHETERS,Urgent Care,BOSTON SCIENTIFIC LTD,0000494816,1056.00
Department of Health,East Sussex Hospitals NHS Trust,09/11/2011,M&S GENERAL SUPPLIES-OTHER,Urgent Care,BOSTON SCIENTIFIC LTD,0000494818,60.00
Department of Health,East Sussex Hospitals NHS Trust,09/11/2011,CARDIOLOGY CATHETERS,Urgent Care,BOSTON SCIENTIFIC LTD,0000494818,955.20
Department of Health,East Sussex Hospitals NHS Trust,09/11/2011,INTERVENTIONAL DISPOSABLES,Urgent Care,BOSTON SCIENTIFIC LTD,0000494821,510.00
Department of Health,East Sussex Hospitals NHS Trust,09/11/2011,CARDIOLOGY CATHETERS,Urgent Care,BOSTON SCIENTIFIC LTD,0000494821,55.20
Department of Health,East Sussex Hospitals NHS Trust,09/11/2011,"PATS APPL - NECK, ARM, HAND",Planned Care,BEAGLE ORTHOPAEDIC,0000494825,526.54
Department of Health,East Sussex Hospitals NHS Trust,09/11/2011,ELECTRO MEDICAL EQUIPMENT,Planned Care,SMITH & NEPHEW ENDOSCOPY,0000494828,2252.71
Department of Health,East Sussex Hospitals NHS Trust,09/11/2011,SURGICAL INSTRUMENTS,Planned Care,SMITH & NEPHEW ENDOSCOPY,0000494828,14.40
Department of Health,East Sussex Hospitals NHS Trust,09/11/2011,PROSTHESIS - LENS,Planned Care,ALCON LABORATORIES (UK) LTD,0000494832,818.40
Department of Health,East Sussex Hospitals NHS Trust,09/11/2011,M&S GENERAL SUPPLIES-OTHER,Planned Care,PULSION MEDICAL UK LTD,0000494847,922.98
Department of Health,East Sussex Hospitals NHS Trust,09/11/2011,INTERVENTIONAL DISPOSABLES,Integrated Care,TERUMO UK,0000494866,611.40
Department of Health,East Sussex Hospitals NHS Trust,09/11/2011,M&S GENERAL SUPPLIES-OTHER,Integrated Care,ST JUDE MEDICAL UK LIMITED,0000494871,999.36
Department of Health,East Sussex Hospitals NHS Trust,09/11/2011,PROSTHESES-HIP,Planned Care,BIOMET EUROPE,0000494880,1169.00
Department of Health,East Sussex Hospitals NHS Trust,09/11/2011,NATIONAL JOINT REGISTRY LEVY,Planned Care,BIOMET EUROPE,0000494880,20.00
Department of Health,East Sussex Hospitals NHS Trust,09/11/2011,SURGICAL INSTRUMENTS,Planned Care,ACUMED LTD,0000494881,37.20
Department of Health,East Sussex Hospitals NHS Trust,09/11/2011,PROSTHESES-OTHER,Planned Care,ACUMED LTD,0000494881,1594.08
Department of Health,East Sussex Hospitals NHS Trust,09/11/2011,IMMUNE STOCKS,Integrated Care,LEICA MICROSYSTEMS (UK) LTD,0000494882,1294.88
Department of Health,East Sussex Hospitals NHS Trust,09/11/2011,PROSTHESES-HIP,Planned Care,BIOMET EUROPE,0000494891,736.01
Department of Health,East Sussex Hospitals NHS Trust,09/11/2011,GENERAL LAB. CONSUMABLES,Integrated Care,OXOID LIMITED,0000494921,519.39
Department of Health,East Sussex Hospitals NHS Trust,09/11/2011,OTHER MEDIA,Integrated Care,OXOID LIMITED,0000494921,735.34
Department of Health,East Sussex Hospitals NHS Trust,09/11/2011,GENERAL LAB. CONSUMABLES,Integrated Care,OXOID LIMITED,0000494922,545.55
Department of Health,East Sussex Hospitals NHS Trust,09/11/2011,OTHER MEDIA,Integrated Care,OXOID LIMITED,0000494922,519.82
Department of Health,East Sussex Hospitals NHS Trust,09/11/2011,PROSTHESES-HIP,Planned Care,BIOMET EUROPE,0000494927,3120.00
Department of Health,East Sussex Hospitals NHS Trust,09/11/2011,CARDIOLOGY STENTS,Urgent Care,BOSTON SCIENTIFIC LTD,0000494928,840.00
Department of Health,East Sussex Hospitals NHS Trust,09/11/2011,GENERAL LAB. CONSUMABLES,Integrated Care,INSTRUMENTATION LABORATORIES UK LTD,0000494934,2594.50
Department of Health,East Sussex Hospitals NHS Trust,09/11/2011,LAB MATS IL CONSUMABLES,Integrated Care,INSTRUMENTATION LABORATORIES UK LTD,0000494935,652.30
Department of Health,East Sussex Hospitals NHS Trust,09/11/2011,CPAP VENTILATOR,Planned Care,RESMED (UK) LTD,0000494936,2016.00
Department of Health,East Sussex Hospitals NHS Trust,09/11/2011,M&S GENERAL SUPPLIES-OTHER,Planned Care,RESMED (UK) LTD,0000494936,462.00
Department of Health,East Sussex Hospitals NHS Trust,09/11/2011,M&S GENERAL SUPPLIES-OTHER,Planned Care,STRYKER UK,0000494940,754.38
Department of Health,East Sussex Hospitals NHS Trust,09/11/2011,PROSTHESES-HIP,Planned Care,STRYKER UK,0000494940,1842.84
Department of Health,East Sussex Hospitals NHS Trust,09/11/2011,NATIONAL JOINT REGISTRY LEVY,Planned Care,STRYKER UK,0000494940,-164.84
Department of Health,East Sussex Hospitals NHS Trust,09/11/2011,M&S GENERAL SUPPLIES-OTHER,Planned Care,STRYKER UK,0000494941,46.86
Department of Health,East Sussex Hospitals NHS Trust,09/11/2011,SURGICAL INSTRUMENTS,Planned Care,STRYKER UK,0000494941,65.34
Department of Health,East Sussex Hospitals NHS Trust,09/11/2011,PROSTHESES-OTHER,Planned Care,STRYKER UK,0000494941,757.02
Department of Health,East Sussex Hospitals NHS Trust,09/11/2011,M&S EQUIPMENT - OTHER,Planned Care,FOCUS MEDICAL SERVICES LTD,0000494947,1230.00
Department of Health,East Sussex Hospitals NHS Trust,09/11/2011,GENERAL CHEMICALS,Integrated Care,BECTON DICKINSON U.K. LTD,0000494950,676.94
Department of Health,East Sussex Hospitals NHS Trust,09/11/2011,M&S EQUIPMENT - OTHER,Planned Care,GAMBRO LUNDIA AB,0000494955,322.14
Department of Health,East Sussex Hospitals NHS Trust,09/11/2011,M&S GENERAL SUPPLIES-OTHER,Planned Care,GAMBRO LUNDIA AB,0000494955,1068.00
Department of Health,East Sussex Hospitals NHS Trust,09/11/2011,PATS APPL - LEG SUPPORTS,Planned Care,TALAR-MADE LTD,0000494957,380.59
Department of Health,East Sussex Hospitals NHS Trust,09/11/2011,PATS APPL - FOOTWARE,Planned Care,TALAR-MADE LTD,0000494957,158.25
Department of Health,East Sussex Hospitals NHS Trust,09/11/2011,GENERAL LAB. CONSUMABLES,Integrated Care,WESTERN LABORATORY SOLUTIONS,0000494958,591.74
Department of Health,East Sussex Hospitals NHS Trust,09/11/2011,LAB-CONTAINERS/BOTTLES & CAPS,Integrated Care,WESTERN LABORATORY SOLUTIONS,0000494958,187.44
Department of Health,East Sussex Hospitals NHS Trust,09/11/2011,GENERAL LAB. CONSUMABLES,Integrated Care,WESTERN LABORATORY SOLUTIONS,0000494958,19.87
Department of Health,East Sussex Hospitals NHS Trust,09/11/2011,CATARACT CONSUMABLES,Planned Care,ALCON LABORATORIES (UK) LTD,0000494964,1842.12
Department of Health,East Sussex Hospitals NHS Trust,09/11/2011,PROSTHESIS - LENS,Planned Care,ALCON LABORATORIES (UK) LTD,0000494966,1041.60
Department of Health,East Sussex Hospitals NHS Trust,09/11/2011,M&S GENERAL SUPPLIES-OTHER,Planned Care,MEDTRONIC LTD,0000495032,591.60
Department of Health,East Sussex Hospitals NHS Trust,09/11/2011,M&S GENERAL SUPPLIES-OTHER,Planned Care,MDM MEDICAL LTD,0000495035,150.00
Department of Health,East Sussex Hospitals NHS Trust,09/11/2011,SURGICAL INSTRUMENTS,Planned Care,MDM MEDICAL LTD,0000495035,1032.00
Department of Health,East Sussex Hospitals NHS Trust,09/11/2011,SECURICOR CASH TRANSIT CHARGES,Corporate Services,G4S CASH SERVICES,0000495047,641.09
Department of Health,East Sussex Hospitals NHS Trust,09/11/2011,GENERAL LAB. CONSUMABLES,Integrated Care,OXOID LIMITED,0000495055,716.29
Department of Health,East Sussex Hospitals NHS Trust,09/11/2011,OTHER MEDIA,Integrated Care,OXOID LIMITED,0000495055,819.05
Department of Health,East Sussex Hospitals NHS Trust,09/11/2011,GENERAL LAB. CONSUMABLES,Integrated Care,OXOID LIMITED,0000495056,545.89
Department of Health,East Sussex Hospitals NHS Trust,09/11/2011,OTHER MEDIA,Integrated Care,OXOID LIMITED,0000495056,471.16
Department of Health,East Sussex Hospitals NHS Trust,09/11/2011,DRESSINGS-OTHER,Planned Care,ANETIC AID LTD,0000495088,984.00
Department of Health,East Sussex Hospitals NHS Trust,09/11/2011,PROSTHESIS - SHOULDERS,Planned Care,ACUMED LTD,0000495101,577.80
Department of Health,East Sussex Hospitals NHS Trust,09/11/2011,PROSTHESES-OTHER,Planned Care,ACUMED LTD,0000495101,459.48
Department of Health,East Sussex Hospitals NHS Trust,09/11/2011,STAPLING DEVICES,Planned Care,COVIDIEN (UK) COMMERCIAL LTD,0000495107,674.40
Department of Health,East Sussex Hospitals NHS Trust,09/11/2011,GENERAL LAB. CONSUMABLES,Integrated Care,GREINER BIO-ONE LTD,0000495170,1350.86
Department of Health,East Sussex Hospitals NHS Trust,09/11/2011,MONOVETTE CONSUMABLES,Integrated Care,GREINER BIO-ONE LTD,0000495171,2056.16
Department of Health,East Sussex Hospitals NHS Trust,09/11/2011,CARDIOLOGY STENTS,Urgent Care,MEDTRONIC LTD,0000495177,1080.00
Department of Health,East Sussex Hospitals NHS Trust,09/11/2011,STAPLING DEVICES,Planned Care,COVIDIEN (UK) COMMERCIAL LTD,0000495188,636.00
Department of Health,East Sussex Hospitals NHS Trust,09/11/2011,CARDIOLOGY STENTS,Urgent Care,MEDTRONIC LTD,0000495222,540.00
Department of Health,East Sussex Hospitals NHS Trust,09/11/2011,CARDIOLOGY STENTS,Urgent Care,MEDTRONIC LTD,0000495265,540.00
Department of Health,East Sussex Hospitals NHS Trust,09/11/2011,CARDIOLOGY STENTS,Urgent Care,MEDTRONIC LTD,0000495267,4080.00
Department of Health,East Sussex Hospitals NHS Trust,09/11/2011,M&S GENERAL SUPPLIES-OTHER,Planned Care,BIOMET EUROPE,0000495289,51.60
Department of Health,East Sussex Hospitals NHS Trust,09/11/2011,PROSTHESES-KNEES,Planned Care,BIOMET EUROPE,0000495289,2192.40
Department of Health,East Sussex Hospitals NHS Trust,09/11/2011,NATIONAL JOINT REGISTRY LEVY,Planned Care,BIOMET EUROPE,0000495289,40.01
Department of Health,East Sussex Hospitals NHS Trust,09/11/2011,PROCEDURE PACKS,Planned Care,SD HEALTHCARE LTD,0000495301,500.40
Department of Health,East Sussex Hospitals NHS Trust,09/11/2011,PROCEDURE PACKS,Planned Care,SD HEALTHCARE LTD,0000495302,500.40
Department of Health,East Sussex Hospitals NHS Trust,09/11/2011,LOANER KITS - HIRE CHARGE,Planned Care,BIOMET EUROPE,0000495304,780.00
Department of Health,East Sussex Hospitals NHS Trust,09/11/2011,PROSTHESES-OTHER,Planned Care,BIOMET EUROPE,0000495304,4256.40
Department of Health,East Sussex Hospitals NHS Trust,09/11/2011,PROSTHESES-KNEES,Planned Care,BIOMET EUROPE,0000495309,2806.80
Department of Health,East Sussex Hospitals NHS Trust,09/11/2011,PROSTHESES-OTHER,Planned Care,BIOMET EUROPE,0000495309,78.00
Department of Health,East Sussex Hospitals NHS Trust,09/11/2011,NATIONAL JOINT REGISTRY LEVY,Planned Care,BIOMET EUROPE,0000495309,40.01
Department of Health,East Sussex Hospitals NHS Trust,09/11/2011,PROSTHESES-KNEES,Planned Care,SMITH & NEPHEW ORTHOPAEDICS LTD,0000495310,2178.04
Department of Health,East Sussex Hospitals NHS Trust,09/11/2011,LAB MATS IL CONSUMABLES,Integrated Care,INSTRUMENTATION LABORATORIES UK LTD,0000495315,1920.54
Department of Health,East Sussex Hospitals NHS Trust,09/11/2011,LAB MATS IL CONSUMABLES,Integrated Care,INSTRUMENTATION LABORATORIES UK LTD,0000495316,6199.62
Department of Health,East Sussex Hospitals NHS Trust,09/11/2011,PROSTHESIS - LENS,Planned Care,ALCON LABORATORIES (UK) LTD,0000495319,839.40
Department of Health,East Sussex Hospitals NHS Trust,09/11/2011,PROSTHESES-HIP,Planned Care,STRYKER UK,0000495323,4705.73
Department of Health,East Sussex Hospitals NHS Trust,09/11/2011,PROSTHESES-OTHER,Planned Care,STRYKER UK,0000495323,-358.25
Department of Health,East Sussex Hospitals NHS Trust,09/11/2011,NATIONAL JOINT REGISTRY LEVY,Planned Care,STRYKER UK,0000495323,60.01
Department of Health,East Sussex Hospitals NHS Trust,09/11/2011,M&S GENERAL SUPPLIES-OTHER,Planned Care,STRYKER UK,0000495324,777.60
Department of Health,East Sussex Hospitals NHS Trust,09/11/2011,M&S GENERAL SUPPLIES-OTHER,Planned Care,STRYKER UK,0000495325,65.34
Department of Health,East Sussex Hospitals NHS Trust,09/11/2011,PROSTHESES-OTHER,Planned Care,STRYKER UK,0000495325,694.98
Department of Health,East Sussex Hospitals NHS Trust,09/11/2011,PROSTHESES-OTHER,Planned Care,SYNTHES LTD,0000495326,713.45
Department of Health,East Sussex Hospitals NHS Trust,09/11/2011,PROSTHESES-HIP,Planned Care,STRYKER UK,0000495329,1438.69
Department of Health,East Sussex Hospitals NHS Trust,09/11/2011,NATIONAL JOINT REGISTRY LEVY,Planned Care,STRYKER UK,0000495329,19.99
Department of Health,East Sussex Hospitals NHS Trust,09/11/2011,PROSTHESES-HIP,Planned Care,STRYKER UK,0000495333,883.98
Department of Health,East Sussex Hospitals NHS Trust,09/11/2011,PROSTHESES-OTHER,Planned Care,STRYKER UK,0000495333,-25.02
Department of Health,East Sussex Hospitals NHS Trust,09/11/2011,NATIONAL JOINT REGISTRY LEVY,Planned Care,STRYKER UK,0000495333,20.00
Department of Health,East Sussex Hospitals NHS Trust,09/11/2011,M&S GENERAL SUPPLIES-OTHER,Planned Care,STRYKER UK,0000495334,172.26
Department of Health,East Sussex Hospitals NHS Trust,09/11/2011,PROSTHESES-OTHER,Planned Care,STRYKER UK,0000495334,705.54
Department of Health,East Sussex Hospitals NHS Trust,09/11/2011,IMMUNE STOCKS,Integrated Care,LEICA MICROSYSTEMS (UK) LTD,0000495339,5265.94
Department of Health,East Sussex Hospitals NHS Trust,09/11/2011,LAB MATS - SYSMEX HAEM CONS,Integrated Care,SYSMEX UK LTD,0000495376,5847.35
Department of Health,East Sussex Hospitals NHS Trust,09/11/2011,CARDIOLOGY STENTS,Urgent Care,MEDTRONIC LTD,0000495424,540.00
Department of Health,East Sussex Hospitals NHS Trust,09/11/2011,LAB MATS - SYSMEX HAEM CONS,Integrated Care,SYSMEX UK LTD,0000495457,892.57
Department of Health,East Sussex Hospitals NHS Trust,09/11/2011,OESOPHAGEAL (UPPER GI) STENTS,Planned Care,PYRAMED LIMITED,0000495567,804.00
Department of Health,East Sussex Hospitals NHS Trust,09/11/2011,OESOPHAGEAL (UPPER GI) STENTS,Integrated Care,PYRAMED LIMITED,0000495568,804.00
Department of Health,East Sussex Hospitals NHS Trust,09/11/2011,LAB MATS - SYSMEX HAEM CONS,Integrated Care,SYSMEX UK LTD,0000495588,510.60
Department of Health,East Sussex Hospitals NHS Trust,09/11/2011,PROSTHESES-HIP,Planned Care,LIMA ORTHOPAEDICS UK LIMITED,0000495591,3714.00
Department of Health,East Sussex Hospitals NHS Trust,09/11/2011,PROSTHESES-OTHER,Planned Care,LIMA ORTHOPAEDICS UK LIMITED,0000495591,496.80
Department of Health,East Sussex Hospitals NHS Trust,09/11/2011,NATIONAL JOINT REGISTRY LEVY,Planned Care,LIMA ORTHOPAEDICS UK LIMITED,0000495591,40.01
Department of Health,East Sussex Hospitals NHS Trust,09/11/2011,GENERAL LAB. CONSUMABLES,Integrated Care,SYSMEX UK LTD,0000495603,2899.30
Department of Health,East Sussex Hospitals NHS Trust,09/11/2011,GENERAL LAB. CONSUMABLES,Integrated Care,SYSMEX UK LTD,0000495604,2487.82
Department of Health,East Sussex Hospitals NHS Trust,09/11/2011,CLEANING MATERIALS,Commercial,FASTNET TAPES LTD,0000495633,702.00
Department of Health,East Sussex Hospitals NHS Trust,09/11/2011,GENERAL LAB. CONSUMABLES,Integrated Care,GREINER BIO-ONE LTD,0000495638,973.64
Department of Health,East Sussex Hospitals NHS Trust,09/11/2011,MONOVETTE CONSUMABLES,Integrated Care,GREINER BIO-ONE LTD,0000495639,4733.21
Department of Health,East Sussex Hospitals NHS Trust,09/11/2011,LAB-CONTAINERS/BOTTLES & CAPS,Integrated Care,G & N LABORATORY LTD,0000495666,577.80
Department of Health,East Sussex Hospitals NHS Trust,09/11/2011,CARDIOLOGY CATHETERS,Urgent Care,MEDTRONIC LTD,0000495704,648.00
Department of Health,East Sussex Hospitals NHS Trust,09/11/2011,SURGICAL INSTRUMENTS,Planned Care,STERICOM LTD,0000495727,1098.00
Department of Health,East Sussex Hospitals NHS Trust,09/11/2011,GENERAL LAB. CONSUMABLES,Integrated Care,INSTRUMENTATION LABORATORIES UK LTD,0000495808,-649.07
Department of Health,East Sussex Hospitals NHS Trust,09/11/2011,LAB MATS - SYSMEX HAEM CONS,Integrated Care,SYSMEX UK LTD,0000495810,-2981.21
Department of Health,East Sussex Hospitals NHS Trust,09/11/2011,LAB MATS - SYSMEX HAEM CONS,Integrated Care,SYSMEX UK LTD,0000495811,-892.57
Department of Health,East Sussex Hospitals NHS Trust,09/11/2011,LAB MATS - SYSMEX HAEM CONS,Integrated Care,SYSMEX UK LTD,0000495813,-2559.90
Department of Health,East Sussex Hospitals NHS Trust,09/11/2011,LOANER KITS - HIRE CHARGE,Planned Care,OPAL ORTHOPAEDICS LTD,0000495816,-720.00
Department of Health,East Sussex Hospitals NHS Trust,09/11/2011,GENERAL LAB. CONSUMABLES,Integrated Care,INSTRUMENTATION LABORATORIES UK LTD,0000495819,-603.85
Department of Health,East Sussex Hospitals NHS Trust,09/11/2011,SENSITIVITY DISKS,Integrated Care,OXOID LIMITED,0000495892,424.20
Department of Health,East Sussex Hospitals NHS Trust,09/11/2011,GENERAL LAB. CONSUMABLES,Integrated Care,OXOID LIMITED,0000495892,78.08
Department of Health,East Sussex Hospitals NHS Trust,09/11/2011,GENERAL CHEMICALS,Integrated Care,OXOID LIMITED,0000495892,151.50
Department of Health,East Sussex Hospitals NHS Trust,09/11/2011,OTHER MEDIA,Integrated Care,OXOID LIMITED,0000495892,54.54
Department of Health,East Sussex Hospitals NHS Trust,09/11/2011,M&S GENERAL SUPPLIES-OTHER,Integrated Care,JOHNSON & JOHNSON MEDICAL LTD,0000495995,1320.00
Department of Health,East Sussex Hospitals NHS Trust,09/11/2011,M&S GENERAL SUPPLIES-OTHER,Planned Care,JOHNSON & JOHNSON MEDICAL LTD,0000495997,1643.96
Department of Health,East Sussex Hospitals NHS Trust,09/11/2011,STAPLING DEVICES,Planned Care,JOHNSON & JOHNSON MEDICAL LTD,0000496016,841.80
Department of Health,East Sussex Hospitals NHS Trust,09/11/2011,PROSTHESES-OTHER,Planned Care,OPAL ORTHOPAEDICS LTD,0000496018,900.00
Department of Health,East Sussex Hospitals NHS Trust,09/11/2011,CYTOLOGY KITS,Integrated Care,HOLOGIC UK LTD,0000496256,6600.00
Department of Health,East Sussex Hospitals NHS Trust,09/11/2011,M&S GENERAL SUPPLIES-OTHER,Planned Care,JOHNSON & JOHNSON MEDICAL LTD,0000496531,-1178.57
Department of Health,East Sussex Hospitals NHS Trust,09/11/2011,M&S GENERAL SUPPLIES-OTHER,Planned Care,JOHNSON & JOHNSON MEDICAL LTD,0000496532,-1964.28
Department of Health,East Sussex Hospitals NHS Trust,09/11/2011,CYTOLOGY KITS,Integrated Care,HOLOGIC UK LTD,0000496646,4950.00
Department of Health,East Sussex Hospitals NHS Trust,09/11/2011,GENERAL LABORATORY EQUIPMENT,Integrated Care,CLOSE ASSET FINANCE LTD,0000496697,2365.98
Department of Health,East Sussex Hospitals NHS Trust,09/11/2011,CARDIOLOGY CATHETERS,Urgent Care,JOHNSON & JOHNSON MEDICAL LTD,0000592399,5520.00
Department of Health,East Sussex Hospitals NHS Trust,09/11/2011,CONT.MAIN-MED & SURG EQUIP,Urgent Care,GE MEDICAL SYSTEMS LTD,0000593875,-1597.73
Department of Health,East Sussex Hospitals NHS Trust,09/11/2011,INTERVASCULAR STENTS,Integrated Care,COOK (UK) LTD,0000594557,594.00
Department of Health,East Sussex Hospitals NHS Trust,09/11/2011,RENAL STENTS,Planned Care,PORGES,0000594891,955.00
Department of Health,East Sussex Hospitals NHS Trust,09/11/2011,INTERVENTIONAL DISPOSABLES,Planned Care,BOSTON SCIENTIFIC LTD,0000594892,864.00
Department of Health,East Sussex Hospitals NHS Trust,09/11/2011,M&S GENERAL SUPPLIES-OTHER,Planned Care,BOSTON SCIENTIFIC LTD,0000594895,560.40
Department of Health,East Sussex Hospitals NHS Trust,09/11/2011,INTERVENTIONAL DISPOSABLES,Planned Care,BOSTON SCIENTIFIC LTD,0000594895,1032.00
Department of Health,East Sussex Hospitals NHS Trust,09/11/2011,BILIARY STENTS,Planned Care,BOSTON SCIENTIFIC LTD,0000594895,847.20
Department of Health,East Sussex Hospitals NHS Trust,09/11/2011,M&S GENERAL SUPPLIES-OTHER,Urgent Care,KIMAL PLC (FOR ORDERS),0000594896,982.80
Department of Health,East Sussex Hospitals NHS Trust,09/11/2011,PRINTING/PRINTED MATERIALS,Commercial,ALTRAX GROUP LTD,0000594897,1337.00
Department of Health,East Sussex Hospitals NHS Trust,09/11/2011,CONTRACT-PHARMACY TESTING,Commercial,R & L SLAUGHTER LTD,0000594898,1332.00
Department of Health,East Sussex Hospitals NHS Trust,09/11/2011,M&S GENERAL SUPPLIES-OTHER,Planned Care,MEDTRONIC LTD,0000594901,878.40
Department of Health,East Sussex Hospitals NHS Trust,09/11/2011,VIDAS REAGENTS,Integrated Care,ABBOTT LABORATORIES LTD,0000594904,2979.52
Department of Health,East Sussex Hospitals NHS Trust,09/11/2011,CONT.MAIN-MED & SURG EQUIP,Commercial,JOHN WEISS & SONS LTD,0000594908,904.88
Department of Health,East Sussex Hospitals NHS Trust,09/11/2011,CAPITAL EXPENDITURE,Other Central,WASSENBURG MEDICAL DEVICES,0000594924,556.37
Department of Health,East Sussex Hospitals NHS Trust,09/11/2011,M&S GENERAL SUPPLIES-OTHER,Integrated Care,COOK (UK) LTD,0000594928,1692.00
Department of Health,East Sussex Hospitals NHS Trust,09/11/2011,OESOPHAGEAL (UPPER GI) STENTS,Integrated Care,BOSTON SCIENTIFIC LTD,0000594947,834.00
Department of Health,East Sussex Hospitals NHS Trust,09/11/2011,M&S GENERAL SUPPLIES-OTHER,Integrated Care,UK MEDICAL LTD,0000594961,1683.00
Department of Health,East Sussex Hospitals NHS Trust,09/11/2011,COLONIC STENTS,Integrated Care,UK MEDICAL LTD,0000594962,861.67
Department of Health,East Sussex Hospitals NHS Trust,09/11/2011,WHEELCHAIR,Integrated Care,THE HELPING HAND COMPANY (LEDBURY) LTD,0000594965,660.00
Department of Health,East Sussex Hospitals NHS Trust,09/11/2011,WHEELCHAIR,Integrated Care,THE HELPING HAND COMPANY (LEDBURY) LTD,0000594966,551.88
Department of Health,East Sussex Hospitals NHS Trust,09/11/2011,PRE-STERILE COMMERCIAL PACKS,Commercial,RICHARDSON HEALTHCARE,0000594967,983.04
Department of Health,East Sussex Hospitals NHS Trust,09/11/2011,CARDIOLOGY CATHETERS,Urgent Care,BARD LTD,0000594969,3000.00
Department of Health,East Sussex Hospitals NHS Trust,09/11/2011,RENAL STENTS,Integrated Care,BARD LTD,0000594970,720.00
Department of Health,East Sussex Hospitals NHS Trust,09/11/2011,M&S GENERAL SUPPLIES-OTHER,Urgent Care,BARD LTD,0000594971,1569.85
Department of Health,East Sussex Hospitals NHS Trust,09/11/2011,CONT.MAIN-MED & SURG EQUIP,Commercial,STRYKER UK,0000594973,541.80
Department of Health,East Sussex Hospitals NHS Trust,09/11/2011,HIRE OF SPECIAL BEDS,Urgent Care,POSHCHAIR MEDICAL LTD,0000594995,480.00
Department of Health,East Sussex Hospitals NHS Trust,09/11/2011,CONT.MAIN-MED & SURG EQUIP,Urgent Care,POSHCHAIR MEDICAL LTD,0000594995,48.00
Department of Health,East Sussex Hospitals NHS Trust,09/11/2011,ENGINEERING MATERIALS,Commercial,BELIMED INFECTION CONTROL,0000594998,1181.45
Department of Health,East Sussex Hospitals NHS Trust,09/11/2011,M&S GENERAL SUPPLIES-OTHER,Integrated Care,SIEMENS MEDICAL SOLUTIONS DIAG EUROPE,0000595015,64.43
Department of Health,East Sussex Hospitals NHS Trust,09/11/2011,LABORATORY ANTIBIOTICS,Integrated Care,SIEMENS MEDICAL SOLUTIONS DIAG EUROPE,0000595015,591.84
Department of Health,East Sussex Hospitals NHS Trust,09/11/2011,LAUNDRY EQUIPMENT,Commercial,CLAY & ABBOTT LTD,0000595039,1634.80
Department of Health,East Sussex Hospitals NHS Trust,09/11/2011,TSSU INSTRUMENTATION,Commercial,STRYKER UK,0000595048,2977.80
Department of Health,East Sussex Hospitals NHS Trust,09/11/2011,GENERAL LAB. CONSUMABLES,Integrated Care,G & N LABORATORY LTD,0000595073,656.45
Department of Health,East Sussex Hospitals NHS Trust,09/11/2011,M&S GENERAL SUPPLIES-OTHER,Commercial,CROWN LABELS MFG CO LTD,0000595076,1243.20
Department of Health,East Sussex Hospitals NHS Trust,09/11/2011,SEROLOGY REAGENTS,Integrated Care,ALERE LTD,0000595081,2560.37
Department of Health,East Sussex Hospitals NHS Trust,09/11/2011,PRE-STERILE COMMERCIAL PACKS,Commercial,FULL SUPPORT HEALTHCARE LTD,0000595088,3605.13
Department of Health,East Sussex Hospitals NHS Trust,09/11/2011,CLEANING MATERIALS,Commercial,DEKOMED LTD,0000595097,765.60
Department of Health,East Sussex Hospitals NHS Trust,09/11/2011,CARDIOLOGY CATHETERS,Urgent Care,MEDTRONIC LTD,0000595115,9600.00
Department of Health,East Sussex Hospitals NHS Trust,09/11/2011,M&S EQUIPMENT - OTHER,Planned Care,WASSENBURG MEDICAL DEVICES,0000595133,887.00
Department of Health,East Sussex Hospitals NHS Trust,09/11/2011,M&S GENERAL SUPPLIES-OTHER,Commercial,UNISURGE INTERNATIONAL LTD,0000595154,759.02
Department of Health,East Sussex Hospitals NHS Trust,09/11/2011,PRE-STERILE COMMERCIAL PACKS,Commercial,UNISURGE INTERNATIONAL LTD,0000595154,2137.30
Department of Health,East Sussex Hospitals NHS Trust,09/11/2011,PRE-STERILE COMMERCIAL PACKS,Commercial,FULL SUPPORT HEALTHCARE LTD,0000595156,2173.96
